Organisation Name,Organisation Code,Unique Ref No,Effective Date,Directorate  where expenditure incurred,Supplier Name,Payment Date,Net Amount,Purpose of Spend,Procurement Classification (Higher Level),Procurement Classification (Lower Level),Capital/Revenue
Walsall Council,http://opendatacommunities.org/id/metropolitan-district-council/walsall,WC101-01,28/02/2019,Childrens,247 CARS (WILLENHALL) LIMITED,06/02/2019,806.40,53101-OTHER/VOLUNTEERS-PUBLIC TRANSPORT,SAFEGUARDING & FAMILY SUPPORT,Transport,Revenue
Walsall Council,http://opendatacommunities.org/id/metropolitan-district-council/walsall,WC101-02,28/02/2019,Childrens,247 CARS (WILLENHALL) LIMITED,08/02/2019,"4,161.00",52000-WITH DRIVER-HIRE OF VEHICLES,HOME TO SCHOOL TRANSPORT,Transport,Revenue
Walsall Council,http://opendatacommunities.org/id/metropolitan-district-council/walsall,WC101-03,28/02/2019,Childrens,247 CARS (WILLENHALL) LIMITED,08/02/2019,"8,120.00",52000-WITH DRIVER-HIRE OF VEHICLES,HOME TO SCHOOL TRANSPORT,Transport,Revenue
Walsall Council,http://opendatacommunities.org/id/metropolitan-district-council/walsall,WC101-04,28/02/2019,Adult Social Care,39 ESSEX STREET LLP PFA,06/02/2019,"1,500.00",73014-LEGAL FEES-PRIV CONTRACTOR FEES,SAFEGUARDING,Third Party Payments,Revenue
Walsall Council,http://opendatacommunities.org/id/metropolitan-district-council/walsall,WC101-05,28/02/2019,Adult Social Care,5 CARE SERVICES LTD,01/02/2019,262.08,73507-DOMICILIARY CARE,PHYSICAL SUPPORT,Third Party Payments,Revenue
Walsall Council,http://opendatacommunities.org/id/metropolitan-district-council/walsall,WC101-06,28/02/2019,Adult Social Care,5 CARE SERVICES LTD,01/02/2019,262.08,73507-DOMICILIARY CARE,PHYSICAL SUPPORT,Third Party Payments,Revenue
Walsall Council,http://opendatacommunities.org/id/metropolitan-district-council/walsall,WC101-07,28/02/2019,Childrens,5 CARE SERVICES LTD,13/02/2019,273.00,63000-PROFESSIONAL FEES AND SERVICES,DIRECTLY COMMISSIONED NURSING SERVICES,Supplies & Services,Revenue
Walsall Council,http://opendatacommunities.org/id/metropolitan-district-council/walsall,WC101-08,28/02/2019,Adult Social Care,5 CARE SERVICES LTD,01/02/2019,291.55,73507-DOMICILIARY CARE,PHYSICAL SUPPORT,Third Party Payments,Revenue
Walsall Council,http://opendatacommunities.org/id/metropolitan-district-council/walsall,WC101-09,28/02/2019,Adult Social Care,5 CARE SERVICES LTD,01/02/2019,298.80,73507-DOMICILIARY CARE,SOCIAL SUPPORT,Third Party Payments,Revenue
Walsall Council,http://opendatacommunities.org/id/metropolitan-district-council/walsall,WC101-10,28/02/2019,Adult Social Care,5 CARE SERVICES LTD,01/02/2019,319.67,73507-DOMICILIARY CARE,PHYSICAL SUPPORT,Third Party Payments,Revenue
Walsall Council,http://opendatacommunities.org/id/metropolitan-district-council/walsall,WC101-11,28/02/2019,Adult Social Care,5 CARE SERVICES LTD,01/02/2019,327.88,73507-DOMICILIARY CARE,PHYSICAL SUPPORT,Third Party Payments,Revenue
Walsall Council,http://opendatacommunities.org/id/metropolitan-district-council/walsall,WC101-12,28/02/2019,Adult Social Care,5 CARE SERVICES LTD,01/02/2019,336.27,73507-DOMICILIARY CARE,PHYSICAL SUPPORT,Third Party Payments,Revenue
Walsall Council,http://opendatacommunities.org/id/metropolitan-district-council/walsall,WC101-13,28/02/2019,Adult Social Care,5 CARE SERVICES LTD,01/02/2019,345.44,73507-DOMICILIARY CARE,PHYSICAL SUPPORT,Third Party Payments,Revenue
Walsall Council,http://opendatacommunities.org/id/metropolitan-district-council/walsall,WC101-14,28/02/2019,Adult Social Care,5 CARE SERVICES LTD,01/02/2019,346.60,73507-DOMICILIARY CARE,PHYSICAL SUPPORT,Third Party Payments,Revenue
Walsall Council,http://opendatacommunities.org/id/metropolitan-district-council/walsall,WC101-15,28/02/2019,Adult Social Care,5 CARE SERVICES LTD,01/02/2019,362.07,73507-DOMICILIARY CARE,SOCIAL SUPPORT,Third Party Payments,Revenue
Walsall Council,http://opendatacommunities.org/id/metropolitan-district-council/walsall,WC101-16,28/02/2019,Adult Social Care,5 CARE SERVICES LTD,01/02/2019,383.16,73507-DOMICILIARY CARE,PHYSICAL SUPPORT,Third Party Payments,Revenue
Walsall Council,http://opendatacommunities.org/id/metropolitan-district-council/walsall,WC101-17,28/02/2019,Adult Social Care,5 CARE SERVICES LTD,01/02/2019,386.50,73507-DOMICILIARY CARE,PHYSICAL SUPPORT,Third Party Payments,Revenue
Walsall Council,http://opendatacommunities.org/id/metropolitan-district-council/walsall,WC101-18,28/02/2019,Adult Social Care,5 CARE SERVICES LTD,01/02/2019,393.70,73507-DOMICILIARY CARE,PHYSICAL SUPPORT,Third Party Payments,Revenue
Walsall Council,http://opendatacommunities.org/id/metropolitan-district-council/walsall,WC101-19,28/02/2019,Adult Social Care,5 CARE SERVICES LTD,01/02/2019,397.11,73507-DOMICILIARY CARE,PHYSICAL SUPPORT,Third Party Payments,Revenue
Walsall Council,http://opendatacommunities.org/id/metropolitan-district-council/walsall,WC101-20,28/02/2019,Adult Social Care,5 CARE SERVICES LTD,01/02/2019,458.92,73507-DOMICILIARY CARE,SENSORY SUPPORT,Third Party Payments,Revenue
Walsall Council,http://opendatacommunities.org/id/metropolitan-district-council/walsall,WC101-21,28/02/2019,Adult Social Care,5 CARE SERVICES LTD,01/02/2019,471.43,73507-DOMICILIARY CARE,PHYSICAL SUPPORT,Third Party Payments,Revenue
Walsall Council,http://opendatacommunities.org/id/metropolitan-district-council/walsall,WC101-22,28/02/2019,Adult Social Care,5 CARE SERVICES LTD,01/02/2019,495.50,73507-DOMICILIARY CARE,LEARNING DISABILITY SUPPORT,Third Party Payments,Revenue
Walsall Council,http://opendatacommunities.org/id/metropolitan-district-council/walsall,WC101-23,28/02/2019,Adult Social Care,5 CARE SERVICES LTD,01/02/2019,498.98,73507-DOMICILIARY CARE,PHYSICAL SUPPORT,Third Party Payments,Revenue
Walsall Council,http://opendatacommunities.org/id/metropolitan-district-council/walsall,WC101-24,28/02/2019,Adult Social Care,5 CARE SERVICES LTD,01/02/2019,524.73,73507-DOMICILIARY CARE,PHYSICAL SUPPORT,Third Party Payments,Revenue
Walsall Council,http://opendatacommunities.org/id/metropolitan-district-council/walsall,WC101-25,28/02/2019,Adult Social Care,5 CARE SERVICES LTD,01/02/2019,571.53,73507-DOMICILIARY CARE,PHYSICAL SUPPORT,Third Party Payments,Revenue
Walsall Council,http://opendatacommunities.org/id/metropolitan-district-council/walsall,WC101-26,28/02/2019,Adult Social Care,5 CARE SERVICES LTD,01/02/2019,578.25,73507-DOMICILIARY CARE,PHYSICAL SUPPORT,Third Party Payments,Revenue
Walsall Council,http://opendatacommunities.org/id/metropolitan-district-council/walsall,WC101-27,28/02/2019,Adult Social Care,5 CARE SERVICES LTD,01/02/2019,597.52,73507-DOMICILIARY CARE,PHYSICAL SUPPORT,Third Party Payments,Revenue
Walsall Council,http://opendatacommunities.org/id/metropolitan-district-council/walsall,WC101-28,28/02/2019,Adult Social Care,5 CARE SERVICES LTD,01/02/2019,605.45,73507-DOMICILIARY CARE,PHYSICAL SUPPORT,Third Party Payments,Revenue
Walsall Council,http://opendatacommunities.org/id/metropolitan-district-council/walsall,WC101-29,28/02/2019,Childrens,5 CARE SERVICES LTD,27/02/2019,686.00,63000-PROFESSIONAL FEES AND SERVICES,DIRECTLY COMMISSIONED NURSING SERVICES,Supplies & Services,Revenue
Walsall Council,http://opendatacommunities.org/id/metropolitan-district-council/walsall,WC101-30,28/02/2019,Adult Social Care,5 CARE SERVICES LTD,01/02/2019,692.37,73507-DOMICILIARY CARE,PHYSICAL SUPPORT,Third Party Payments,Revenue
Walsall Council,http://opendatacommunities.org/id/metropolitan-district-council/walsall,WC101-31,28/02/2019,Adult Social Care,5 CARE SERVICES LTD,01/02/2019,738.20,73507-DOMICILIARY CARE,PHYSICAL SUPPORT,Third Party Payments,Revenue
Walsall Council,http://opendatacommunities.org/id/metropolitan-district-council/walsall,WC101-32,28/02/2019,Adult Social Care,5 CARE SERVICES LTD,01/02/2019,762.80,73507-DOMICILIARY CARE,PHYSICAL SUPPORT,Third Party Payments,Revenue
Walsall Council,http://opendatacommunities.org/id/metropolitan-district-council/walsall,WC101-33,28/02/2019,Adult Social Care,5 CARE SERVICES LTD,01/02/2019,776.69,73507-DOMICILIARY CARE,PHYSICAL SUPPORT,Third Party Payments,Revenue
Walsall Council,http://opendatacommunities.org/id/metropolitan-district-council/walsall,WC101-34,28/02/2019,Adult Social Care,5 CARE SERVICES LTD,01/02/2019,815.42,73507-DOMICILIARY CARE,PHYSICAL SUPPORT,Third Party Payments,Revenue
Walsall Council,http://opendatacommunities.org/id/metropolitan-district-council/walsall,WC101-35,28/02/2019,Adult Social Care,5 CARE SERVICES LTD,01/02/2019,896.15,73507-DOMICILIARY CARE,PHYSICAL SUPPORT,Third Party Payments,Revenue
Walsall Council,http://opendatacommunities.org/id/metropolitan-district-council/walsall,WC101-36,28/02/2019,Adult Social Care,5 CARE SERVICES LTD,01/02/2019,906.62,73507-DOMICILIARY CARE,PHYSICAL SUPPORT,Third Party Payments,Revenue
Walsall Council,http://opendatacommunities.org/id/metropolitan-district-council/walsall,WC101-37,28/02/2019,Adult Social Care,5 CARE SERVICES LTD,01/02/2019,913.66,73507-DOMICILIARY CARE,PHYSICAL SUPPORT,Third Party Payments,Revenue
Walsall Council,http://opendatacommunities.org/id/metropolitan-district-council/walsall,WC101-38,28/02/2019,Adult Social Care,5 CARE SERVICES LTD,01/02/2019,973.32,73507-DOMICILIARY CARE,PHYSICAL SUPPORT,Third Party Payments,Revenue
Walsall Council,http://opendatacommunities.org/id/metropolitan-district-council/walsall,WC101-39,28/02/2019,Adult Social Care,5 CARE SERVICES LTD,01/02/2019,"1,235.46",73507-DOMICILIARY CARE,PHYSICAL SUPPORT,Third Party Payments,Revenue
Walsall Council,http://opendatacommunities.org/id/metropolitan-district-council/walsall,WC101-40,28/02/2019,Adult Social Care,5 CARE SERVICES LTD,01/02/2019,"1,409.79",73507-DOMICILIARY CARE,PHYSICAL SUPPORT,Third Party Payments,Revenue
Walsall Council,http://opendatacommunities.org/id/metropolitan-district-council/walsall,WC101-41,28/02/2019,Adult Social Care,5 CARE SERVICES LTD,01/02/2019,"1,448.32",73507-DOMICILIARY CARE,PHYSICAL SUPPORT,Third Party Payments,Revenue
Walsall Council,http://opendatacommunities.org/id/metropolitan-district-council/walsall,WC101-42,28/02/2019,Adult Social Care,5 CARE SERVICES LTD,01/02/2019,"1,563.94",73507-DOMICILIARY CARE,PHYSICAL SUPPORT,Third Party Payments,Revenue
Walsall Council,http://opendatacommunities.org/id/metropolitan-district-council/walsall,WC101-43,28/02/2019,Adult Social Care,5 CARE SERVICES LTD,01/02/2019,"1,574.72",73507-DOMICILIARY CARE,PHYSICAL SUPPORT,Third Party Payments,Revenue
Walsall Council,http://opendatacommunities.org/id/metropolitan-district-council/walsall,WC101-44,28/02/2019,Adult Social Care,5 CARE SERVICES LTD,01/02/2019,"1,708.10",73507-DOMICILIARY CARE,PHYSICAL SUPPORT,Third Party Payments,Revenue
Walsall Council,http://opendatacommunities.org/id/metropolitan-district-council/walsall,WC101-45,28/02/2019,Adult Social Care,5 CARE SERVICES LTD,01/02/2019,"1,721.70",73507-DOMICILIARY CARE,PHYSICAL SUPPORT,Third Party Payments,Revenue
Walsall Council,http://opendatacommunities.org/id/metropolitan-district-council/walsall,WC101-46,28/02/2019,Adult Social Care,5 CARE SERVICES LTD,01/02/2019,"1,743.08",73507-DOMICILIARY CARE,PHYSICAL SUPPORT,Third Party Payments,Revenue
Walsall Council,http://opendatacommunities.org/id/metropolitan-district-council/walsall,WC101-47,28/02/2019,Adult Social Care,5 CARE SERVICES LTD,01/02/2019,"1,771.28",73507-DOMICILIARY CARE,PHYSICAL SUPPORT,Third Party Payments,Revenue
Walsall Council,http://opendatacommunities.org/id/metropolitan-district-council/walsall,WC101-48,28/02/2019,Adult Social Care,5 CARE SERVICES LTD,01/02/2019,"1,813.18",73507-DOMICILIARY CARE,PHYSICAL SUPPORT,Third Party Payments,Revenue
Walsall Council,http://opendatacommunities.org/id/metropolitan-district-council/walsall,WC101-49,28/02/2019,Adult Social Care,A & A CLEANING ANGELS,06/02/2019,360.00,60539-CLEANING MATERIALS,INTERMEDIATE CARE SERVICE,Supplies & Services,Revenue
Walsall Council,http://opendatacommunities.org/id/metropolitan-district-council/walsall,WC101-50,28/02/2019,Resources and Transformation,A D T FIRE AND SECURITY PLC,18/02/2019,231.00,73002-SECURITY-PRIV CONTRACTOR FEES,CENTRALISED MAINTENANCE,Third Party Payments,Revenue
Walsall Council,http://opendatacommunities.org/id/metropolitan-district-council/walsall,WC101-51,28/02/2019,Economy & Environment,A F BLAKEMORE & SON LTD,22/02/2019,279.79,61008-CONFECTIONERY/SNACKS-PROVISIONS,OAK PARK,Supplies & Services,Revenue
Walsall Council,http://opendatacommunities.org/id/metropolitan-district-council/walsall,WC101-52,28/02/2019,Economy & Environment,A F BLAKEMORE & SON LTD,05/02/2019,312.65,61018-DRINKS-PROVISIONS,OAK PARK,Supplies & Services,Revenue
Walsall Council,http://opendatacommunities.org/id/metropolitan-district-council/walsall,WC101-53,28/02/2019,Economy & Environment,A F BLAKEMORE & SON LTD,01/02/2019,394.77,61008-CONFECTIONERY/SNACKS-PROVISIONS,OAK PARK,Supplies & Services,Revenue
Walsall Council,http://opendatacommunities.org/id/metropolitan-district-council/walsall,WC101-54,28/02/2019,Economy & Environment,A F BLAKEMORE & SON LTD,01/02/2019,430.32,61008-CONFECTIONERY/SNACKS-PROVISIONS,BLOXWICH LEISURE CENTRE,Supplies & Services,Revenue
Walsall Council,http://opendatacommunities.org/id/metropolitan-district-council/walsall,WC101-55,28/02/2019,Economy & Environment,A F BLAKEMORE & SON LTD,13/02/2019,446.74,61018-DRINKS-PROVISIONS,OAK PARK,Supplies & Services,Revenue
Walsall Council,http://opendatacommunities.org/id/metropolitan-district-council/walsall,WC101-56,28/02/2019,Economy & Environment,A F BLAKEMORE & SON LTD,21/02/2019,448.34,61016-FOOD AND BEVERAGES-PROVISIONS,BLOXWICH LEISURE CENTRE,Supplies & Services,Revenue
Walsall Council,http://opendatacommunities.org/id/metropolitan-district-council/walsall,WC101-57,28/02/2019,Economy & Environment,A F BLAKEMORE & SON LTD,22/02/2019,452.75,61008-CONFECTIONERY/SNACKS-PROVISIONS,DARLASTON LEISURE CENTRE,Supplies & Services,Revenue
Walsall Council,http://opendatacommunities.org/id/metropolitan-district-council/walsall,WC101-58,28/02/2019,Economy & Environment,A F BLAKEMORE & SON LTD,22/02/2019,458.06,61018-DRINKS-PROVISIONS,OAK PARK,Supplies & Services,Revenue
Walsall Council,http://opendatacommunities.org/id/metropolitan-district-council/walsall,WC101-59,28/02/2019,Adult Social Care,A F BLAKEMORE & SON LTD,22/02/2019,471.51,61016-FOOD AND BEVERAGES-PROVISIONS,GOSCOTE,Supplies & Services,Revenue
Walsall Council,http://opendatacommunities.org/id/metropolitan-district-council/walsall,WC101-60,28/02/2019,Adult Social Care,A F BLAKEMORE & SON LTD,08/02/2019,482.54,61016-FOOD AND BEVERAGES-PROVISIONS,GOSCOTE,Supplies & Services,Revenue
Walsall Council,http://opendatacommunities.org/id/metropolitan-district-council/walsall,WC101-61,28/02/2019,Economy & Environment,A F BLAKEMORE & SON LTD,12/02/2019,536.28,61008-CONFECTIONERY/SNACKS-PROVISIONS,BLOXWICH LEISURE CENTRE,Supplies & Services,Revenue
Walsall Council,http://opendatacommunities.org/id/metropolitan-district-council/walsall,WC101-62,28/02/2019,Economy & Environment,A F BLAKEMORE & SON LTD,22/02/2019,707.76,61008-CONFECTIONERY/SNACKS-PROVISIONS,OAK PARK,Supplies & Services,Revenue
Walsall Council,http://opendatacommunities.org/id/metropolitan-district-council/walsall,WC101-63,28/02/2019,Economy & Environment,AAINA COMMUNITY HUB,13/02/2019,"2,500.00",63253-PAYMENT TO CONTRACTOR,MENTAL HEALTH,Third Party Payments,Revenue
Walsall Council,http://opendatacommunities.org/id/metropolitan-district-council/walsall,WC101-64,28/02/2019,Childrens,REDACTED,04/02/2019,378.00,73506-DIRECT PAYMENT,FAMILY SUPPORT - DIRECT PAYMENTS,Third Party Payments,Revenue
Walsall Council,http://opendatacommunities.org/id/metropolitan-district-council/walsall,WC101-65,28/02/2019,Adult Social Care,ABBEY COURT NURSING & RESIDEN,01/02/2019,"1,876.52",73501-RESIDENTIAL EMI,PHYSICAL SUPPORT,Third Party Payments,Revenue
Walsall Council,http://opendatacommunities.org/id/metropolitan-district-council/walsall,WC101-66,28/02/2019,Adult Social Care,ABBEY COURT NURSING & RESIDEN,01/02/2019,"1,876.52",73501-RESIDENTIAL EMI,PHYSICAL SUPPORT,Third Party Payments,Revenue
Walsall Council,http://opendatacommunities.org/id/metropolitan-district-council/walsall,WC101-67,28/02/2019,Adult Social Care,ABBEY COURT NURSING & RESIDEN,01/02/2019,"1,876.52",73501-RESIDENTIAL EMI,SUPPORT WITH MEMORY & COGNITION,Third Party Payments,Revenue
Walsall Council,http://opendatacommunities.org/id/metropolitan-district-council/walsall,WC101-68,28/02/2019,Adult Social Care,ABBEY COURT NURSING & RESIDEN,01/02/2019,"2,279.68",73502-NURSING,SUPPORT WITH MEMORY & COGNITION,Third Party Payments,Revenue
Walsall Council,http://opendatacommunities.org/id/metropolitan-district-council/walsall,WC101-69,28/02/2019,Adult Social Care,ABBEY HEALTHCARE HOMES LTD,01/02/2019,"1,699.28",73502-NURSING,PHYSICAL SUPPORT,Third Party Payments,Revenue
Walsall Council,http://opendatacommunities.org/id/metropolitan-district-council/walsall,WC101-70,28/02/2019,Adult Social Care,ABBEY HEALTHCARE HOMES LTD,01/02/2019,"2,294.08",73502-NURSING,PHYSICAL SUPPORT,Third Party Payments,Revenue
Walsall Council,http://opendatacommunities.org/id/metropolitan-district-council/walsall,WC101-71,28/02/2019,Adult Social Care,ABBEY HEALTHCARE HOMES LTD,01/02/2019,"3,000.00",73500-RESIDENTIAL,LEARNING DISABILITY SUPPORT,Third Party Payments,Revenue
Walsall Council,http://opendatacommunities.org/id/metropolitan-district-council/walsall,WC101-72,28/02/2019,Adult Social Care,ABBEY HEALTHCARE HOMES LTD,01/02/2019,"3,000.00",73502-NURSING,LEARNING DISABILITY SUPPORT,Third Party Payments,Revenue
Walsall Council,http://opendatacommunities.org/id/metropolitan-district-council/walsall,WC101-73,28/02/2019,Adult Social Care,ABBEY HEALTHCARE HOMES LTD,01/02/2019,"3,000.00",73502-NURSING,LEARNING DISABILITY SUPPORT,Third Party Payments,Revenue
Walsall Council,http://opendatacommunities.org/id/metropolitan-district-council/walsall,WC101-74,28/02/2019,Adult Social Care,ABBEY HEALTHCARE HOMES LTD,01/02/2019,"3,400.00",73503-NURSING EMI,PHYSICAL SUPPORT,Third Party Payments,Revenue
Walsall Council,http://opendatacommunities.org/id/metropolitan-district-council/walsall,WC101-75,28/02/2019,Childrens,ABC DAY NURSERY (WILLENHALL) LIMITED,07/02/2019,"17,656.65",66505-OTHER-GRANTS TO OTHER ORGS,EARLY YEARS - 3 YR OLDS,Third Party Payments,Revenue
Walsall Council,http://opendatacommunities.org/id/metropolitan-district-council/walsall,WC101-76,28/02/2019,Childrens,ABC FOSTERING,21/02/2019,"2,527.20",74037-INDEPENDENT FOSTER CARE-OTH AGENCY PROVISION,EXTERNAL FOSTER CARE PROVISION,Third Party Payments,Revenue
Walsall Council,http://opendatacommunities.org/id/metropolitan-district-council/walsall,WC101-77,28/02/2019,Childrens,ABC FOSTERING,21/02/2019,"2,527.20",74037-INDEPENDENT FOSTER CARE-OTH AGENCY PROVISION,EXTERNAL FOSTER CARE PROVISION,Third Party Payments,Revenue
Walsall Council,http://opendatacommunities.org/id/metropolitan-district-council/walsall,WC101-78,28/02/2019,Childrens,ABC FOSTERING,21/02/2019,"2,635.20",74037-INDEPENDENT FOSTER CARE-OTH AGENCY PROVISION,EXTERNAL FOSTER CARE PROVISION,Third Party Payments,Revenue
Walsall Council,http://opendatacommunities.org/id/metropolitan-district-council/walsall,WC101-79,28/02/2019,Childrens,ABC FOSTERING,21/02/2019,"2,707.20",74037-INDEPENDENT FOSTER CARE-OTH AGENCY PROVISION,EXTERNAL FOSTER CARE PROVISION,Third Party Payments,Revenue
Walsall Council,http://opendatacommunities.org/id/metropolitan-district-council/walsall,WC101-80,28/02/2019,Childrens,ABC FOSTERING,21/02/2019,"2,854.80",74037-INDEPENDENT FOSTER CARE-OTH AGENCY PROVISION,EXTERNAL FOSTER CARE PROVISION,Third Party Payments,Revenue
Walsall Council,http://opendatacommunities.org/id/metropolitan-district-council/walsall,WC101-81,28/02/2019,Childrens,ABC FOSTERING,21/02/2019,"3,042.00",74037-INDEPENDENT FOSTER CARE-OTH AGENCY PROVISION,EXTERNAL FOSTER CARE PROVISION,Third Party Payments,Revenue
Walsall Council,http://opendatacommunities.org/id/metropolitan-district-council/walsall,WC101-82,28/02/2019,Childrens,ABC FOSTERING,21/02/2019,"3,264.00",74037-INDEPENDENT FOSTER CARE-OTH AGENCY PROVISION,EXTERNAL FOSTER CARE PROVISION,Third Party Payments,Revenue
Walsall Council,http://opendatacommunities.org/id/metropolitan-district-council/walsall,WC101-83,28/02/2019,Childrens,ABC TEACHERS LIMITED,01/02/2019,"2,610.90",63000-PROFESSIONAL FEES AND SERVICES,SCHOOL IMPROVEMENT-VIRTUAL SCHOOL,Supplies & Services,Revenue
Walsall Council,http://opendatacommunities.org/id/metropolitan-district-council/walsall,WC101-84,28/02/2019,Adult Social Care,REDACTED,04/02/2019,"1,999.20",73506-DIRECT PAYMENT,LEARNING DISABILITY SUPPORT,Third Party Payments,Revenue
Walsall Council,http://opendatacommunities.org/id/metropolitan-district-council/walsall,WC101-85,28/02/2019,Childrens,ABLEWELL CARS,08/02/2019,"6,716.12",52000-WITH DRIVER-HIRE OF VEHICLES,HOME TO SCHOOL TRANSPORT,Transport,Revenue
Walsall Council,http://opendatacommunities.org/id/metropolitan-district-council/walsall,WC101-86,28/02/2019,Economy & Environment,ABRSM,20/02/2019,266.00,63124-FEES & LICENCES-SERVICES,MUSIC HUB FOREST ARTS,Supplies & Services,Revenue
Walsall Council,http://opendatacommunities.org/id/metropolitan-district-council/walsall,WC101-87,28/02/2019,Economy & Environment,ABRSM,05/02/2019,"1,766.00",63124-FEES & LICENCES-SERVICES,MUSIC HUB FOREST ARTS,Supplies & Services,Revenue
Walsall Council,http://opendatacommunities.org/id/metropolitan-district-council/walsall,WC101-88,28/02/2019,Childrens,ABU BAKR NURSERY,05/02/2019,"1,729.20",66505-OTHER-GRANTS TO OTHER ORGS,EARLY YEARS - 2 YR OLDS,Third Party Payments,Revenue
Walsall Council,http://opendatacommunities.org/id/metropolitan-district-council/walsall,WC101-89,28/02/2019,Childrens,ABU BAKR NURSERY,07/02/2019,"14,355.00",66505-OTHER-GRANTS TO OTHER ORGS,EARLY YEARS - 3 YR OLDS,Third Party Payments,Revenue
Walsall Council,http://opendatacommunities.org/id/metropolitan-district-council/walsall,WC101-90,28/02/2019,Economy & Environment,AC COACHING & SPORTS DEVELOPMENT LIMITED,04/02/2019,600.00,73025-PROFESSIONAL SERVICES-PRIV CONTRACTOR & OTHER AGENCIES,SCHOOL GAMES,Third Party Payments,Revenue
Walsall Council,http://opendatacommunities.org/id/metropolitan-district-council/walsall,WC101-91,28/02/2019,Economy & Environment,AC JADE TRADING LIMITED,27/02/2019,359.75,60529-SHOP STOCK-MATERIALS,NAG - NEW ART GALLERY SHOP STOCK,Supplies & Services,Revenue
Walsall Council,http://opendatacommunities.org/id/metropolitan-district-council/walsall,WC101-92,28/02/2019,Adult Social Care,ACCORD HOUSING ASSOCIATION LTD#135,06/02/2019,267.12,73508-COMMUNITY SUPPORTED LIVING/SUPPORTED ACCOMMODATION,MENTAL HEALTH SUPPORT,Third Party Payments,Revenue
Walsall Council,http://opendatacommunities.org/id/metropolitan-district-council/walsall,WC101-93,28/02/2019,Adult Social Care,ACCORD HOUSING ASSOCIATION LTD#135,05/02/2019,549.60,73373-RESIDENTIAL & NURSING CARE PLACEMENTS,LD PACKAGE/PLACEMENT COSTS,Third Party Payments,Revenue
Walsall Council,http://opendatacommunities.org/id/metropolitan-district-council/walsall,WC101-94,28/02/2019,Adult Social Care,ACCORD HOUSING ASSOCIATION LTD#135,01/02/2019,596.92,73508-COMMUNITY SUPPORTED LIVING/SUPPORTED ACCOMMODATION,MENTAL HEALTH SUPPORT,Third Party Payments,Revenue
Walsall Council,http://opendatacommunities.org/id/metropolitan-district-council/walsall,WC101-95,28/02/2019,Adult Social Care,ACCORD HOUSING ASSOCIATION LTD#135,01/02/2019,717.80,73508-COMMUNITY SUPPORTED LIVING/SUPPORTED ACCOMMODATION,MENTAL HEALTH SUPPORT,Third Party Payments,Revenue
Walsall Council,http://opendatacommunities.org/id/metropolitan-district-council/walsall,WC101-96,28/02/2019,Adult Social Care,ACCORD HOUSING ASSOCIATION LTD#135,01/02/2019,793.36,73508-COMMUNITY SUPPORTED LIVING/SUPPORTED ACCOMMODATION,MENTAL HEALTH SUPPORT,Third Party Payments,Revenue
Walsall Council,http://opendatacommunities.org/id/metropolitan-district-council/walsall,WC101-97,28/02/2019,Adult Social Care,ACCORD HOUSING ASSOCIATION LTD#135,01/02/2019,982.28,73508-COMMUNITY SUPPORTED LIVING/SUPPORTED ACCOMMODATION,MENTAL HEALTH SUPPORT,Third Party Payments,Revenue
Walsall Council,http://opendatacommunities.org/id/metropolitan-district-council/walsall,WC101-98,28/02/2019,Adult Social Care,ACCORD HOUSING ASSOCIATION LTD#135,06/02/2019,"1,567.84",73508-COMMUNITY SUPPORTED LIVING/SUPPORTED ACCOMMODATION,MENTAL HEALTH SUPPORT,Third Party Payments,Revenue
Walsall Council,http://opendatacommunities.org/id/metropolitan-district-council/walsall,WC101-99,28/02/2019,Adult Social Care,ACCORD HOUSING ASSOCIATION LTD#135,06/02/2019,"1,567.84",73508-COMMUNITY SUPPORTED LIVING/SUPPORTED ACCOMMODATION,MENTAL HEALTH SUPPORT,Third Party Payments,Revenue
Walsall Council,http://opendatacommunities.org/id/metropolitan-district-council/walsall,WC101-100,28/02/2019,Adult Social Care,ACCORD HOUSING ASSOCIATION LTD#135,01/02/2019,"4,505.40",73500-RESIDENTIAL,LEARNING DISABILITY SUPPORT,Third Party Payments,Revenue
Walsall Council,http://opendatacommunities.org/id/metropolitan-district-council/walsall,WC101-101,28/02/2019,Adult Social Care,ACCORD HOUSING ASSOCIATION LTD#135,01/02/2019,"4,505.40",73500-RESIDENTIAL,LEARNING DISABILITY SUPPORT,Third Party Payments,Revenue
Walsall Council,http://opendatacommunities.org/id/metropolitan-district-council/walsall,WC101-102,28/02/2019,Adult Social Care,ACCORD HOUSING ASSOCIATION LTD#135,01/02/2019,"4,505.40",73500-RESIDENTIAL,LEARNING DISABILITY SUPPORT,Third Party Payments,Revenue
Walsall Council,http://opendatacommunities.org/id/metropolitan-district-council/walsall,WC101-103,28/02/2019,Adult Social Care,ACCORD HOUSING ASSOCIATION LTD#135,01/02/2019,"4,505.40",73500-RESIDENTIAL,LEARNING DISABILITY SUPPORT,Third Party Payments,Revenue
Walsall Council,http://opendatacommunities.org/id/metropolitan-district-council/walsall,WC101-104,28/02/2019,Adult Social Care,ACCORD HOUSING ASSOCIATION LTD#135,26/02/2019,"4,842.50",70000-SOCIAL SERVICES-FEES TO VOLUNTARY BODIES,COMPLEX NEEDS SLA,Third Party Payments,Revenue
Walsall Council,http://opendatacommunities.org/id/metropolitan-district-council/walsall,WC101-105,28/02/2019,Adult Social Care,ACCORD HOUSING ASSOCIATION LTD#135,01/02/2019,"6,288.08",73500-RESIDENTIAL,LEARNING DISABILITY SUPPORT,Third Party Payments,Revenue
Walsall Council,http://opendatacommunities.org/id/metropolitan-district-council/walsall,WC101-106,28/02/2019,Adult Social Care,ACCORD HOUSING ASSOCIATION LTD#135,01/02/2019,"6,288.08",73500-RESIDENTIAL,LEARNING DISABILITY SUPPORT,Third Party Payments,Revenue
Walsall Council,http://opendatacommunities.org/id/metropolitan-district-council/walsall,WC101-107,28/02/2019,Adult Social Care,ACCORD HOUSING ASSOCIATION LTD#135,01/02/2019,"6,288.08",73500-RESIDENTIAL,LEARNING DISABILITY SUPPORT,Third Party Payments,Revenue
Walsall Council,http://opendatacommunities.org/id/metropolitan-district-council/walsall,WC101-108,28/02/2019,Childrens,ACCORD HOUSING ASSOCIATION LTD#135,21/02/2019,"6,655.50",63102-CONSULTANTS FEES - CORPORATE,TOXIC TRIO,Supplies & Services,Revenue
Walsall Council,http://opendatacommunities.org/id/metropolitan-district-council/walsall,WC101-109,28/02/2019,Economy & Environment,ACCORD HOUSING ASSOCIATION LTD#135,05/02/2019,"7,437.50",63253-PAYMENT TO CONTRACTOR,MENTAL HEALTH,Third Party Payments,Revenue
Walsall Council,http://opendatacommunities.org/id/metropolitan-district-council/walsall,WC101-110,28/02/2019,Adult Social Care,ACCORD HOUSING ASSOCIATION LTD#135,05/02/2019,"13,268.91",73373-RESIDENTIAL & NURSING CARE PLACEMENTS,LD PACKAGE/PLACEMENT COSTS,Third Party Payments,Revenue
Walsall Council,http://opendatacommunities.org/id/metropolitan-district-council/walsall,WC101-111,28/02/2019,Adult Social Care,ACEPAY LTD (COTTAGE NUR HOME),01/02/2019,509.92,73502-NURSING,SUPPORT WITH MEMORY & COGNITION,Third Party Payments,Revenue
Walsall Council,http://opendatacommunities.org/id/metropolitan-district-council/walsall,WC101-112,28/02/2019,Adult Social Care,ACEPAY LTD (COTTAGE NUR HOME),01/02/2019,"1,688.84",73500-RESIDENTIAL,PHYSICAL SUPPORT,Third Party Payments,Revenue
Walsall Council,http://opendatacommunities.org/id/metropolitan-district-council/walsall,WC101-113,28/02/2019,Adult Social Care,ACEPAY LTD (COTTAGE NUR HOME),01/02/2019,"1,748.30",73502-NURSING,PHYSICAL SUPPORT,Third Party Payments,Revenue
Walsall Council,http://opendatacommunities.org/id/metropolitan-district-council/walsall,WC101-114,28/02/2019,Adult Social Care,ACEPAY LTD (COTTAGE NUR HOME),01/02/2019,"2,039.68",73502-NURSING,PHYSICAL SUPPORT,Third Party Payments,Revenue
Walsall Council,http://opendatacommunities.org/id/metropolitan-district-council/walsall,WC101-115,28/02/2019,Adult Social Care,ACEPAY LTD (COTTAGE NUR HOME),01/02/2019,"2,039.68",73502-NURSING,SUPPORT WITH MEMORY & COGNITION,Third Party Payments,Revenue
Walsall Council,http://opendatacommunities.org/id/metropolitan-district-council/walsall,WC101-116,28/02/2019,Adult Social Care,ACEPAY LTD (COTTAGE NUR HOME),01/02/2019,"2,039.68",73502-NURSING,SUPPORT WITH MEMORY & COGNITION,Third Party Payments,Revenue
Walsall Council,http://opendatacommunities.org/id/metropolitan-district-council/walsall,WC101-117,28/02/2019,Adult Social Care,ACEPAY LTD (COTTAGE NUR HOME),01/02/2019,"2,039.68",73502-NURSING,PHYSICAL SUPPORT,Third Party Payments,Revenue
Walsall Council,http://opendatacommunities.org/id/metropolitan-district-council/walsall,WC101-118,28/02/2019,Adult Social Care,ACEPAY LTD (COTTAGE NUR HOME),01/02/2019,"2,039.68",73502-NURSING,PHYSICAL SUPPORT,Third Party Payments,Revenue
Walsall Council,http://opendatacommunities.org/id/metropolitan-district-council/walsall,WC101-119,28/02/2019,Adult Social Care,ACEPAY LTD (COTTAGE NUR HOME),01/02/2019,"2,039.68",73502-NURSING,PHYSICAL SUPPORT,Third Party Payments,Revenue
Walsall Council,http://opendatacommunities.org/id/metropolitan-district-council/walsall,WC101-120,28/02/2019,Adult Social Care,ACEPAY LTD (COTTAGE NUR HOME),01/02/2019,"2,039.68",73502-NURSING,PHYSICAL SUPPORT,Third Party Payments,Revenue
Walsall Council,http://opendatacommunities.org/id/metropolitan-district-council/walsall,WC101-121,28/02/2019,Adult Social Care,ACEPAY LTD (COTTAGE NUR HOME),01/02/2019,"2,039.68",73502-NURSING,PHYSICAL SUPPORT,Third Party Payments,Revenue
Walsall Council,http://opendatacommunities.org/id/metropolitan-district-council/walsall,WC101-122,28/02/2019,Adult Social Care,ACEPAY LTD (COTTAGE NUR HOME),01/02/2019,"2,039.68",73502-NURSING,PHYSICAL SUPPORT,Third Party Payments,Revenue
Walsall Council,http://opendatacommunities.org/id/metropolitan-district-council/walsall,WC101-123,28/02/2019,Adult Social Care,ACEPAY LTD (COTTAGE NUR HOME),01/02/2019,"2,039.68",73502-NURSING,SOCIAL SUPPORT,Third Party Payments,Revenue
Walsall Council,http://opendatacommunities.org/id/metropolitan-district-council/walsall,WC101-124,28/02/2019,Adult Social Care,ACEPAY LTD (COTTAGE NUR HOME),01/02/2019,"2,039.68",73502-NURSING,MENTAL HEALTH SUPPORT,Third Party Payments,Revenue
Walsall Council,http://opendatacommunities.org/id/metropolitan-district-council/walsall,WC101-125,28/02/2019,Adult Social Care,ACEPAY LTD (COTTAGE NUR HOME),01/02/2019,"2,659.88",73502-NURSING,PHYSICAL SUPPORT,Third Party Payments,Revenue
Walsall Council,http://opendatacommunities.org/id/metropolitan-district-council/walsall,WC101-126,28/02/2019,Adult Social Care,ACEPAY LTD (COTTAGE NUR HOME),22/02/2019,"3,244.38",73025-PROFESSIONAL SERVICES-PRIV CONTRACTOR & OTHER AGENCIES,TRANSITIONAL CARE SUPPORT TEAM,Third Party Payments,Revenue
Walsall Council,http://opendatacommunities.org/id/metropolitan-district-council/walsall,WC101-127,28/02/2019,Adult Social Care,ACORN REST HOME,01/02/2019,"1,688.84",73500-RESIDENTIAL,PHYSICAL SUPPORT,Third Party Payments,Revenue
Walsall Council,http://opendatacommunities.org/id/metropolitan-district-council/walsall,WC101-128,28/02/2019,Adult Social Care,ACORN REST HOME,01/02/2019,"2,140.00",73500-RESIDENTIAL,SOCIAL SUPPORT,Third Party Payments,Revenue
Walsall Council,http://opendatacommunities.org/id/metropolitan-district-council/walsall,WC101-129,28/02/2019,Childrens,ACORNS CHILDRENS HOSPICE TRUST,05/02/2019,750.00,63000-PROFESSIONAL FEES AND SERVICES,DIRECTLY COMMISSIONED NURSING SERVICES,Supplies & Services,Revenue
Walsall Council,http://opendatacommunities.org/id/metropolitan-district-council/walsall,WC101-130,28/02/2019,Economy & Environment,ACTION DIGITAL MEDIA LTD,07/02/2019,654.70,"62521-INTERPRETATION,TRANSLATION & HUMAN AIDS TO TRANSCRIPTION",EXHIBITIONS - SPECIAL PROJECTS/PARTNERSHIPS,Supplies & Services,Revenue
Walsall Council,http://opendatacommunities.org/id/metropolitan-district-council/walsall,WC101-131,28/02/2019,Economy & Environment,ACTION MIDLANDS LTD,22/02/2019,150.00,63000-PROFESSIONAL FEES AND SERVICES,YEI (IMPACT) PROGRAMME,Supplies & Services,Revenue
Walsall Council,http://opendatacommunities.org/id/metropolitan-district-council/walsall,WC101-132,28/02/2019,Economy & Environment,ACTION MIDLANDS LTD,22/02/2019,150.00,63000-PROFESSIONAL FEES AND SERVICES,YEI ESF FUNDING,Supplies & Services,Revenue
Walsall Council,http://opendatacommunities.org/id/metropolitan-district-council/walsall,WC101-133,28/02/2019,Childrens,ACTIVE CARE SOLUTIONS LTD,21/02/2019,"2,757.90",74037-INDEPENDENT FOSTER CARE-OTH AGENCY PROVISION,EXTERNAL FOSTER CARE PROVISION,Third Party Payments,Revenue
Walsall Council,http://opendatacommunities.org/id/metropolitan-district-council/walsall,WC101-134,28/02/2019,Childrens,ACTIVE CARE SOLUTIONS LTD,21/02/2019,"3,132.00",74037-INDEPENDENT FOSTER CARE-OTH AGENCY PROVISION,EXTERNAL FOSTER CARE PROVISION,Third Party Payments,Revenue
Walsall Council,http://opendatacommunities.org/id/metropolitan-district-council/walsall,WC101-135,28/02/2019,Childrens,ACTIVE CARE SOLUTIONS LTD,21/02/2019,"11,448.00",74037-INDEPENDENT FOSTER CARE-OTH AGENCY PROVISION,EXTERNAL FOSTER CARE PROVISION,Third Party Payments,Revenue
Walsall Council,http://opendatacommunities.org/id/metropolitan-district-council/walsall,WC101-136,28/02/2019,Adult Social Care,REDACTED,04/02/2019,442.52,73506-DIRECT PAYMENT,LEARNING DISABILITY SUPPORT,Third Party Payments,Revenue
Walsall Council,http://opendatacommunities.org/id/metropolitan-district-council/walsall,WC101-137,28/02/2019,Resources and Transformation,ADELIE FOODS LTD,25/02/2019,543.58,61305-CATERING,TOWN HALL RESTAURANT BISTRO,Supplies & Services,Revenue
Walsall Council,http://opendatacommunities.org/id/metropolitan-district-council/walsall,WC101-138,28/02/2019,Resources and Transformation,ADELIE FOODS LTD,25/02/2019,692.49,61305-CATERING,TOWN HALL RESTAURANT BISTRO,Supplies & Services,Revenue
Walsall Council,http://opendatacommunities.org/id/metropolitan-district-council/walsall,WC101-139,28/02/2019,Resources and Transformation,ADELIE FOODS LTD,22/02/2019,791.92,61305-CATERING,TOWN HALL RESTAURANT BISTRO,Supplies & Services,Revenue
Walsall Council,http://opendatacommunities.org/id/metropolitan-district-council/walsall,WC101-140,28/02/2019,Resources and Transformation,ADELIE FOODS LTD,22/02/2019,799.97,61305-CATERING,TOWN HALL RESTAURANT BISTRO,Supplies & Services,Revenue
Walsall Council,http://opendatacommunities.org/id/metropolitan-district-council/walsall,WC101-141,28/02/2019,Adult Social Care,REDACTED,04/02/2019,"1,018.60",73506-DIRECT PAYMENT,PHYSICAL SUPPORT,Third Party Payments,Revenue
Walsall Council,http://opendatacommunities.org/id/metropolitan-district-council/walsall,WC101-142,28/02/2019,Childrens,ADMIRAL SELF STORAGE LTD,26/02/2019,228.78,63000-PROFESSIONAL FEES AND SERVICES,CHILDREN'S COMMISSIONING,Supplies & Services,Revenue
Walsall Council,http://opendatacommunities.org/id/metropolitan-district-council/walsall,WC101-143,28/02/2019,Childrens,ADMIRAL SELF STORAGE LTD,05/02/2019,"1,384.39",60009-LEASING/HIRE/RENTAL-EQUIPMENT,TRANSITION AND LEAVING CARE PLACEMENTS,Supplies & Services,Revenue
Walsall Council,http://opendatacommunities.org/id/metropolitan-district-council/walsall,WC101-144,28/02/2019,Childrens,REDACTED,12/02/2019,333.12,74510-RESIDENTS ORDERS,ADOPTION ALLOWANCES,Third Party Payments,Revenue
Walsall Council,http://opendatacommunities.org/id/metropolitan-district-council/walsall,WC101-145,28/02/2019,Childrens,REDACTED,12/02/2019,361.12,74510-RESIDENTS ORDERS,ADOPTION ALLOWANCES,Third Party Payments,Revenue
Walsall Council,http://opendatacommunities.org/id/metropolitan-district-council/walsall,WC101-146,28/02/2019,Adult Social Care,REDACTED,04/02/2019,"2,083.20",73506-DIRECT PAYMENT,LEARNING DISABILITY SUPPORT,Third Party Payments,Revenue
Walsall Council,http://opendatacommunities.org/id/metropolitan-district-council/walsall,WC101-147,28/02/2019,Adult Social Care,ADVANCE HEALTH CARE (UK) LTD,06/02/2019,-572.55,73025-PROFESSIONAL SERVICES-PRIV CONTRACTOR & OTHER AGENCIES,COMMUNITY INTERMEDIATE CARE,Third Party Payments,Revenue
Walsall Council,http://opendatacommunities.org/id/metropolitan-district-council/walsall,WC101-148,28/02/2019,Adult Social Care,ADVANCE HEALTH CARE (UK) LTD,06/02/2019,252.90,73025-PROFESSIONAL SERVICES-PRIV CONTRACTOR & OTHER AGENCIES,COMMUNITY INTERMEDIATE CARE,Third Party Payments,Revenue
Walsall Council,http://opendatacommunities.org/id/metropolitan-district-council/walsall,WC101-149,28/02/2019,Adult Social Care,ADVANCE HEALTH CARE (UK) LTD,05/02/2019,281.00,73025-PROFESSIONAL SERVICES-PRIV CONTRACTOR & OTHER AGENCIES,COMMUNITY INTERMEDIATE CARE,Third Party Payments,Revenue
Walsall Council,http://opendatacommunities.org/id/metropolitan-district-council/walsall,WC101-150,28/02/2019,Adult Social Care,ADVANCE HEALTH CARE (UK) LTD,25/02/2019,288.03,73025-PROFESSIONAL SERVICES-PRIV CONTRACTOR & OTHER AGENCIES,COMMUNITY INTERMEDIATE CARE,Third Party Payments,Revenue
Walsall Council,http://opendatacommunities.org/id/metropolitan-district-council/walsall,WC101-151,28/02/2019,Adult Social Care,ADVANCE HEALTH CARE (UK) LTD,25/02/2019,295.05,73025-PROFESSIONAL SERVICES-PRIV CONTRACTOR & OTHER AGENCIES,COMMUNITY INTERMEDIATE CARE,Third Party Payments,Revenue
Walsall Council,http://opendatacommunities.org/id/metropolitan-district-council/walsall,WC101-152,28/02/2019,Adult Social Care,ADVANCE HEALTH CARE (UK) LTD,13/02/2019,295.20,73025-PROFESSIONAL SERVICES-PRIV CONTRACTOR & OTHER AGENCIES,RAPID RESPONSE,Third Party Payments,Revenue
Walsall Council,http://opendatacommunities.org/id/metropolitan-district-council/walsall,WC101-153,28/02/2019,Adult Social Care,ADVANCE HEALTH CARE (UK) LTD,06/02/2019,344.23,73025-PROFESSIONAL SERVICES-PRIV CONTRACTOR & OTHER AGENCIES,COMMUNITY INTERMEDIATE CARE,Third Party Payments,Revenue
Walsall Council,http://opendatacommunities.org/id/metropolitan-district-council/walsall,WC101-154,28/02/2019,Adult Social Care,ADVANCE HEALTH CARE (UK) LTD,13/02/2019,344.23,73025-PROFESSIONAL SERVICES-PRIV CONTRACTOR & OTHER AGENCIES,COMMUNITY INTERMEDIATE CARE,Third Party Payments,Revenue
Walsall Council,http://opendatacommunities.org/id/metropolitan-district-council/walsall,WC101-155,28/02/2019,Adult Social Care,ADVANCE HEALTH CARE (UK) LTD,13/02/2019,344.23,73025-PROFESSIONAL SERVICES-PRIV CONTRACTOR & OTHER AGENCIES,COMMUNITY INTERMEDIATE CARE,Third Party Payments,Revenue
Walsall Council,http://opendatacommunities.org/id/metropolitan-district-council/walsall,WC101-156,28/02/2019,Adult Social Care,ADVANCE HEALTH CARE (UK) LTD,25/02/2019,344.23,73025-PROFESSIONAL SERVICES-PRIV CONTRACTOR & OTHER AGENCIES,COMMUNITY INTERMEDIATE CARE,Third Party Payments,Revenue
Walsall Council,http://opendatacommunities.org/id/metropolitan-district-council/walsall,WC101-157,28/02/2019,Adult Social Care,ADVANCE HEALTH CARE (UK) LTD,01/02/2019,386.66,73507-DOMICILIARY CARE,PHYSICAL SUPPORT,Third Party Payments,Revenue
Walsall Council,http://opendatacommunities.org/id/metropolitan-district-council/walsall,WC101-158,28/02/2019,Adult Social Care,ADVANCE HEALTH CARE (UK) LTD,01/02/2019,390.17,73507-DOMICILIARY CARE,PHYSICAL SUPPORT,Third Party Payments,Revenue
Walsall Council,http://opendatacommunities.org/id/metropolitan-district-council/walsall,WC101-159,28/02/2019,Adult Social Care,ADVANCE HEALTH CARE (UK) LTD,01/02/2019,393.68,73507-DOMICILIARY CARE,SENSORY SUPPORT,Third Party Payments,Revenue
Walsall Council,http://opendatacommunities.org/id/metropolitan-district-council/walsall,WC101-160,28/02/2019,Adult Social Care,ADVANCE HEALTH CARE (UK) LTD,13/02/2019,400.43,73025-PROFESSIONAL SERVICES-PRIV CONTRACTOR & OTHER AGENCIES,COMMUNITY INTERMEDIATE CARE,Third Party Payments,Revenue
Walsall Council,http://opendatacommunities.org/id/metropolitan-district-council/walsall,WC101-161,28/02/2019,Adult Social Care,ADVANCE HEALTH CARE (UK) LTD,13/02/2019,407.45,73025-PROFESSIONAL SERVICES-PRIV CONTRACTOR & OTHER AGENCIES,COMMUNITY INTERMEDIATE CARE,Third Party Payments,Revenue
Walsall Council,http://opendatacommunities.org/id/metropolitan-district-council/walsall,WC101-162,28/02/2019,Adult Social Care,ADVANCE HEALTH CARE (UK) LTD,13/02/2019,407.45,73025-PROFESSIONAL SERVICES-PRIV CONTRACTOR & OTHER AGENCIES,COMMUNITY INTERMEDIATE CARE,Third Party Payments,Revenue
Walsall Council,http://opendatacommunities.org/id/metropolitan-district-council/walsall,WC101-163,28/02/2019,Adult Social Care,ADVANCE HEALTH CARE (UK) LTD,13/02/2019,407.45,73025-PROFESSIONAL SERVICES-PRIV CONTRACTOR & OTHER AGENCIES,COMMUNITY INTERMEDIATE CARE,Third Party Payments,Revenue
Walsall Council,http://opendatacommunities.org/id/metropolitan-district-council/walsall,WC101-164,28/02/2019,Adult Social Care,ADVANCE HEALTH CARE (UK) LTD,13/02/2019,407.45,73025-PROFESSIONAL SERVICES-PRIV CONTRACTOR & OTHER AGENCIES,COMMUNITY INTERMEDIATE CARE,Third Party Payments,Revenue
Walsall Council,http://opendatacommunities.org/id/metropolitan-district-council/walsall,WC101-165,28/02/2019,Adult Social Care,ADVANCE HEALTH CARE (UK) LTD,13/02/2019,407.45,73025-PROFESSIONAL SERVICES-PRIV CONTRACTOR & OTHER AGENCIES,COMMUNITY INTERMEDIATE CARE,Third Party Payments,Revenue
Walsall Council,http://opendatacommunities.org/id/metropolitan-district-council/walsall,WC101-166,28/02/2019,Adult Social Care,ADVANCE HEALTH CARE (UK) LTD,22/02/2019,407.45,73025-PROFESSIONAL SERVICES-PRIV CONTRACTOR & OTHER AGENCIES,COMMUNITY INTERMEDIATE CARE,Third Party Payments,Revenue
Walsall Council,http://opendatacommunities.org/id/metropolitan-district-council/walsall,WC101-167,28/02/2019,Adult Social Care,ADVANCE HEALTH CARE (UK) LTD,22/02/2019,407.45,73025-PROFESSIONAL SERVICES-PRIV CONTRACTOR & OTHER AGENCIES,COMMUNITY INTERMEDIATE CARE,Third Party Payments,Revenue
Walsall Council,http://opendatacommunities.org/id/metropolitan-district-council/walsall,WC101-168,28/02/2019,Adult Social Care,ADVANCE HEALTH CARE (UK) LTD,13/02/2019,414.48,73025-PROFESSIONAL SERVICES-PRIV CONTRACTOR & OTHER AGENCIES,COMMUNITY INTERMEDIATE CARE,Third Party Payments,Revenue
Walsall Council,http://opendatacommunities.org/id/metropolitan-district-council/walsall,WC101-169,28/02/2019,Adult Social Care,ADVANCE HEALTH CARE (UK) LTD,05/02/2019,442.58,73025-PROFESSIONAL SERVICES-PRIV CONTRACTOR & OTHER AGENCIES,COMMUNITY INTERMEDIATE CARE,Third Party Payments,Revenue
Walsall Council,http://opendatacommunities.org/id/metropolitan-district-council/walsall,WC101-170,28/02/2019,Adult Social Care,ADVANCE HEALTH CARE (UK) LTD,05/02/2019,442.58,73025-PROFESSIONAL SERVICES-PRIV CONTRACTOR & OTHER AGENCIES,COMMUNITY INTERMEDIATE CARE,Third Party Payments,Revenue
Walsall Council,http://opendatacommunities.org/id/metropolitan-district-council/walsall,WC101-171,28/02/2019,Adult Social Care,ADVANCE HEALTH CARE (UK) LTD,05/02/2019,442.58,73025-PROFESSIONAL SERVICES-PRIV CONTRACTOR & OTHER AGENCIES,COMMUNITY INTERMEDIATE CARE,Third Party Payments,Revenue
Walsall Council,http://opendatacommunities.org/id/metropolitan-district-council/walsall,WC101-172,28/02/2019,Adult Social Care,ADVANCE HEALTH CARE (UK) LTD,06/02/2019,442.58,73025-PROFESSIONAL SERVICES-PRIV CONTRACTOR & OTHER AGENCIES,COMMUNITY INTERMEDIATE CARE,Third Party Payments,Revenue
Walsall Council,http://opendatacommunities.org/id/metropolitan-district-council/walsall,WC101-173,28/02/2019,Adult Social Care,ADVANCE HEALTH CARE (UK) LTD,06/02/2019,442.58,73025-PROFESSIONAL SERVICES-PRIV CONTRACTOR & OTHER AGENCIES,COMMUNITY INTERMEDIATE CARE,Third Party Payments,Revenue
Walsall Council,http://opendatacommunities.org/id/metropolitan-district-council/walsall,WC101-174,28/02/2019,Adult Social Care,ADVANCE HEALTH CARE (UK) LTD,13/02/2019,442.58,73025-PROFESSIONAL SERVICES-PRIV CONTRACTOR & OTHER AGENCIES,COMMUNITY INTERMEDIATE CARE,Third Party Payments,Revenue
Walsall Council,http://opendatacommunities.org/id/metropolitan-district-council/walsall,WC101-175,28/02/2019,Adult Social Care,ADVANCE HEALTH CARE (UK) LTD,13/02/2019,442.58,73025-PROFESSIONAL SERVICES-PRIV CONTRACTOR & OTHER AGENCIES,COMMUNITY INTERMEDIATE CARE,Third Party Payments,Revenue
Walsall Council,http://opendatacommunities.org/id/metropolitan-district-council/walsall,WC101-176,28/02/2019,Adult Social Care,ADVANCE HEALTH CARE (UK) LTD,13/02/2019,442.58,73025-PROFESSIONAL SERVICES-PRIV CONTRACTOR & OTHER AGENCIES,COMMUNITY INTERMEDIATE CARE,Third Party Payments,Revenue
Walsall Council,http://opendatacommunities.org/id/metropolitan-district-council/walsall,WC101-177,28/02/2019,Adult Social Care,ADVANCE HEALTH CARE (UK) LTD,13/02/2019,442.58,73025-PROFESSIONAL SERVICES-PRIV CONTRACTOR & OTHER AGENCIES,COMMUNITY INTERMEDIATE CARE,Third Party Payments,Revenue
Walsall Council,http://opendatacommunities.org/id/metropolitan-district-council/walsall,WC101-178,28/02/2019,Adult Social Care,ADVANCE HEALTH CARE (UK) LTD,13/02/2019,442.58,73025-PROFESSIONAL SERVICES-PRIV CONTRACTOR & OTHER AGENCIES,COMMUNITY INTERMEDIATE CARE,Third Party Payments,Revenue
Walsall Council,http://opendatacommunities.org/id/metropolitan-district-council/walsall,WC101-179,28/02/2019,Adult Social Care,ADVANCE HEALTH CARE (UK) LTD,13/02/2019,442.58,73025-PROFESSIONAL SERVICES-PRIV CONTRACTOR & OTHER AGENCIES,COMMUNITY INTERMEDIATE CARE,Third Party Payments,Revenue
Walsall Council,http://opendatacommunities.org/id/metropolitan-district-council/walsall,WC101-180,28/02/2019,Adult Social Care,ADVANCE HEALTH CARE (UK) LTD,13/02/2019,442.58,73025-PROFESSIONAL SERVICES-PRIV CONTRACTOR & OTHER AGENCIES,COMMUNITY INTERMEDIATE CARE,Third Party Payments,Revenue
Walsall Council,http://opendatacommunities.org/id/metropolitan-district-council/walsall,WC101-181,28/02/2019,Adult Social Care,ADVANCE HEALTH CARE (UK) LTD,13/02/2019,442.58,73025-PROFESSIONAL SERVICES-PRIV CONTRACTOR & OTHER AGENCIES,COMMUNITY INTERMEDIATE CARE,Third Party Payments,Revenue
Walsall Council,http://opendatacommunities.org/id/metropolitan-district-council/walsall,WC101-182,28/02/2019,Adult Social Care,ADVANCE HEALTH CARE (UK) LTD,22/02/2019,442.58,73025-PROFESSIONAL SERVICES-PRIV CONTRACTOR & OTHER AGENCIES,COMMUNITY INTERMEDIATE CARE,Third Party Payments,Revenue
Walsall Council,http://opendatacommunities.org/id/metropolitan-district-council/walsall,WC101-183,28/02/2019,Adult Social Care,ADVANCE HEALTH CARE (UK) LTD,22/02/2019,442.58,73025-PROFESSIONAL SERVICES-PRIV CONTRACTOR & OTHER AGENCIES,COMMUNITY INTERMEDIATE CARE,Third Party Payments,Revenue
Walsall Council,http://opendatacommunities.org/id/metropolitan-district-council/walsall,WC101-184,28/02/2019,Adult Social Care,ADVANCE HEALTH CARE (UK) LTD,22/02/2019,442.58,73025-PROFESSIONAL SERVICES-PRIV CONTRACTOR & OTHER AGENCIES,COMMUNITY INTERMEDIATE CARE,Third Party Payments,Revenue
Walsall Council,http://opendatacommunities.org/id/metropolitan-district-council/walsall,WC101-185,28/02/2019,Adult Social Care,ADVANCE HEALTH CARE (UK) LTD,22/02/2019,442.58,73025-PROFESSIONAL SERVICES-PRIV CONTRACTOR & OTHER AGENCIES,COMMUNITY INTERMEDIATE CARE,Third Party Payments,Revenue
Walsall Council,http://opendatacommunities.org/id/metropolitan-district-council/walsall,WC101-186,28/02/2019,Adult Social Care,ADVANCE HEALTH CARE (UK) LTD,22/02/2019,442.58,73025-PROFESSIONAL SERVICES-PRIV CONTRACTOR & OTHER AGENCIES,COMMUNITY INTERMEDIATE CARE,Third Party Payments,Revenue
Walsall Council,http://opendatacommunities.org/id/metropolitan-district-council/walsall,WC101-187,28/02/2019,Adult Social Care,ADVANCE HEALTH CARE (UK) LTD,22/02/2019,442.58,73025-PROFESSIONAL SERVICES-PRIV CONTRACTOR & OTHER AGENCIES,COMMUNITY INTERMEDIATE CARE,Third Party Payments,Revenue
Walsall Council,http://opendatacommunities.org/id/metropolitan-district-council/walsall,WC101-188,28/02/2019,Adult Social Care,ADVANCE HEALTH CARE (UK) LTD,22/02/2019,442.58,73025-PROFESSIONAL SERVICES-PRIV CONTRACTOR & OTHER AGENCIES,COMMUNITY INTERMEDIATE CARE,Third Party Payments,Revenue
Walsall Council,http://opendatacommunities.org/id/metropolitan-district-council/walsall,WC101-189,28/02/2019,Adult Social Care,ADVANCE HEALTH CARE (UK) LTD,22/02/2019,442.58,73025-PROFESSIONAL SERVICES-PRIV CONTRACTOR & OTHER AGENCIES,COMMUNITY INTERMEDIATE CARE,Third Party Payments,Revenue
Walsall Council,http://opendatacommunities.org/id/metropolitan-district-council/walsall,WC101-190,28/02/2019,Adult Social Care,ADVANCE HEALTH CARE (UK) LTD,25/02/2019,442.58,73025-PROFESSIONAL SERVICES-PRIV CONTRACTOR & OTHER AGENCIES,COMMUNITY INTERMEDIATE CARE,Third Party Payments,Revenue
Walsall Council,http://opendatacommunities.org/id/metropolitan-district-council/walsall,WC101-191,28/02/2019,Adult Social Care,ADVANCE HEALTH CARE (UK) LTD,25/02/2019,442.58,73025-PROFESSIONAL SERVICES-PRIV CONTRACTOR & OTHER AGENCIES,COMMUNITY INTERMEDIATE CARE,Third Party Payments,Revenue
Walsall Council,http://opendatacommunities.org/id/metropolitan-district-council/walsall,WC101-192,28/02/2019,Adult Social Care,ADVANCE HEALTH CARE (UK) LTD,25/02/2019,442.58,73025-PROFESSIONAL SERVICES-PRIV CONTRACTOR & OTHER AGENCIES,COMMUNITY INTERMEDIATE CARE,Third Party Payments,Revenue
Walsall Council,http://opendatacommunities.org/id/metropolitan-district-council/walsall,WC101-193,28/02/2019,Adult Social Care,ADVANCE HEALTH CARE (UK) LTD,25/02/2019,442.58,73025-PROFESSIONAL SERVICES-PRIV CONTRACTOR & OTHER AGENCIES,COMMUNITY INTERMEDIATE CARE,Third Party Payments,Revenue
Walsall Council,http://opendatacommunities.org/id/metropolitan-district-council/walsall,WC101-194,28/02/2019,Adult Social Care,ADVANCE HEALTH CARE (UK) LTD,25/02/2019,442.58,73025-PROFESSIONAL SERVICES-PRIV CONTRACTOR & OTHER AGENCIES,COMMUNITY INTERMEDIATE CARE,Third Party Payments,Revenue
Walsall Council,http://opendatacommunities.org/id/metropolitan-district-council/walsall,WC101-195,28/02/2019,Adult Social Care,ADVANCE HEALTH CARE (UK) LTD,25/02/2019,442.58,73025-PROFESSIONAL SERVICES-PRIV CONTRACTOR & OTHER AGENCIES,COMMUNITY INTERMEDIATE CARE,Third Party Payments,Revenue
Walsall Council,http://opendatacommunities.org/id/metropolitan-district-council/walsall,WC101-196,28/02/2019,Adult Social Care,ADVANCE HEALTH CARE (UK) LTD,25/02/2019,442.58,73025-PROFESSIONAL SERVICES-PRIV CONTRACTOR & OTHER AGENCIES,COMMUNITY INTERMEDIATE CARE,Third Party Payments,Revenue
Walsall Council,http://opendatacommunities.org/id/metropolitan-district-council/walsall,WC101-197,28/02/2019,Adult Social Care,ADVANCE HEALTH CARE (UK) LTD,25/02/2019,442.58,73025-PROFESSIONAL SERVICES-PRIV CONTRACTOR & OTHER AGENCIES,COMMUNITY INTERMEDIATE CARE,Third Party Payments,Revenue
Walsall Council,http://opendatacommunities.org/id/metropolitan-district-council/walsall,WC101-198,28/02/2019,Adult Social Care,ADVANCE HEALTH CARE (UK) LTD,25/02/2019,442.58,73025-PROFESSIONAL SERVICES-PRIV CONTRACTOR & OTHER AGENCIES,COMMUNITY INTERMEDIATE CARE,Third Party Payments,Revenue
Walsall Council,http://opendatacommunities.org/id/metropolitan-district-council/walsall,WC101-199,28/02/2019,Adult Social Care,ADVANCE HEALTH CARE (UK) LTD,05/02/2019,449.60,73025-PROFESSIONAL SERVICES-PRIV CONTRACTOR & OTHER AGENCIES,COMMUNITY INTERMEDIATE CARE,Third Party Payments,Revenue
Walsall Council,http://opendatacommunities.org/id/metropolitan-district-council/walsall,WC101-200,28/02/2019,Adult Social Care,ADVANCE HEALTH CARE (UK) LTD,06/02/2019,449.60,73025-PROFESSIONAL SERVICES-PRIV CONTRACTOR & OTHER AGENCIES,COMMUNITY INTERMEDIATE CARE,Third Party Payments,Revenue
Walsall Council,http://opendatacommunities.org/id/metropolitan-district-council/walsall,WC101-201,28/02/2019,Adult Social Care,ADVANCE HEALTH CARE (UK) LTD,13/02/2019,449.60,73025-PROFESSIONAL SERVICES-PRIV CONTRACTOR & OTHER AGENCIES,COMMUNITY INTERMEDIATE CARE,Third Party Payments,Revenue
Walsall Council,http://opendatacommunities.org/id/metropolitan-district-council/walsall,WC101-202,28/02/2019,Adult Social Care,ADVANCE HEALTH CARE (UK) LTD,22/02/2019,456.63,73025-PROFESSIONAL SERVICES-PRIV CONTRACTOR & OTHER AGENCIES,COMMUNITY INTERMEDIATE CARE,Third Party Payments,Revenue
Walsall Council,http://opendatacommunities.org/id/metropolitan-district-council/walsall,WC101-203,28/02/2019,Adult Social Care,ADVANCE HEALTH CARE (UK) LTD,01/02/2019,471.03,73507-DOMICILIARY CARE,PHYSICAL SUPPORT,Third Party Payments,Revenue
Walsall Council,http://opendatacommunities.org/id/metropolitan-district-council/walsall,WC101-204,28/02/2019,Adult Social Care,ADVANCE HEALTH CARE (UK) LTD,01/02/2019,481.43,73507-DOMICILIARY CARE,PHYSICAL SUPPORT,Third Party Payments,Revenue
Walsall Council,http://opendatacommunities.org/id/metropolitan-district-council/walsall,WC101-205,28/02/2019,Adult Social Care,ADVANCE HEALTH CARE (UK) LTD,01/02/2019,485.88,73507-DOMICILIARY CARE,SOCIAL SUPPORT,Third Party Payments,Revenue
Walsall Council,http://opendatacommunities.org/id/metropolitan-district-council/walsall,WC101-206,28/02/2019,Adult Social Care,ADVANCE HEALTH CARE (UK) LTD,01/02/2019,499.96,73507-DOMICILIARY CARE,PHYSICAL SUPPORT,Third Party Payments,Revenue
Walsall Council,http://opendatacommunities.org/id/metropolitan-district-council/walsall,WC101-207,28/02/2019,Adult Social Care,ADVANCE HEALTH CARE (UK) LTD,01/02/2019,520.06,73507-DOMICILIARY CARE,PHYSICAL SUPPORT,Third Party Payments,Revenue
Walsall Council,http://opendatacommunities.org/id/metropolitan-district-council/walsall,WC101-208,28/02/2019,Adult Social Care,ADVANCE HEALTH CARE (UK) LTD,01/02/2019,590.53,73507-DOMICILIARY CARE,SOCIAL SUPPORT,Third Party Payments,Revenue
Walsall Council,http://opendatacommunities.org/id/metropolitan-district-council/walsall,WC101-209,28/02/2019,Adult Social Care,ADVANCE HEALTH CARE (UK) LTD,01/02/2019,596.07,73507-DOMICILIARY CARE,PHYSICAL SUPPORT,Third Party Payments,Revenue
Walsall Council,http://opendatacommunities.org/id/metropolitan-district-council/walsall,WC101-210,28/02/2019,Adult Social Care,ADVANCE HEALTH CARE (UK) LTD,01/02/2019,611.61,73507-DOMICILIARY CARE,PHYSICAL SUPPORT,Third Party Payments,Revenue
Walsall Council,http://opendatacommunities.org/id/metropolitan-district-council/walsall,WC101-211,28/02/2019,Adult Social Care,ADVANCE HEALTH CARE (UK) LTD,01/02/2019,625.70,73507-DOMICILIARY CARE,PHYSICAL SUPPORT,Third Party Payments,Revenue
Walsall Council,http://opendatacommunities.org/id/metropolitan-district-council/walsall,WC101-212,28/02/2019,Adult Social Care,ADVANCE HEALTH CARE (UK) LTD,22/02/2019,660.35,73025-PROFESSIONAL SERVICES-PRIV CONTRACTOR & OTHER AGENCIES,COMMUNITY INTERMEDIATE CARE,Third Party Payments,Revenue
Walsall Council,http://opendatacommunities.org/id/metropolitan-district-council/walsall,WC101-213,28/02/2019,Adult Social Care,ADVANCE HEALTH CARE (UK) LTD,25/02/2019,688.45,73025-PROFESSIONAL SERVICES-PRIV CONTRACTOR & OTHER AGENCIES,COMMUNITY INTERMEDIATE CARE,Third Party Payments,Revenue
Walsall Council,http://opendatacommunities.org/id/metropolitan-district-council/walsall,WC101-214,28/02/2019,Adult Social Care,ADVANCE HEALTH CARE (UK) LTD,01/02/2019,688.53,73507-DOMICILIARY CARE,PHYSICAL SUPPORT,Third Party Payments,Revenue
Walsall Council,http://opendatacommunities.org/id/metropolitan-district-council/walsall,WC101-215,28/02/2019,Adult Social Care,ADVANCE HEALTH CARE (UK) LTD,01/02/2019,773.35,73507-DOMICILIARY CARE,PHYSICAL SUPPORT,Third Party Payments,Revenue
Walsall Council,http://opendatacommunities.org/id/metropolitan-district-council/walsall,WC101-216,28/02/2019,Adult Social Care,ADVANCE HEALTH CARE (UK) LTD,01/02/2019,787.36,73507-DOMICILIARY CARE,PHYSICAL SUPPORT,Third Party Payments,Revenue
Walsall Council,http://opendatacommunities.org/id/metropolitan-district-council/walsall,WC101-217,28/02/2019,Adult Social Care,ADVANCE HEALTH CARE (UK) LTD,01/02/2019,787.36,73507-DOMICILIARY CARE,PHYSICAL SUPPORT,Third Party Payments,Revenue
Walsall Council,http://opendatacommunities.org/id/metropolitan-district-council/walsall,WC101-218,28/02/2019,Adult Social Care,ADVANCE HEALTH CARE (UK) LTD,01/02/2019,787.36,73507-DOMICILIARY CARE,PHYSICAL SUPPORT,Third Party Payments,Revenue
Walsall Council,http://opendatacommunities.org/id/metropolitan-district-council/walsall,WC101-219,28/02/2019,Adult Social Care,ADVANCE HEALTH CARE (UK) LTD,01/02/2019,787.37,73507-DOMICILIARY CARE,PHYSICAL SUPPORT,Third Party Payments,Revenue
Walsall Council,http://opendatacommunities.org/id/metropolitan-district-council/walsall,WC101-220,28/02/2019,Adult Social Care,ADVANCE HEALTH CARE (UK) LTD,01/02/2019,814.01,73507-DOMICILIARY CARE,PHYSICAL SUPPORT,Third Party Payments,Revenue
Walsall Council,http://opendatacommunities.org/id/metropolitan-district-council/walsall,WC101-221,28/02/2019,Adult Social Care,ADVANCE HEALTH CARE (UK) LTD,01/02/2019,815.62,73507-DOMICILIARY CARE,PHYSICAL SUPPORT,Third Party Payments,Revenue
Walsall Council,http://opendatacommunities.org/id/metropolitan-district-council/walsall,WC101-222,28/02/2019,Adult Social Care,ADVANCE HEALTH CARE (UK) LTD,01/02/2019,845.59,73507-DOMICILIARY CARE,SUPPORT WITH MEMORY & COGNITION,Third Party Payments,Revenue
Walsall Council,http://opendatacommunities.org/id/metropolitan-district-council/walsall,WC101-223,28/02/2019,Adult Social Care,ADVANCE HEALTH CARE (UK) LTD,01/02/2019,"1,008.49",73507-DOMICILIARY CARE,PHYSICAL SUPPORT,Third Party Payments,Revenue
Walsall Council,http://opendatacommunities.org/id/metropolitan-district-council/walsall,WC101-224,28/02/2019,Adult Social Care,ADVANCE HEALTH CARE (UK) LTD,01/02/2019,"1,054.15",73507-DOMICILIARY CARE,PHYSICAL SUPPORT,Third Party Payments,Revenue
Walsall Council,http://opendatacommunities.org/id/metropolitan-district-council/walsall,WC101-225,28/02/2019,Adult Social Care,ADVANCE HEALTH CARE (UK) LTD,01/02/2019,"1,138.99",73507-DOMICILIARY CARE,PHYSICAL SUPPORT,Third Party Payments,Revenue
Walsall Council,http://opendatacommunities.org/id/metropolitan-district-council/walsall,WC101-226,28/02/2019,Adult Social Care,ADVANCE HEALTH CARE (UK) LTD,01/02/2019,"1,181.06",73507-DOMICILIARY CARE,SOCIAL SUPPORT,Third Party Payments,Revenue
Walsall Council,http://opendatacommunities.org/id/metropolitan-district-council/walsall,WC101-227,28/02/2019,Adult Social Care,ADVANCE HEALTH CARE (UK) LTD,01/02/2019,"1,191.52",73507-DOMICILIARY CARE,PHYSICAL SUPPORT,Third Party Payments,Revenue
Walsall Council,http://opendatacommunities.org/id/metropolitan-district-council/walsall,WC101-228,28/02/2019,Adult Social Care,ADVANCE HEALTH CARE (UK) LTD,01/02/2019,"1,192.76",73507-DOMICILIARY CARE,PHYSICAL SUPPORT,Third Party Payments,Revenue
Walsall Council,http://opendatacommunities.org/id/metropolitan-district-council/walsall,WC101-229,28/02/2019,Adult Social Care,ADVANCE HEALTH CARE (UK) LTD,01/02/2019,"1,218.55",73507-DOMICILIARY CARE,SOCIAL SUPPORT,Third Party Payments,Revenue
Walsall Council,http://opendatacommunities.org/id/metropolitan-district-council/walsall,WC101-230,28/02/2019,Adult Social Care,ADVANCE HEALTH CARE (UK) LTD,01/02/2019,"1,245.44",73507-DOMICILIARY CARE,PHYSICAL SUPPORT,Third Party Payments,Revenue
Walsall Council,http://opendatacommunities.org/id/metropolitan-district-council/walsall,WC101-231,28/02/2019,Adult Social Care,ADVANCE HEALTH CARE (UK) LTD,01/02/2019,"1,311.52",73507-DOMICILIARY CARE,PHYSICAL SUPPORT,Third Party Payments,Revenue
Walsall Council,http://opendatacommunities.org/id/metropolitan-district-council/walsall,WC101-232,28/02/2019,Adult Social Care,ADVANCE HEALTH CARE (UK) LTD,01/02/2019,"1,356.92",73507-DOMICILIARY CARE,PHYSICAL SUPPORT,Third Party Payments,Revenue
Walsall Council,http://opendatacommunities.org/id/metropolitan-district-council/walsall,WC101-233,28/02/2019,Adult Social Care,ADVANCE HEALTH CARE (UK) LTD,05/02/2019,"1,376.90",73025-PROFESSIONAL SERVICES-PRIV CONTRACTOR & OTHER AGENCIES,COMMUNITY INTERMEDIATE CARE,Third Party Payments,Revenue
Walsall Council,http://opendatacommunities.org/id/metropolitan-district-council/walsall,WC101-234,28/02/2019,Adult Social Care,ADVANCE HEALTH CARE (UK) LTD,01/02/2019,"1,521.40",73507-DOMICILIARY CARE,PHYSICAL SUPPORT,Third Party Payments,Revenue
Walsall Council,http://opendatacommunities.org/id/metropolitan-district-council/walsall,WC101-235,28/02/2019,Adult Social Care,ADVANCE HEALTH CARE (UK) LTD,01/02/2019,"1,531.42",73507-DOMICILIARY CARE,PHYSICAL SUPPORT,Third Party Payments,Revenue
Walsall Council,http://opendatacommunities.org/id/metropolitan-district-council/walsall,WC101-236,28/02/2019,Adult Social Care,ADVANCE HEALTH CARE (UK) LTD,01/02/2019,"1,551.02",73507-DOMICILIARY CARE,PHYSICAL SUPPORT,Third Party Payments,Revenue
Walsall Council,http://opendatacommunities.org/id/metropolitan-district-council/walsall,WC101-237,28/02/2019,Adult Social Care,ADVANCE HEALTH CARE (UK) LTD,01/02/2019,"1,553.77",73507-DOMICILIARY CARE,PHYSICAL SUPPORT,Third Party Payments,Revenue
Walsall Council,http://opendatacommunities.org/id/metropolitan-district-council/walsall,WC101-238,28/02/2019,Adult Social Care,ADVANCE HEALTH CARE (UK) LTD,01/02/2019,"1,561.23",73507-DOMICILIARY CARE,PHYSICAL SUPPORT,Third Party Payments,Revenue
Walsall Council,http://opendatacommunities.org/id/metropolitan-district-council/walsall,WC101-239,28/02/2019,Adult Social Care,ADVANCE HEALTH CARE (UK) LTD,01/02/2019,"1,574.72",73507-DOMICILIARY CARE,PHYSICAL SUPPORT,Third Party Payments,Revenue
Walsall Council,http://opendatacommunities.org/id/metropolitan-district-council/walsall,WC101-240,28/02/2019,Adult Social Care,ADVANCE HEALTH CARE (UK) LTD,01/02/2019,"1,588.80",73507-DOMICILIARY CARE,PHYSICAL SUPPORT,Third Party Payments,Revenue
Walsall Council,http://opendatacommunities.org/id/metropolitan-district-council/walsall,WC101-241,28/02/2019,Adult Social Care,ADVANCE HEALTH CARE (UK) LTD,01/02/2019,"1,599.38",73507-DOMICILIARY CARE,PHYSICAL SUPPORT,Third Party Payments,Revenue
Walsall Council,http://opendatacommunities.org/id/metropolitan-district-council/walsall,WC101-242,28/02/2019,Adult Social Care,ADVANCE HEALTH CARE (UK) LTD,01/02/2019,"1,606.49",73507-DOMICILIARY CARE,PHYSICAL SUPPORT,Third Party Payments,Revenue
Walsall Council,http://opendatacommunities.org/id/metropolitan-district-council/walsall,WC101-243,28/02/2019,Adult Social Care,ADVANCE HEALTH CARE (UK) LTD,01/02/2019,"1,645.00",73507-DOMICILIARY CARE,PHYSICAL SUPPORT,Third Party Payments,Revenue
Walsall Council,http://opendatacommunities.org/id/metropolitan-district-council/walsall,WC101-244,28/02/2019,Adult Social Care,ADVANCE HEALTH CARE (UK) LTD,01/02/2019,"1,652.11",73507-DOMICILIARY CARE,PHYSICAL SUPPORT,Third Party Payments,Revenue
Walsall Council,http://opendatacommunities.org/id/metropolitan-district-council/walsall,WC101-245,28/02/2019,Adult Social Care,ADVANCE HEALTH CARE (UK) LTD,13/02/2019,"1,728.15",73025-PROFESSIONAL SERVICES-PRIV CONTRACTOR & OTHER AGENCIES,COMMUNITY INTERMEDIATE CARE,Third Party Payments,Revenue
Walsall Council,http://opendatacommunities.org/id/metropolitan-district-council/walsall,WC101-246,28/02/2019,Adult Social Care,ADVANCE HEALTH CARE (UK) LTD,01/02/2019,"1,743.22",73507-DOMICILIARY CARE,PHYSICAL SUPPORT,Third Party Payments,Revenue
Walsall Council,http://opendatacommunities.org/id/metropolitan-district-council/walsall,WC101-247,28/02/2019,Adult Social Care,ADVANCE HEALTH CARE (UK) LTD,01/02/2019,"1,757.22",73507-DOMICILIARY CARE,PHYSICAL SUPPORT,Third Party Payments,Revenue
Walsall Council,http://opendatacommunities.org/id/metropolitan-district-council/walsall,WC101-248,28/02/2019,Adult Social Care,ADVANCE HEALTH CARE (UK) LTD,01/02/2019,"1,764.31",73507-DOMICILIARY CARE,PHYSICAL SUPPORT,Third Party Payments,Revenue
Walsall Council,http://opendatacommunities.org/id/metropolitan-district-council/walsall,WC101-249,28/02/2019,Adult Social Care,ADVANCE HEALTH CARE (UK) LTD,01/02/2019,"1,771.28",73507-DOMICILIARY CARE,PHYSICAL SUPPORT,Third Party Payments,Revenue
Walsall Council,http://opendatacommunities.org/id/metropolitan-district-council/walsall,WC101-250,28/02/2019,Adult Social Care,ADVANCE HEALTH CARE (UK) LTD,01/02/2019,"1,785.45",73507-DOMICILIARY CARE,PHYSICAL SUPPORT,Third Party Payments,Revenue
Walsall Council,http://opendatacommunities.org/id/metropolitan-district-council/walsall,WC101-251,28/02/2019,Adult Social Care,ADVANCE HEALTH CARE (UK) LTD,01/02/2019,"1,788.77",73507-DOMICILIARY CARE,SOCIAL SUPPORT,Third Party Payments,Revenue
Walsall Council,http://opendatacommunities.org/id/metropolitan-district-council/walsall,WC101-252,28/02/2019,Adult Social Care,ADVANCE HEALTH CARE (UK) LTD,01/02/2019,"1,799.42",73507-DOMICILIARY CARE,PHYSICAL SUPPORT,Third Party Payments,Revenue
Walsall Council,http://opendatacommunities.org/id/metropolitan-district-council/walsall,WC101-253,28/02/2019,Adult Social Care,ADVANCE HEALTH CARE (UK) LTD,01/02/2019,"1,834.49",73507-DOMICILIARY CARE,PHYSICAL SUPPORT,Third Party Payments,Revenue
Walsall Council,http://opendatacommunities.org/id/metropolitan-district-council/walsall,WC101-254,28/02/2019,Adult Social Care,ADVANCE HEALTH CARE (UK) LTD,01/02/2019,"2,031.11",73507-DOMICILIARY CARE,PHYSICAL SUPPORT,Third Party Payments,Revenue
Walsall Council,http://opendatacommunities.org/id/metropolitan-district-council/walsall,WC101-255,28/02/2019,Adult Social Care,ADVANCE HEALTH CARE (UK) LTD,01/02/2019,"2,141.06",73507-DOMICILIARY CARE,PHYSICAL SUPPORT,Third Party Payments,Revenue
Walsall Council,http://opendatacommunities.org/id/metropolitan-district-council/walsall,WC101-256,28/02/2019,Adult Social Care,ADVANCE HEALTH CARE (UK) LTD,01/02/2019,"2,165.06",73507-DOMICILIARY CARE,PHYSICAL SUPPORT,Third Party Payments,Revenue
Walsall Council,http://opendatacommunities.org/id/metropolitan-district-council/walsall,WC101-257,28/02/2019,Adult Social Care,ADVANCE HEALTH CARE (UK) LTD,01/02/2019,"2,217.52",73507-DOMICILIARY CARE,PHYSICAL SUPPORT,Third Party Payments,Revenue
Walsall Council,http://opendatacommunities.org/id/metropolitan-district-council/walsall,WC101-258,28/02/2019,Adult Social Care,ADVANCE HEALTH CARE (UK) LTD,01/02/2019,"2,318.53",73507-DOMICILIARY CARE,PHYSICAL SUPPORT,Third Party Payments,Revenue
Walsall Council,http://opendatacommunities.org/id/metropolitan-district-council/walsall,WC101-259,28/02/2019,Adult Social Care,ADVANCE HEALTH CARE (UK) LTD,01/02/2019,"2,329.86",73507-DOMICILIARY CARE,PHYSICAL SUPPORT,Third Party Payments,Revenue
Walsall Council,http://opendatacommunities.org/id/metropolitan-district-council/walsall,WC101-260,28/02/2019,Adult Social Care,ADVANCE HEALTH CARE (UK) LTD,01/02/2019,"2,828.48",73507-DOMICILIARY CARE,SOCIAL SUPPORT,Third Party Payments,Revenue
Walsall Council,http://opendatacommunities.org/id/metropolitan-district-council/walsall,WC101-261,28/02/2019,Adult Social Care,ADVANCE HEALTH CARE (UK) LTD,01/02/2019,"3,134.57",73507-DOMICILIARY CARE,SOCIAL SUPPORT,Third Party Payments,Revenue
Walsall Council,http://opendatacommunities.org/id/metropolitan-district-council/walsall,WC101-262,28/02/2019,Adult Social Care,ADVANCE HEALTH CARE (UK) LTD,01/02/2019,"3,548.53",73507-DOMICILIARY CARE,PHYSICAL SUPPORT,Third Party Payments,Revenue
Walsall Council,http://opendatacommunities.org/id/metropolitan-district-council/walsall,WC101-263,28/02/2019,Adult Social Care,ADVANCE HEALTH CARE (UK) LTD,01/02/2019,"4,720.80",73507-DOMICILIARY CARE,PHYSICAL SUPPORT,Third Party Payments,Revenue
Walsall Council,http://opendatacommunities.org/id/metropolitan-district-council/walsall,WC101-264,28/02/2019,Economy & Environment,AECOM LIMITED,07/02/2019,"24,900.00",01001-OTHER CONSULTANTS FEES,CFR 1248 M6 JUNCTION 10,Capital,Capital
Walsall Council,http://opendatacommunities.org/id/metropolitan-district-council/walsall,WC101-265,28/02/2019,Economy & Environment,AFGHAN COMMUNITY & WELFARE CENTRE,25/02/2019,"2,550.00",66500-GRANTS TO OTHER ORGS,ESF COMMUNITY GRANTS,Third Party Payments,Revenue
Walsall Council,http://opendatacommunities.org/id/metropolitan-district-council/walsall,WC101-266,28/02/2019,Childrens,AFTER ADOPTION,11/02/2019,800.00,63000-PROFESSIONAL FEES AND SERVICES,ADOPTION TEAM,Supplies & Services,Revenue
Walsall Council,http://opendatacommunities.org/id/metropolitan-district-council/walsall,WC101-267,28/02/2019,Adult Social Care,AGINCARE UK LTD,01/02/2019,"1,573.60",73507-DOMICILIARY CARE,PHYSICAL SUPPORT,Third Party Payments,Revenue
Walsall Council,http://opendatacommunities.org/id/metropolitan-district-council/walsall,WC101-268,28/02/2019,Childrens,AH CHILDCARE PRACTICE,15/02/2019,361.46,73014-LEGAL FEES-PRIV CONTRACTOR FEES,GENERAL MANAGEMENT SUPPORT (INC LEGAL),Third Party Payments,Revenue
Walsall Council,http://opendatacommunities.org/id/metropolitan-district-council/walsall,WC101-269,28/02/2019,Adult Social Care,REDACTED,04/02/2019,"2,092.80",73506-DIRECT PAYMENT,LEARNING DISABILITY SUPPORT,Third Party Payments,Revenue
Walsall Council,http://opendatacommunities.org/id/metropolitan-district-council/walsall,WC101-270,28/02/2019,Economy & Environment,AIRQUEE,21/02/2019,344.40,60008-MAINTENANCE-FURNITURE & EQUIPMENT,OAK PARK,Supplies & Services,Revenue
Walsall Council,http://opendatacommunities.org/id/metropolitan-district-council/walsall,WC101-271,28/02/2019,Adult Social Care,REDACTED,04/02/2019,"1,277.00",73506-DIRECT PAYMENT,PHYSICAL SUPPORT,Third Party Payments,Revenue
Walsall Council,http://opendatacommunities.org/id/metropolitan-district-council/walsall,WC101-272,28/02/2019,Economy & Environment,ALADDINS EDUCATION LTD,25/02/2019,"4,150.60",66500-GRANTS TO OTHER ORGS,ESF COMMUNITY GRANTS,Third Party Payments,Revenue
Walsall Council,http://opendatacommunities.org/id/metropolitan-district-council/walsall,WC101-273,28/02/2019,Adult Social Care,REDACTED,04/02/2019,786.80,73506-DIRECT PAYMENT,PHYSICAL SUPPORT,Third Party Payments,Revenue
Walsall Council,http://opendatacommunities.org/id/metropolitan-district-council/walsall,WC101-274,28/02/2019,Childrens,ALBRIGHTON CARE LTD,21/02/2019,"9,980.00",74036-EXTERNAL RESIDENTIAL CARE-OTH AGENCY PROVISION,INDEPENDENT RESIDENTIAL HOMES,Third Party Payments,Revenue
Walsall Council,http://opendatacommunities.org/id/metropolitan-district-council/walsall,WC101-275,28/02/2019,Economy & Environment,ALCIUM SOFTWARE,01/02/2019,"9,612.00",63124-FEES & LICENCES-SERVICES,DEVELOPMENT TEAM,Supplies & Services,Revenue
Walsall Council,http://opendatacommunities.org/id/metropolitan-district-council/walsall,WC101-276,28/02/2019,Economy & Environment,ALDERBROOK HEALTHCARE LTD,11/02/2019,"1,676.30",63000-PROFESSIONAL FEES AND SERVICES,CORONERS SERVICE,Supplies & Services,Revenue
Walsall Council,http://opendatacommunities.org/id/metropolitan-district-council/walsall,WC101-277,28/02/2019,Economy & Environment,ALDERBROOK HEALTHCARE LTD,11/02/2019,"1,724.00",63000-PROFESSIONAL FEES AND SERVICES,CORONERS SERVICE,Supplies & Services,Revenue
Walsall Council,http://opendatacommunities.org/id/metropolitan-district-council/walsall,WC101-278,28/02/2019,Economy & Environment,ALDERBROOK HEALTHCARE LTD,27/02/2019,"3,149.00",63000-PROFESSIONAL FEES AND SERVICES,CORONERS SERVICE,Supplies & Services,Revenue
Walsall Council,http://opendatacommunities.org/id/metropolitan-district-council/walsall,WC101-279,28/02/2019,Adult Social Care,ALDERGROVE MANOR LTD,01/02/2019,"1,876.52",73501-RESIDENTIAL EMI,MENTAL HEALTH SUPPORT,Third Party Payments,Revenue
Walsall Council,http://opendatacommunities.org/id/metropolitan-district-council/walsall,WC101-280,28/02/2019,Adult Social Care,ALDERGROVE MANOR LTD,01/02/2019,"1,963.79",73501-RESIDENTIAL EMI,PHYSICAL SUPPORT,Third Party Payments,Revenue
Walsall Council,http://opendatacommunities.org/id/metropolitan-district-council/walsall,WC101-281,28/02/2019,Adult Social Care,ALDERGROVE MANOR LTD,01/02/2019,"2,039.68",73502-NURSING,PHYSICAL SUPPORT,Third Party Payments,Revenue
Walsall Council,http://opendatacommunities.org/id/metropolitan-district-council/walsall,WC101-282,28/02/2019,Childrens,ALDRIDGE & BARONS LIMITED,11/02/2019,"3,095.58",52000-WITH DRIVER-HIRE OF VEHICLES,HOME TO SCHOOL TRANSPORT,Transport,Revenue
Walsall Council,http://opendatacommunities.org/id/metropolitan-district-council/walsall,WC101-283,28/02/2019,Childrens,ALDRIDGE & BARONS LIMITED,11/02/2019,"16,074.00",52000-WITH DRIVER-HIRE OF VEHICLES,HOME TO SCHOOL TRANSPORT,Transport,Revenue
Walsall Council,http://opendatacommunities.org/id/metropolitan-district-council/walsall,WC101-284,28/02/2019,Economy & Environment,ALDRIDGE PAINTING & DECORATING LTD,21/02/2019,"2,190.00",60008-MAINTENANCE-FURNITURE & EQUIPMENT,OAK PARK,Supplies & Services,Revenue
Walsall Council,http://opendatacommunities.org/id/metropolitan-district-council/walsall,WC101-285,28/02/2019,Economy & Environment,ALDRIDGE SHED,26/02/2019,625.00,63253-PAYMENT TO CONTRACTOR,MENTAL HEALTH,Third Party Payments,Revenue
Walsall Council,http://opendatacommunities.org/id/metropolitan-district-council/walsall,WC101-286,28/02/2019,Adult Social Care,REDACTED,04/02/2019,"1,348.80",73506-DIRECT PAYMENT,PHYSICAL SUPPORT,Third Party Payments,Revenue
Walsall Council,http://opendatacommunities.org/id/metropolitan-district-council/walsall,WC101-287,28/02/2019,Adult Social Care,ALEXANDRA HOUSE CARE SERVICES LTD T/A STONEBRIDGE NURSING HOME,01/02/2019,"7,117.44",73502-NURSING,LEARNING DISABILITY SUPPORT,Third Party Payments,Revenue
Walsall Council,http://opendatacommunities.org/id/metropolitan-district-council/walsall,WC101-288,28/02/2019,Adult Social Care,REDACTED,04/02/2019,"1,771.28",73506-DIRECT PAYMENT,PHYSICAL SUPPORT,Third Party Payments,Revenue
Walsall Council,http://opendatacommunities.org/id/metropolitan-district-council/walsall,WC101-289,28/02/2019,Childrens,REDACTED,04/02/2019,288.00,73506-DIRECT PAYMENT,FAMILY SUPPORT - DIRECT PAYMENTS,Third Party Payments,Revenue
Walsall Council,http://opendatacommunities.org/id/metropolitan-district-council/walsall,WC101-290,28/02/2019,Adult Social Care,REDACTED,04/02/2019,"1,003.60",73506-DIRECT PAYMENT,PHYSICAL SUPPORT,Third Party Payments,Revenue
Walsall Council,http://opendatacommunities.org/id/metropolitan-district-council/walsall,WC101-291,28/02/2019,Adult Social Care,REDACTED,01/02/2019,"1,301.64",73372-DOMICILIARY CARE,LD PACKAGE/PLACEMENT COSTS,Third Party Payments,Revenue
Walsall Council,http://opendatacommunities.org/id/metropolitan-district-council/walsall,WC101-292,28/02/2019,Economy & Environment,REDACTED,25/02/2019,"2,011.50",63253-PAYMENT TO CONTRACTOR,GENERAL HEALTH PROTECTION,Third Party Payments,Revenue
Walsall Council,http://opendatacommunities.org/id/metropolitan-district-council/walsall,WC101-293,28/02/2019,Adult Social Care,REDACTED,04/02/2019,"1,574.72",73506-DIRECT PAYMENT,SOCIAL SUPPORT,Third Party Payments,Revenue
Walsall Council,http://opendatacommunities.org/id/metropolitan-district-council/walsall,WC101-294,28/02/2019,Economy & Environment,ALLAN HADDOW LTD,14/02/2019,"1,450.00",30030-EXTERNAL TRAINING,FLEET,Employees,Revenue
Walsall Council,http://opendatacommunities.org/id/metropolitan-district-council/walsall,WC101-295,28/02/2019,Capital Financing,ALLPAY LTD,25/02/2019,"5,660.15",82500-BANK CHARGES-CENTRAL EXPENSES,BANK CHARGES,Supplies & Services,Revenue
Walsall Council,http://opendatacommunities.org/id/metropolitan-district-council/walsall,WC101-296,28/02/2019,Capital Financing,ALLPAY LTD,25/02/2019,"7,994.63",82500-BANK CHARGES-CENTRAL EXPENSES,BANK CHARGES,Supplies & Services,Revenue
Walsall Council,http://opendatacommunities.org/id/metropolitan-district-council/walsall,WC101-297,28/02/2019,Capital Financing,ALLPAY LTD,25/02/2019,"8,372.46",82500-BANK CHARGES-CENTRAL EXPENSES,BANK CHARGES,Supplies & Services,Revenue
Walsall Council,http://opendatacommunities.org/id/metropolitan-district-council/walsall,WC101-298,28/02/2019,Capital Financing,ALLPAY LTD,25/02/2019,"8,489.25",82500-BANK CHARGES-CENTRAL EXPENSES,BANK CHARGES,Supplies & Services,Revenue
Walsall Council,http://opendatacommunities.org/id/metropolitan-district-council/walsall,WC101-299,28/02/2019,Capital Financing,ALLPAY LTD,25/02/2019,"8,497.73",82500-BANK CHARGES-CENTRAL EXPENSES,BANK CHARGES,Supplies & Services,Revenue
Walsall Council,http://opendatacommunities.org/id/metropolitan-district-council/walsall,WC101-300,28/02/2019,Capital Financing,ALLPAY LTD,25/02/2019,"8,599.84",82500-BANK CHARGES-CENTRAL EXPENSES,BANK CHARGES,Supplies & Services,Revenue
Walsall Council,http://opendatacommunities.org/id/metropolitan-district-council/walsall,WC101-301,28/02/2019,Capital Financing,ALLPAY LTD,25/02/2019,"8,816.01",82500-BANK CHARGES-CENTRAL EXPENSES,BANK CHARGES,Supplies & Services,Revenue
Walsall Council,http://opendatacommunities.org/id/metropolitan-district-council/walsall,WC101-302,28/02/2019,Capital Financing,ALLPAY LTD,25/02/2019,"8,845.23",82500-BANK CHARGES-CENTRAL EXPENSES,BANK CHARGES,Supplies & Services,Revenue
Walsall Council,http://opendatacommunities.org/id/metropolitan-district-council/walsall,WC101-303,28/02/2019,Capital Financing,ALLPAY LTD,25/02/2019,"9,246.47",82500-BANK CHARGES-CENTRAL EXPENSES,BANK CHARGES,Supplies & Services,Revenue
Walsall Council,http://opendatacommunities.org/id/metropolitan-district-council/walsall,WC101-304,28/02/2019,Resources and Transformation,ALLSORTS OFFICE SUPPLIES LTD,07/02/2019,213.20,60000-FURNITURE & EQUIPMENT,ACCOMMODATION SERVICES MANAGEMENT,Supplies & Services,Revenue
Walsall Council,http://opendatacommunities.org/id/metropolitan-district-council/walsall,WC101-305,28/02/2019,Resources and Transformation,ALLSORTS OFFICE SUPPLIES LTD,07/02/2019,213.20,60000-FURNITURE & EQUIPMENT,SERVICE DESK 1ST LINE,Supplies & Services,Revenue
Walsall Council,http://opendatacommunities.org/id/metropolitan-district-council/walsall,WC101-306,28/02/2019,Economy & Environment,ALLSORTS OFFICE SUPPLIES LTD,01/02/2019,400.00,60000-FURNITURE & EQUIPMENT,LEISURE - MANAGEMENT AND ADMIN,Supplies & Services,Revenue
Walsall Council,http://opendatacommunities.org/id/metropolitan-district-council/walsall,WC101-307,28/02/2019,Resources and Transformation,ALLSORTS OFFICE SUPPLIES LTD,07/02/2019,852.80,01044-PURCHASE OF FURNITURE & EQUIPMENT,CFR 1185 PROCUREMENT OF SYSTEM FOR HUMAN RESOURCES MANAGEMENT (NRMS) & ORACLE EBS FINANCIALS,Capital,Capital
Walsall Council,http://opendatacommunities.org/id/metropolitan-district-council/walsall,WC101-308,28/02/2019,Adult Social Care,ALLSORTS OFFICE SUPPLIES LTD,01/02/2019,"2,412.00",60000-FURNITURE & EQUIPMENT,MENTAL HEALTH MANAGEMENT TEAM,Supplies & Services,Revenue
Walsall Council,http://opendatacommunities.org/id/metropolitan-district-council/walsall,WC101-309,28/02/2019,Childrens,ALLSORTS OFFICE SUPPLIES LTD,07/02/2019,"3,266.00",01044-PURCHASE OF FURNITURE & EQUIPMENT,"CFR 1304 CORPORATE PARENTING, CONTRACT & ASSESSMENT HUB",Capital,Capital
Walsall Council,http://opendatacommunities.org/id/metropolitan-district-council/walsall,WC101-310,28/02/2019,Resources and Transformation,ALLSORTS OFFICE SUPPLIES LTD,04/02/2019,"4,624.00",63800-COMPUTER EQUIPMENT AND SUPPLIES,RECHARGEABLE EQUIPMENT,Supplies & Services,Revenue
Walsall Council,http://opendatacommunities.org/id/metropolitan-district-council/walsall,WC101-311,28/02/2019,Adult Social Care,ALMA COURT,01/02/2019,"5,705.56",73502-NURSING,PHYSICAL SUPPORT,Third Party Payments,Revenue
Walsall Council,http://opendatacommunities.org/id/metropolitan-district-council/walsall,WC101-312,28/02/2019,Adult Social Care,ALPHA HEALTH CARE LTD,01/02/2019,"1,505.45",73503-NURSING EMI,MENTAL HEALTH SUPPORT,Third Party Payments,Revenue
Walsall Council,http://opendatacommunities.org/id/metropolitan-district-council/walsall,WC101-313,28/02/2019,Adult Social Care,ALPHA HEALTH CARE LTD,01/02/2019,"1,688.84",73500-RESIDENTIAL,MENTAL HEALTH SUPPORT,Third Party Payments,Revenue
Walsall Council,http://opendatacommunities.org/id/metropolitan-district-council/walsall,WC101-314,28/02/2019,Adult Social Care,ALPHA HEALTH CARE LTD,01/02/2019,"2,039.68",73502-NURSING,PHYSICAL SUPPORT,Third Party Payments,Revenue
Walsall Council,http://opendatacommunities.org/id/metropolitan-district-council/walsall,WC101-315,28/02/2019,Adult Social Care,ALPHA HEALTH CARE LTD,01/02/2019,"2,160.00",73501-RESIDENTIAL EMI,SUPPORT WITH MEMORY & COGNITION,Third Party Payments,Revenue
Walsall Council,http://opendatacommunities.org/id/metropolitan-district-council/walsall,WC101-316,28/02/2019,Adult Social Care,ALPHA HEALTH CARE LTD,01/02/2019,"2,243.64",73503-NURSING EMI,MENTAL HEALTH SUPPORT,Third Party Payments,Revenue
Walsall Council,http://opendatacommunities.org/id/metropolitan-district-council/walsall,WC101-317,28/02/2019,Adult Social Care,ALPHA HEALTH CARE LTD,01/02/2019,"2,243.64",73503-NURSING EMI,MENTAL HEALTH SUPPORT,Third Party Payments,Revenue
Walsall Council,http://opendatacommunities.org/id/metropolitan-district-council/walsall,WC101-318,28/02/2019,Adult Social Care,ALPHA HEALTH CARE LTD,01/02/2019,"2,243.64",73503-NURSING EMI,PHYSICAL SUPPORT,Third Party Payments,Revenue
Walsall Council,http://opendatacommunities.org/id/metropolitan-district-council/walsall,WC101-319,28/02/2019,Adult Social Care,ALPHA HEALTH CARE LTD,01/02/2019,"2,326.00",73502-NURSING,MENTAL HEALTH SUPPORT,Third Party Payments,Revenue
Walsall Council,http://opendatacommunities.org/id/metropolitan-district-council/walsall,WC101-320,28/02/2019,Adult Social Care,ALPHA HEALTH CARE LTD,01/02/2019,"2,379.80",73503-NURSING EMI,PHYSICAL SUPPORT,Third Party Payments,Revenue
Walsall Council,http://opendatacommunities.org/id/metropolitan-district-council/walsall,WC101-321,28/02/2019,Adult Social Care,ALPHA HEALTH CARE LTD,01/02/2019,"2,400.00",73501-RESIDENTIAL EMI,MENTAL HEALTH SUPPORT,Third Party Payments,Revenue
Walsall Council,http://opendatacommunities.org/id/metropolitan-district-council/walsall,WC101-322,28/02/2019,Adult Social Care,ALPHA HEALTH CARE LTD,01/02/2019,"2,484.88",73502-NURSING,PHYSICAL SUPPORT,Third Party Payments,Revenue
Walsall Council,http://opendatacommunities.org/id/metropolitan-district-council/walsall,WC101-323,28/02/2019,Adult Social Care,ALPHA HEALTH CARE LTD,01/02/2019,"2,688.84",73503-NURSING EMI,PHYSICAL SUPPORT,Third Party Payments,Revenue
Walsall Council,http://opendatacommunities.org/id/metropolitan-district-council/walsall,WC101-324,28/02/2019,Adult Social Care,ALPHA HEALTH CARE LTD,01/02/2019,"2,767.36",73503-NURSING EMI,MENTAL HEALTH SUPPORT,Third Party Payments,Revenue
Walsall Council,http://opendatacommunities.org/id/metropolitan-district-council/walsall,WC101-325,28/02/2019,Adult Social Care,ALPHA HEALTH CARE LTD,01/02/2019,"2,767.36",73503-NURSING EMI,MENTAL HEALTH SUPPORT,Third Party Payments,Revenue
Walsall Council,http://opendatacommunities.org/id/metropolitan-district-council/walsall,WC101-326,28/02/2019,Adult Social Care,ALPHA HEALTH CARE LTD,01/02/2019,"2,767.36",73503-NURSING EMI,PHYSICAL SUPPORT,Third Party Payments,Revenue
Walsall Council,http://opendatacommunities.org/id/metropolitan-district-council/walsall,WC101-327,28/02/2019,Adult Social Care,ALPHA HEALTH CARE LTD,01/02/2019,"2,767.36",73502-NURSING,PHYSICAL SUPPORT,Third Party Payments,Revenue
Walsall Council,http://opendatacommunities.org/id/metropolitan-district-council/walsall,WC101-328,28/02/2019,Adult Social Care,ALPHA HEALTH CARE LTD,01/02/2019,"2,767.40",73503-NURSING EMI,PHYSICAL SUPPORT,Third Party Payments,Revenue
Walsall Council,http://opendatacommunities.org/id/metropolitan-district-council/walsall,WC101-329,28/02/2019,Adult Social Care,ALPHA HEALTH CARE LTD,01/02/2019,"2,779.80",73503-NURSING EMI,PHYSICAL SUPPORT,Third Party Payments,Revenue
Walsall Council,http://opendatacommunities.org/id/metropolitan-district-council/walsall,WC101-330,28/02/2019,Adult Social Care,ALPHA HEALTH CARE LTD,01/02/2019,"2,823.44",73503-NURSING EMI,PHYSICAL SUPPORT,Third Party Payments,Revenue
Walsall Council,http://opendatacommunities.org/id/metropolitan-district-council/walsall,WC101-331,28/02/2019,Adult Social Care,ALPHA HEALTH CARE LTD,01/02/2019,"2,940.00",73501-RESIDENTIAL EMI,PHYSICAL SUPPORT,Third Party Payments,Revenue
Walsall Council,http://opendatacommunities.org/id/metropolitan-district-council/walsall,WC101-332,28/02/2019,Adult Social Care,ALPHA HEALTH CARE LTD,01/02/2019,"2,940.00",73501-RESIDENTIAL EMI,SUPPORT WITH MEMORY & COGNITION,Third Party Payments,Revenue
Walsall Council,http://opendatacommunities.org/id/metropolitan-district-council/walsall,WC101-333,28/02/2019,Childrens,ALPHABIOLABS,15/02/2019,789.00,73014-LEGAL FEES-PRIV CONTRACTOR FEES,SAFEGUARDING & FAMILY SUPPORT,Third Party Payments,Revenue
Walsall Council,http://opendatacommunities.org/id/metropolitan-district-council/walsall,WC101-334,28/02/2019,Childrens,AMAH NURSERIES LIMITED T/A BANANA MOON WALSALL,07/02/2019,"6,746.85",66505-OTHER-GRANTS TO OTHER ORGS,EARLY YEARS - 3 YR OLDS,Third Party Payments,Revenue
Walsall Council,http://opendatacommunities.org/id/metropolitan-district-council/walsall,WC101-335,28/02/2019,Childrens,AMAH NURSERIES LIMITED T/A BANANA MOON WALSALL,05/02/2019,"12,969.00",66505-OTHER-GRANTS TO OTHER ORGS,EARLY YEARS - 2 YR OLDS,Third Party Payments,Revenue
Walsall Council,http://opendatacommunities.org/id/metropolitan-district-council/walsall,WC101-336,28/02/2019,Childrens,REDACTED,12/02/2019,318.08,74510-RESIDENTS ORDERS,ADOPTION ALLOWANCES,Third Party Payments,Revenue
Walsall Council,http://opendatacommunities.org/id/metropolitan-district-council/walsall,WC101-337,28/02/2019,Childrens,REDACTED,12/02/2019,318.08,74510-RESIDENTS ORDERS,ADOPTION ALLOWANCES,Third Party Payments,Revenue
Walsall Council,http://opendatacommunities.org/id/metropolitan-district-council/walsall,WC101-338,28/02/2019,Adult Social Care,REDACTED,04/02/2019,"1,128.76",73506-DIRECT PAYMENT,LEARNING DISABILITY SUPPORT,Third Party Payments,Revenue
Walsall Council,http://opendatacommunities.org/id/metropolitan-district-council/walsall,WC101-339,28/02/2019,Childrens,REDACTED,12/02/2019,808.04,74009-ADOPTION ALLOWANCE,ADOPTION ALLOWANCES,Transfer Payments,Revenue
Walsall Council,http://opendatacommunities.org/id/metropolitan-district-council/walsall,WC101-340,28/02/2019,Childrens,REDACTED,21/02/2019,600.00,74501-MAINTENANCE ALLOWANCE-FOSTER CARERS,INTERNAL FOSTER CARE PROVISION,Transfer Payments,Revenue
Walsall Council,http://opendatacommunities.org/id/metropolitan-district-council/walsall,WC101-341,28/02/2019,Childrens,REDACTED,21/02/2019,"1,000.00",74508-INTERNAL FOSTER CARERS-CARER FEES,INTERNAL FOSTER CARE PROVISION,Transfer Payments,Revenue
Walsall Council,http://opendatacommunities.org/id/metropolitan-district-council/walsall,WC101-342,28/02/2019,Childrens,AMANS TRAVEL LTD,08/02/2019,"1,071.00",52000-WITH DRIVER-HIRE OF VEHICLES,HOME TO SCHOOL TRANSPORT,Transport,Revenue
Walsall Council,http://opendatacommunities.org/id/metropolitan-district-council/walsall,WC101-343,28/02/2019,Adult Social Care,REDACTED,04/02/2019,897.60,73506-DIRECT PAYMENT,LEARNING DISABILITY SUPPORT,Third Party Payments,Revenue
Walsall Council,http://opendatacommunities.org/id/metropolitan-district-council/walsall,WC101-344,28/02/2019,Economy & Environment,AMEY LG LIMITED,22/02/2019,359.60,01006-SITE WORKS MAIN CONTRACTORS,CFR 1281 HIGHWAY EFFICIENCY PROGRAMME,Capital,Capital
Walsall Council,http://opendatacommunities.org/id/metropolitan-district-council/walsall,WC101-345,28/02/2019,Economy & Environment,AMEY LG LIMITED,22/02/2019,420.12,01006-SITE WORKS MAIN CONTRACTORS,CFR 1281 HIGHWAY EFFICIENCY PROGRAMME,Capital,Capital
Walsall Council,http://opendatacommunities.org/id/metropolitan-district-council/walsall,WC101-346,28/02/2019,Economy & Environment,AMEY LG LIMITED,06/02/2019,652.11,73025-PROFESSIONAL SERVICES-PRIV CONTRACTOR & OTHER AGENCIES,SECTION 38 OF HIGHWAYS ACT - SUPERVISION,Third Party Payments,Revenue
Walsall Council,http://opendatacommunities.org/id/metropolitan-district-council/walsall,WC101-347,28/02/2019,Resources and Transformation,AMEY LG LIMITED,21/02/2019,849.51,60008-MAINTENANCE-FURNITURE & EQUIPMENT,CCTV,Supplies & Services,Revenue
Walsall Council,http://opendatacommunities.org/id/metropolitan-district-council/walsall,WC101-348,28/02/2019,Economy & Environment,AMEY LG LIMITED,05/02/2019,"2,070.99",01009-SITE WORKS - OTHER CONTRACTORS,CFR 1281 MEASURES TO ENCOURAGE CYCLING : DESIGN IN ADVANCE,Capital,Capital
Walsall Council,http://opendatacommunities.org/id/metropolitan-district-council/walsall,WC101-349,28/02/2019,Economy & Environment,AMEY LG LIMITED,15/02/2019,"10,813.94",73025-PROFESSIONAL SERVICES-PRIV CONTRACTOR & OTHER AGENCIES,TRAFFIC MANAGEMENT,Third Party Payments,Revenue
Walsall Council,http://opendatacommunities.org/id/metropolitan-district-council/walsall,WC101-350,28/02/2019,Childrens,AMG NURSING CARE SERVICES,22/02/2019,"1,887.92",63000-PROFESSIONAL FEES AND SERVICES,DIRECTLY COMMISSIONED NURSING SERVICES,Supplies & Services,Revenue
Walsall Council,http://opendatacommunities.org/id/metropolitan-district-council/walsall,WC101-351,28/02/2019,Adult Social Care,AMG NURSING CARE SERVICES,01/02/2019,"3,640.00",73508-COMMUNITY SUPPORTED LIVING/SUPPORTED ACCOMMODATION,PHYSICAL SUPPORT,Third Party Payments,Revenue
Walsall Council,http://opendatacommunities.org/id/metropolitan-district-council/walsall,WC101-352,28/02/2019,Adult Social Care,AMG NURSING CARE SERVICES,06/02/2019,"3,640.00",73508-COMMUNITY SUPPORTED LIVING/SUPPORTED ACCOMMODATION,PHYSICAL SUPPORT,Third Party Payments,Revenue
Walsall Council,http://opendatacommunities.org/id/metropolitan-district-council/walsall,WC101-353,28/02/2019,Adult Social Care,REDACTED,04/02/2019,"1,133.44",73506-DIRECT PAYMENT,PHYSICAL SUPPORT,Third Party Payments,Revenue
Walsall Council,http://opendatacommunities.org/id/metropolitan-district-council/walsall,WC101-354,28/02/2019,Childrens,REDACTED,12/02/2019,340.00,74508-INTERNAL FOSTER CARERS-CARER FEES,FAMILY & FRIENDS FOSTER CARE PROVISION,Transfer Payments,Revenue
Walsall Council,http://opendatacommunities.org/id/metropolitan-district-council/walsall,WC101-355,28/02/2019,Childrens,REDACTED,12/02/2019,600.00,74501-MAINTENANCE ALLOWANCE-FOSTER CARERS,FAMILY & FRIENDS FOSTER CARE PROVISION,Transfer Payments,Revenue
Walsall Council,http://opendatacommunities.org/id/metropolitan-district-council/walsall,WC101-356,28/02/2019,Childrens,REDACTED,12/02/2019,425.08,74510-RESIDENTS ORDERS,ADOPTION ALLOWANCES,Third Party Payments,Revenue
Walsall Council,http://opendatacommunities.org/id/metropolitan-district-council/walsall,WC101-357,28/02/2019,Adult Social Care,ANCHOR,01/02/2019,"1,688.84",73500-RESIDENTIAL,SUPPORT WITH MEMORY & COGNITION,Third Party Payments,Revenue
Walsall Council,http://opendatacommunities.org/id/metropolitan-district-council/walsall,WC101-358,28/02/2019,Adult Social Care,ANCHOR,01/02/2019,"1,688.84",73500-RESIDENTIAL,PHYSICAL SUPPORT,Third Party Payments,Revenue
Walsall Council,http://opendatacommunities.org/id/metropolitan-district-council/walsall,WC101-359,28/02/2019,Adult Social Care,ANCHOR,01/02/2019,"1,688.84",73500-RESIDENTIAL,PHYSICAL SUPPORT,Third Party Payments,Revenue
Walsall Council,http://opendatacommunities.org/id/metropolitan-district-council/walsall,WC101-360,28/02/2019,Adult Social Care,ANCHOR,01/02/2019,"1,688.84",73500-RESIDENTIAL,SUPPORT WITH MEMORY & COGNITION,Third Party Payments,Revenue
Walsall Council,http://opendatacommunities.org/id/metropolitan-district-council/walsall,WC101-361,28/02/2019,Adult Social Care,ANCHOR,01/02/2019,"1,721.87",73500-RESIDENTIAL,SOCIAL SUPPORT,Third Party Payments,Revenue
Walsall Council,http://opendatacommunities.org/id/metropolitan-district-council/walsall,WC101-362,28/02/2019,Adult Social Care,ANCHOR,01/02/2019,"1,840.00",73501-RESIDENTIAL EMI,PHYSICAL SUPPORT,Third Party Payments,Revenue
Walsall Council,http://opendatacommunities.org/id/metropolitan-district-council/walsall,WC101-363,28/02/2019,Adult Social Care,ANCHOR,01/02/2019,"1,840.00",73500-RESIDENTIAL,PHYSICAL SUPPORT,Third Party Payments,Revenue
Walsall Council,http://opendatacommunities.org/id/metropolitan-district-council/walsall,WC101-364,28/02/2019,Adult Social Care,ANCHOR,01/02/2019,"1,848.84",73500-RESIDENTIAL,PHYSICAL SUPPORT,Third Party Payments,Revenue
Walsall Council,http://opendatacommunities.org/id/metropolitan-district-council/walsall,WC101-365,28/02/2019,Adult Social Care,ANCHOR,01/02/2019,"1,876.52",73501-RESIDENTIAL EMI,PHYSICAL SUPPORT,Third Party Payments,Revenue
Walsall Council,http://opendatacommunities.org/id/metropolitan-district-council/walsall,WC101-366,28/02/2019,Adult Social Care,ANCHOR,01/02/2019,"1,876.52",73501-RESIDENTIAL EMI,SUPPORT WITH MEMORY & COGNITION,Third Party Payments,Revenue
Walsall Council,http://opendatacommunities.org/id/metropolitan-district-council/walsall,WC101-367,28/02/2019,Adult Social Care,ANCHOR,01/02/2019,"1,876.52",73501-RESIDENTIAL EMI,MENTAL HEALTH SUPPORT,Third Party Payments,Revenue
Walsall Council,http://opendatacommunities.org/id/metropolitan-district-council/walsall,WC101-368,28/02/2019,Adult Social Care,ANCHOR,01/02/2019,"1,876.52",73501-RESIDENTIAL EMI,SUPPORT WITH MEMORY & COGNITION,Third Party Payments,Revenue
Walsall Council,http://opendatacommunities.org/id/metropolitan-district-council/walsall,WC101-369,28/02/2019,Adult Social Care,ANCHOR,01/02/2019,"1,876.52",73501-RESIDENTIAL EMI,MENTAL HEALTH SUPPORT,Third Party Payments,Revenue
Walsall Council,http://opendatacommunities.org/id/metropolitan-district-council/walsall,WC101-370,28/02/2019,Adult Social Care,ANCHOR,01/02/2019,"1,876.52",73501-RESIDENTIAL EMI,MENTAL HEALTH SUPPORT,Third Party Payments,Revenue
Walsall Council,http://opendatacommunities.org/id/metropolitan-district-council/walsall,WC101-371,28/02/2019,Adult Social Care,ANCHOR,01/02/2019,"1,876.52",73501-RESIDENTIAL EMI,SUPPORT WITH MEMORY & COGNITION,Third Party Payments,Revenue
Walsall Council,http://opendatacommunities.org/id/metropolitan-district-council/walsall,WC101-372,28/02/2019,Adult Social Care,ANCHOR,01/02/2019,"1,876.52",73501-RESIDENTIAL EMI,MENTAL HEALTH SUPPORT,Third Party Payments,Revenue
Walsall Council,http://opendatacommunities.org/id/metropolitan-district-council/walsall,WC101-373,28/02/2019,Adult Social Care,ANCHOR,01/02/2019,"1,876.52",73501-RESIDENTIAL EMI,PHYSICAL SUPPORT,Third Party Payments,Revenue
Walsall Council,http://opendatacommunities.org/id/metropolitan-district-council/walsall,WC101-374,28/02/2019,Adult Social Care,ANCHOR,01/02/2019,"1,876.52",73501-RESIDENTIAL EMI,PHYSICAL SUPPORT,Third Party Payments,Revenue
Walsall Council,http://opendatacommunities.org/id/metropolitan-district-council/walsall,WC101-375,28/02/2019,Adult Social Care,ANCHOR,01/02/2019,"1,876.52",73501-RESIDENTIAL EMI,PHYSICAL SUPPORT,Third Party Payments,Revenue
Walsall Council,http://opendatacommunities.org/id/metropolitan-district-council/walsall,WC101-376,28/02/2019,Adult Social Care,ANCHOR,01/02/2019,"1,876.52",73501-RESIDENTIAL EMI,PHYSICAL SUPPORT,Third Party Payments,Revenue
Walsall Council,http://opendatacommunities.org/id/metropolitan-district-council/walsall,WC101-377,28/02/2019,Adult Social Care,ANCHOR,01/02/2019,"1,876.52",73501-RESIDENTIAL EMI,PHYSICAL SUPPORT,Third Party Payments,Revenue
Walsall Council,http://opendatacommunities.org/id/metropolitan-district-council/walsall,WC101-378,28/02/2019,Adult Social Care,ANCHOR,01/02/2019,"1,876.52",73501-RESIDENTIAL EMI,SUPPORT WITH MEMORY & COGNITION,Third Party Payments,Revenue
Walsall Council,http://opendatacommunities.org/id/metropolitan-district-council/walsall,WC101-379,28/02/2019,Adult Social Care,ANCHOR,01/02/2019,"1,876.52",73501-RESIDENTIAL EMI,PHYSICAL SUPPORT,Third Party Payments,Revenue
Walsall Council,http://opendatacommunities.org/id/metropolitan-district-council/walsall,WC101-380,28/02/2019,Adult Social Care,ANCHOR,01/02/2019,"1,968.84",73500-RESIDENTIAL,SENSORY SUPPORT,Third Party Payments,Revenue
Walsall Council,http://opendatacommunities.org/id/metropolitan-district-council/walsall,WC101-381,28/02/2019,Adult Social Care,ANCHOR,01/02/2019,"2,008.84",73500-RESIDENTIAL,PHYSICAL SUPPORT,Third Party Payments,Revenue
Walsall Council,http://opendatacommunities.org/id/metropolitan-district-council/walsall,WC101-382,28/02/2019,Adult Social Care,ANCHOR,01/02/2019,"2,028.84",73500-RESIDENTIAL,PHYSICAL SUPPORT,Third Party Payments,Revenue
Walsall Council,http://opendatacommunities.org/id/metropolitan-district-council/walsall,WC101-383,28/02/2019,Adult Social Care,ANCHOR,01/02/2019,"2,048.84",73501-RESIDENTIAL EMI,SENSORY SUPPORT,Third Party Payments,Revenue
Walsall Council,http://opendatacommunities.org/id/metropolitan-district-council/walsall,WC101-384,28/02/2019,Adult Social Care,ANCHOR,01/02/2019,"2,076.52",73501-RESIDENTIAL EMI,SUPPORT WITH MEMORY & COGNITION,Third Party Payments,Revenue
Walsall Council,http://opendatacommunities.org/id/metropolitan-district-council/walsall,WC101-385,28/02/2019,Adult Social Care,ANCHOR,01/02/2019,"2,080.00",73501-RESIDENTIAL EMI,MENTAL HEALTH SUPPORT,Third Party Payments,Revenue
Walsall Council,http://opendatacommunities.org/id/metropolitan-district-council/walsall,WC101-386,28/02/2019,Adult Social Care,ANCHOR,01/02/2019,"2,180.00",73500-RESIDENTIAL,PHYSICAL SUPPORT,Third Party Payments,Revenue
Walsall Council,http://opendatacommunities.org/id/metropolitan-district-council/walsall,WC101-387,28/02/2019,Adult Social Care,ANCHOR,01/02/2019,"2,200.00",73500-RESIDENTIAL,PHYSICAL SUPPORT,Third Party Payments,Revenue
Walsall Council,http://opendatacommunities.org/id/metropolitan-district-council/walsall,WC101-388,28/02/2019,Adult Social Care,ANCHOR,01/02/2019,"2,216.52",73501-RESIDENTIAL EMI,SUPPORT WITH MEMORY & COGNITION,Third Party Payments,Revenue
Walsall Council,http://opendatacommunities.org/id/metropolitan-district-council/walsall,WC101-389,28/02/2019,Adult Social Care,ANCHOR,01/02/2019,"2,216.52",73501-RESIDENTIAL EMI,PHYSICAL SUPPORT,Third Party Payments,Revenue
Walsall Council,http://opendatacommunities.org/id/metropolitan-district-council/walsall,WC101-390,28/02/2019,Adult Social Care,ANCHOR,01/02/2019,"2,236.52",73501-RESIDENTIAL EMI,PHYSICAL SUPPORT,Third Party Payments,Revenue
Walsall Council,http://opendatacommunities.org/id/metropolitan-district-council/walsall,WC101-391,28/02/2019,Adult Social Care,ANCHOR,01/02/2019,"4,628.39",73501-RESIDENTIAL EMI,PHYSICAL SUPPORT,Third Party Payments,Revenue
Walsall Council,http://opendatacommunities.org/id/metropolitan-district-council/walsall,WC101-392,28/02/2019,Childrens,REDACTED,12/02/2019,314.44,74509-SPECIAL GUARDIANSHIP ORDERS,ADOPTION ALLOWANCES,Transfer Payments,Revenue
Walsall Council,http://opendatacommunities.org/id/metropolitan-district-council/walsall,WC101-393,28/02/2019,Childrens,REDACTED,21/02/2019,385.24,74506-TRAVEL-FOSTER CARERS,INTERNAL FOSTER CARE PROVISION,Transfer Payments,Revenue
Walsall Council,http://opendatacommunities.org/id/metropolitan-district-council/walsall,WC101-394,28/02/2019,Childrens,REDACTED,21/02/2019,720.00,74501-MAINTENANCE ALLOWANCE-FOSTER CARERS,INTERNAL FOSTER CARE PROVISION,Transfer Payments,Revenue
Walsall Council,http://opendatacommunities.org/id/metropolitan-district-council/walsall,WC101-395,28/02/2019,Childrens,REDACTED,21/02/2019,"1,000.00",74508-INTERNAL FOSTER CARERS-CARER FEES,INTERNAL FOSTER CARE PROVISION,Transfer Payments,Revenue
Walsall Council,http://opendatacommunities.org/id/metropolitan-district-council/walsall,WC101-396,28/02/2019,Adult Social Care,REDACTED,04/02/2019,619.24,73506-DIRECT PAYMENT,LEARNING DISABILITY SUPPORT,Third Party Payments,Revenue
Walsall Council,http://opendatacommunities.org/id/metropolitan-district-council/walsall,WC101-397,28/02/2019,Adult Social Care,REDACTED,04/02/2019,"1,771.28",73506-DIRECT PAYMENT,PHYSICAL SUPPORT,Third Party Payments,Revenue
Walsall Council,http://opendatacommunities.org/id/metropolitan-district-council/walsall,WC101-398,28/02/2019,Adult Social Care,ANGEL COURT RESIDENTIAL CARE HOME,01/02/2019,"-2,472.94",73500-RESIDENTIAL,PHYSICAL SUPPORT,Third Party Payments,Revenue
Walsall Council,http://opendatacommunities.org/id/metropolitan-district-council/walsall,WC101-399,28/02/2019,Adult Social Care,ANGEL COURT RESIDENTIAL CARE HOME,01/02/2019,289.68,73504-SHORT STAY RESIDENTIAL,PHYSICAL SUPPORT,Third Party Payments,Revenue
Walsall Council,http://opendatacommunities.org/id/metropolitan-district-council/walsall,WC101-400,28/02/2019,Adult Social Care,ANGEL COURT RESIDENTIAL CARE HOME,01/02/2019,711.24,73500-RESIDENTIAL,PHYSICAL SUPPORT,Third Party Payments,Revenue
Walsall Council,http://opendatacommunities.org/id/metropolitan-district-council/walsall,WC101-401,28/02/2019,Adult Social Care,ANGEL COURT RESIDENTIAL CARE HOME,01/02/2019,"1,688.84",73500-RESIDENTIAL,PHYSICAL SUPPORT,Third Party Payments,Revenue
Walsall Council,http://opendatacommunities.org/id/metropolitan-district-council/walsall,WC101-402,28/02/2019,Adult Social Care,ANGEL COURT RESIDENTIAL CARE HOME,01/02/2019,"1,688.84",73500-RESIDENTIAL,PHYSICAL SUPPORT,Third Party Payments,Revenue
Walsall Council,http://opendatacommunities.org/id/metropolitan-district-council/walsall,WC101-403,28/02/2019,Adult Social Care,ANGEL COURT RESIDENTIAL CARE HOME,01/02/2019,"1,876.52",73501-RESIDENTIAL EMI,PHYSICAL SUPPORT,Third Party Payments,Revenue
Walsall Council,http://opendatacommunities.org/id/metropolitan-district-council/walsall,WC101-404,28/02/2019,Adult Social Care,ANGEL COURT RESIDENTIAL CARE HOME,01/02/2019,"2,400.00",73500-RESIDENTIAL,SOCIAL SUPPORT,Third Party Payments,Revenue
Walsall Council,http://opendatacommunities.org/id/metropolitan-district-council/walsall,WC101-405,28/02/2019,Childrens,REDACTED,12/02/2019,368.76,74509-SPECIAL GUARDIANSHIP ORDERS,ADOPTION ALLOWANCES,Transfer Payments,Revenue
Walsall Council,http://opendatacommunities.org/id/metropolitan-district-council/walsall,WC101-406,28/02/2019,Childrens,REDACTED,12/02/2019,368.76,74509-SPECIAL GUARDIANSHIP ORDERS,ADOPTION ALLOWANCES,Transfer Payments,Revenue
Walsall Council,http://opendatacommunities.org/id/metropolitan-district-council/walsall,WC101-407,28/02/2019,Childrens,REDACTED,12/02/2019,500.16,74509-SPECIAL GUARDIANSHIP ORDERS,ADOPTION ALLOWANCES,Transfer Payments,Revenue
Walsall Council,http://opendatacommunities.org/id/metropolitan-district-council/walsall,WC101-408,28/02/2019,Childrens,REDACTED,12/02/2019,312.04,74509-SPECIAL GUARDIANSHIP ORDERS,ADOPTION ALLOWANCES,Transfer Payments,Revenue
Walsall Council,http://opendatacommunities.org/id/metropolitan-district-council/walsall,WC101-409,28/02/2019,Childrens,ANGELS AND BUTTERFLIES CHILDMINDING,08/02/2019,518.76,66505-OTHER-GRANTS TO OTHER ORGS,EARLY YEARS - 2 YR OLDS,Third Party Payments,Revenue
Walsall Council,http://opendatacommunities.org/id/metropolitan-district-council/walsall,WC101-410,28/02/2019,Childrens,ANGELS WITHOUT WINGS,26/02/2019,"4,950.00",63000-PROFESSIONAL FEES AND SERVICES,ADOPTION TEAM,Supplies & Services,Revenue
Walsall Council,http://opendatacommunities.org/id/metropolitan-district-council/walsall,WC101-411,28/02/2019,Adult Social Care,REDACTED,04/02/2019,"1,152.12",73506-DIRECT PAYMENT,PHYSICAL SUPPORT,Third Party Payments,Revenue
Walsall Council,http://opendatacommunities.org/id/metropolitan-district-council/walsall,WC101-412,28/02/2019,Adult Social Care,ANSON COURT RESIDENTIAL HOME,01/02/2019,"1,140.87",73501-RESIDENTIAL EMI,PHYSICAL SUPPORT,Third Party Payments,Revenue
Walsall Council,http://opendatacommunities.org/id/metropolitan-district-council/walsall,WC101-413,28/02/2019,Adult Social Care,ANSON COURT RESIDENTIAL HOME,01/02/2019,"1,876.52",73501-RESIDENTIAL EMI,PHYSICAL SUPPORT,Third Party Payments,Revenue
Walsall Council,http://opendatacommunities.org/id/metropolitan-district-council/walsall,WC101-414,28/02/2019,Adult Social Care,ANSON COURT RESIDENTIAL HOME,01/02/2019,"1,876.52",73501-RESIDENTIAL EMI,MENTAL HEALTH SUPPORT,Third Party Payments,Revenue
Walsall Council,http://opendatacommunities.org/id/metropolitan-district-council/walsall,WC101-415,28/02/2019,Adult Social Care,ANSON COURT RESIDENTIAL HOME,01/02/2019,"1,876.52",73501-RESIDENTIAL EMI,MENTAL HEALTH SUPPORT,Third Party Payments,Revenue
Walsall Council,http://opendatacommunities.org/id/metropolitan-district-council/walsall,WC101-416,28/02/2019,Adult Social Care,ANSON COURT RESIDENTIAL HOME,01/02/2019,"1,876.52",73501-RESIDENTIAL EMI,SUPPORT WITH MEMORY & COGNITION,Third Party Payments,Revenue
Walsall Council,http://opendatacommunities.org/id/metropolitan-district-council/walsall,WC101-417,28/02/2019,Adult Social Care,ANSON COURT RESIDENTIAL HOME,01/02/2019,"1,876.52",73501-RESIDENTIAL EMI,PHYSICAL SUPPORT,Third Party Payments,Revenue
Walsall Council,http://opendatacommunities.org/id/metropolitan-district-council/walsall,WC101-418,28/02/2019,Adult Social Care,ANSON COURT RESIDENTIAL HOME,01/02/2019,"1,876.52",73501-RESIDENTIAL EMI,PHYSICAL SUPPORT,Third Party Payments,Revenue
Walsall Council,http://opendatacommunities.org/id/metropolitan-district-council/walsall,WC101-419,28/02/2019,Adult Social Care,ANSON COURT RESIDENTIAL HOME,01/02/2019,"1,876.52",73501-RESIDENTIAL EMI,MENTAL HEALTH SUPPORT,Third Party Payments,Revenue
Walsall Council,http://opendatacommunities.org/id/metropolitan-district-council/walsall,WC101-420,28/02/2019,Adult Social Care,ANSON COURT RESIDENTIAL HOME,01/02/2019,"1,876.52",73501-RESIDENTIAL EMI,PHYSICAL SUPPORT,Third Party Payments,Revenue
Walsall Council,http://opendatacommunities.org/id/metropolitan-district-council/walsall,WC101-421,28/02/2019,Adult Social Care,ANSON COURT RESIDENTIAL HOME,01/02/2019,"1,876.52",73501-RESIDENTIAL EMI,PHYSICAL SUPPORT,Third Party Payments,Revenue
Walsall Council,http://opendatacommunities.org/id/metropolitan-district-council/walsall,WC101-422,28/02/2019,Adult Social Care,ANSON COURT RESIDENTIAL HOME,01/02/2019,"1,876.52",73501-RESIDENTIAL EMI,SUPPORT WITH MEMORY & COGNITION,Third Party Payments,Revenue
Walsall Council,http://opendatacommunities.org/id/metropolitan-district-council/walsall,WC101-423,28/02/2019,Adult Social Care,ANSON COURT RESIDENTIAL HOME,01/02/2019,"1,876.52",73501-RESIDENTIAL EMI,SUPPORT WITH MEMORY & COGNITION,Third Party Payments,Revenue
Walsall Council,http://opendatacommunities.org/id/metropolitan-district-council/walsall,WC101-424,28/02/2019,Adult Social Care,ANSON COURT RESIDENTIAL HOME,01/02/2019,"1,876.52",73501-RESIDENTIAL EMI,SOCIAL SUPPORT,Third Party Payments,Revenue
Walsall Council,http://opendatacommunities.org/id/metropolitan-district-council/walsall,WC101-425,28/02/2019,Adult Social Care,ANSON COURT RESIDENTIAL HOME,01/02/2019,"1,876.52",73501-RESIDENTIAL EMI,SUPPORT WITH MEMORY & COGNITION,Third Party Payments,Revenue
Walsall Council,http://opendatacommunities.org/id/metropolitan-district-council/walsall,WC101-426,28/02/2019,Adult Social Care,ANSON COURT RESIDENTIAL HOME,01/02/2019,"1,876.52",73501-RESIDENTIAL EMI,SUPPORT WITH MEMORY & COGNITION,Third Party Payments,Revenue
Walsall Council,http://opendatacommunities.org/id/metropolitan-district-council/walsall,WC101-427,28/02/2019,Adult Social Care,ANSON COURT RESIDENTIAL HOME,01/02/2019,"1,876.52",73501-RESIDENTIAL EMI,SOCIAL SUPPORT,Third Party Payments,Revenue
Walsall Council,http://opendatacommunities.org/id/metropolitan-district-council/walsall,WC101-428,28/02/2019,Adult Social Care,ANSON COURT RESIDENTIAL HOME,01/02/2019,"1,956.52",73501-RESIDENTIAL EMI,SOCIAL SUPPORT,Third Party Payments,Revenue
Walsall Council,http://opendatacommunities.org/id/metropolitan-district-council/walsall,WC101-429,28/02/2019,Adult Social Care,ANSON COURT RESIDENTIAL HOME,01/02/2019,"1,956.52",73501-RESIDENTIAL EMI,MENTAL HEALTH SUPPORT,Third Party Payments,Revenue
Walsall Council,http://opendatacommunities.org/id/metropolitan-district-council/walsall,WC101-430,28/02/2019,Adult Social Care,ANSON COURT RESIDENTIAL HOME,01/02/2019,"1,956.52",73501-RESIDENTIAL EMI,PHYSICAL SUPPORT,Third Party Payments,Revenue
Walsall Council,http://opendatacommunities.org/id/metropolitan-district-council/walsall,WC101-431,28/02/2019,Adult Social Care,ANSON COURT RESIDENTIAL HOME,01/02/2019,"1,956.52",73501-RESIDENTIAL EMI,PHYSICAL SUPPORT,Third Party Payments,Revenue
Walsall Council,http://opendatacommunities.org/id/metropolitan-district-council/walsall,WC101-432,28/02/2019,Adult Social Care,ANSON COURT RESIDENTIAL HOME,01/02/2019,"1,996.52",73501-RESIDENTIAL EMI,PHYSICAL SUPPORT,Third Party Payments,Revenue
Walsall Council,http://opendatacommunities.org/id/metropolitan-district-council/walsall,WC101-433,28/02/2019,Adult Social Care,ANSON COURT RESIDENTIAL HOME,01/02/2019,"1,996.52",73501-RESIDENTIAL EMI,PHYSICAL SUPPORT,Third Party Payments,Revenue
Walsall Council,http://opendatacommunities.org/id/metropolitan-district-council/walsall,WC101-434,28/02/2019,Adult Social Care,ANSON COURT RESIDENTIAL HOME,01/02/2019,"1,996.52",73501-RESIDENTIAL EMI,MENTAL HEALTH SUPPORT,Third Party Payments,Revenue
Walsall Council,http://opendatacommunities.org/id/metropolitan-district-council/walsall,WC101-435,28/02/2019,Adult Social Care,ANSON COURT RESIDENTIAL HOME,01/02/2019,"2,353.04",73501-RESIDENTIAL EMI,PHYSICAL SUPPORT,Third Party Payments,Revenue
Walsall Council,http://opendatacommunities.org/id/metropolitan-district-council/walsall,WC101-436,28/02/2019,Childrens,REDACTED,12/02/2019,604.00,74510-RESIDENTS ORDERS,ADOPTION ALLOWANCES,Third Party Payments,Revenue
Walsall Council,http://opendatacommunities.org/id/metropolitan-district-council/walsall,WC101-437,28/02/2019,Childrens,REDACTED,12/02/2019,333.12,74509-SPECIAL GUARDIANSHIP ORDERS,ADOPTION ALLOWANCES,Transfer Payments,Revenue
Walsall Council,http://opendatacommunities.org/id/metropolitan-district-council/walsall,WC101-438,28/02/2019,Economy & Environment,APCOA PARKING SERVICES (UK) LTD,22/02/2019,"50,033.76",73025-PROFESSIONAL SERVICES-PRIV CONTRACTOR & OTHER AGENCIES,PARKING SERVICES OFF-STREET,Third Party Payments,Revenue
Walsall Council,http://opendatacommunities.org/id/metropolitan-district-council/walsall,WC101-439,28/02/2019,Childrens,APPLE TRANSCRIPTION LIMITED,22/02/2019,250.25,73014-LEGAL FEES-PRIV CONTRACTOR FEES,GENERAL MANAGEMENT SUPPORT (INC LEGAL),Third Party Payments,Revenue
Walsall Council,http://opendatacommunities.org/id/metropolitan-district-council/walsall,WC101-440,28/02/2019,Childrens,APPLE TRANSCRIPTION LIMITED,22/02/2019,253.35,73014-LEGAL FEES-PRIV CONTRACTOR FEES,GENERAL MANAGEMENT SUPPORT (INC LEGAL),Third Party Payments,Revenue
Walsall Council,http://opendatacommunities.org/id/metropolitan-district-council/walsall,WC101-441,28/02/2019,Childrens,AQUAID (BIRMINGHAM CENTRAL),12/02/2019,228.00,61009-BEVERAGES-PROVISIONS,PELSALL EDC,Supplies & Services,Revenue
Walsall Council,http://opendatacommunities.org/id/metropolitan-district-council/walsall,WC101-442,28/02/2019,Adult Social Care,ARBORETUM NURSING HOME.,01/02/2019,"1,893.99",73502-NURSING,SUPPORT WITH MEMORY & COGNITION,Third Party Payments,Revenue
Walsall Council,http://opendatacommunities.org/id/metropolitan-district-council/walsall,WC101-443,28/02/2019,Adult Social Care,ARBORETUM NURSING HOME.,01/02/2019,"1,928.28",73502-NURSING,PHYSICAL SUPPORT,Third Party Payments,Revenue
Walsall Council,http://opendatacommunities.org/id/metropolitan-district-council/walsall,WC101-444,28/02/2019,Adult Social Care,ARBORETUM NURSING HOME.,01/02/2019,"2,039.68",73502-NURSING,PHYSICAL SUPPORT,Third Party Payments,Revenue
Walsall Council,http://opendatacommunities.org/id/metropolitan-district-council/walsall,WC101-445,28/02/2019,Adult Social Care,ARBORETUM NURSING HOME.,01/02/2019,"2,039.68",73502-NURSING,PHYSICAL SUPPORT,Third Party Payments,Revenue
Walsall Council,http://opendatacommunities.org/id/metropolitan-district-council/walsall,WC101-446,28/02/2019,Adult Social Care,ARBORETUM NURSING HOME.,01/02/2019,"2,039.68",73502-NURSING,PHYSICAL SUPPORT,Third Party Payments,Revenue
Walsall Council,http://opendatacommunities.org/id/metropolitan-district-council/walsall,WC101-447,28/02/2019,Adult Social Care,ARBORETUM NURSING HOME.,01/02/2019,"2,082.54",73502-NURSING,PHYSICAL SUPPORT,Third Party Payments,Revenue
Walsall Council,http://opendatacommunities.org/id/metropolitan-district-council/walsall,WC101-448,28/02/2019,Adult Social Care,ARBORETUM NURSING HOME.,01/02/2019,"2,119.68",73500-RESIDENTIAL,PHYSICAL SUPPORT,Third Party Payments,Revenue
Walsall Council,http://opendatacommunities.org/id/metropolitan-district-council/walsall,WC101-449,28/02/2019,Adult Social Care,ARBORETUM NURSING HOME.,01/02/2019,"2,139.68",73502-NURSING,PHYSICAL SUPPORT,Third Party Payments,Revenue
Walsall Council,http://opendatacommunities.org/id/metropolitan-district-council/walsall,WC101-450,28/02/2019,Adult Social Care,ARBORETUM NURSING HOME.,01/02/2019,"2,159.68",73502-NURSING,PHYSICAL SUPPORT,Third Party Payments,Revenue
Walsall Council,http://opendatacommunities.org/id/metropolitan-district-council/walsall,WC101-451,28/02/2019,Adult Social Care,ARBORETUM NURSING HOME.,01/02/2019,"2,159.68",73502-NURSING,PHYSICAL SUPPORT,Third Party Payments,Revenue
Walsall Council,http://opendatacommunities.org/id/metropolitan-district-council/walsall,WC101-452,28/02/2019,Adult Social Care,ARBORETUM NURSING HOME.,01/02/2019,"2,159.68",73502-NURSING,PHYSICAL SUPPORT,Third Party Payments,Revenue
Walsall Council,http://opendatacommunities.org/id/metropolitan-district-council/walsall,WC101-453,28/02/2019,Adult Social Care,ARBORETUM NURSING HOME.,01/02/2019,"2,363.64",73503-NURSING EMI,PHYSICAL SUPPORT,Third Party Payments,Revenue
Walsall Council,http://opendatacommunities.org/id/metropolitan-district-council/walsall,WC101-454,28/02/2019,Economy & Environment,ARCADIS,05/02/2019,"1,000.00",01001-OTHER CONSULTANTS FEES,CFR 1072 CHALLENGE BLOCK-LGF,Capital,Capital
Walsall Council,http://opendatacommunities.org/id/metropolitan-district-council/walsall,WC101-455,28/02/2019,Childrens,ARCADIS,06/02/2019,"5,779.00",01001-OTHER CONSULTANTS FEES,CFR 783 BASIC NEED,Capital,Capital
Walsall Council,http://opendatacommunities.org/id/metropolitan-district-council/walsall,WC101-456,28/02/2019,Economy & Environment,ARCADIS,20/02/2019,"11,750.00",63000-PROFESSIONAL FEES AND SERVICES,SMARTER WORKPLACES WORKPLACE SOLUTIONS,Supplies & Services,Revenue
Walsall Council,http://opendatacommunities.org/id/metropolitan-district-council/walsall,WC101-457,28/02/2019,Childrens,ARCADIS,06/02/2019,"21,734.18",01001-OTHER CONSULTANTS FEES,CFR 783 BASIC NEED,Capital,Capital
Walsall Council,http://opendatacommunities.org/id/metropolitan-district-council/walsall,WC101-458,28/02/2019,Childrens,ARCHWAY ACADEMY,12/02/2019,"22,110.00",66502-TOP UP FUNDING -GRANTS TO SCHOOLS,INDEPENDENT PROVIDERS - SPECIAL & AP,Third Party Payments,Revenue
Walsall Council,http://opendatacommunities.org/id/metropolitan-district-council/walsall,WC101-459,28/02/2019,Childrens,ARCHWAY ACADEMY,22/02/2019,"24,763.20",66502-TOP UP FUNDING -GRANTS TO SCHOOLS,INDEPENDENT PROVIDERS - SPECIAL & AP,Third Party Payments,Revenue
Walsall Council,http://opendatacommunities.org/id/metropolitan-district-council/walsall,WC101-460,28/02/2019,Resources and Transformation,ARMSTRONG YORK ASBESTOS ENVIRONMENTAL LIMITED,15/02/2019,450.00,01006-SITE WORKS MAIN CONTRACTORS,CFR 801 ASBESTOS REMOVAL EAST,Capital,Capital
Walsall Council,http://opendatacommunities.org/id/metropolitan-district-council/walsall,WC101-461,28/02/2019,Childrens,ARTHUR M GRIFFITHS & SON LTD,01/02/2019,"4,929.78",01006-SITE WORKS MAIN CONTRACTORS,CFR 929 FIBBERSLEY PRIMARY SIGNIFICANT ENLARGEMENT,Capital,Capital
Walsall Council,http://opendatacommunities.org/id/metropolitan-district-council/walsall,WC101-462,28/02/2019,Childrens,ARTHUR M GRIFFITHS & SON LTD,07/02/2019,"18,697.00",01006-SITE WORKS MAIN CONTRACTORS,CFR 929 FIBBERSLEY PRIMARY SIGNIFICANT ENLARGEMENT,Capital,Capital
Walsall Council,http://opendatacommunities.org/id/metropolitan-district-council/walsall,WC101-463,28/02/2019,Economy & Environment,ASDA PHARMACY,15/02/2019,287.25,71007-CONTRIBUTION TO PCT,PUBLIC HEALTH BUSINESS SUPPORT,Third Party Payments,Revenue
Walsall Council,http://opendatacommunities.org/id/metropolitan-district-council/walsall,WC101-464,28/02/2019,Economy & Environment,ASDA PHARMACY,26/02/2019,292.47,71007-CONTRIBUTION TO PCT,PUBLIC HEALTH BUSINESS SUPPORT,Third Party Payments,Revenue
Walsall Council,http://opendatacommunities.org/id/metropolitan-district-council/walsall,WC101-465,28/02/2019,Economy & Environment,ASDA PHARMACY,15/02/2019,368.81,71007-CONTRIBUTION TO PCT,PUBLIC HEALTH BUSINESS SUPPORT,Third Party Payments,Revenue
Walsall Council,http://opendatacommunities.org/id/metropolitan-district-council/walsall,WC101-466,28/02/2019,Economy & Environment,ASDA PHARMACY,05/02/2019,487.00,71007-CONTRIBUTION TO PCT,PUBLIC HEALTH BUSINESS SUPPORT,Third Party Payments,Revenue
Walsall Council,http://opendatacommunities.org/id/metropolitan-district-council/walsall,WC101-467,28/02/2019,Adult Social Care,ASH GRANGE CARE HOME,01/02/2019,728.46,73502-NURSING,PHYSICAL SUPPORT,Third Party Payments,Revenue
Walsall Council,http://opendatacommunities.org/id/metropolitan-district-council/walsall,WC101-468,28/02/2019,Adult Social Care,ASH GRANGE CARE HOME,11/02/2019,"1,529.76",73025-PROFESSIONAL SERVICES-PRIV CONTRACTOR & OTHER AGENCIES,TRANSITIONAL CARE SUPPORT TEAM,Third Party Payments,Revenue
Walsall Council,http://opendatacommunities.org/id/metropolitan-district-council/walsall,WC101-469,28/02/2019,Adult Social Care,ASH GRANGE CARE HOME,13/02/2019,"1,675.45",73025-PROFESSIONAL SERVICES-PRIV CONTRACTOR & OTHER AGENCIES,TRANSITIONAL CARE SUPPORT TEAM,Third Party Payments,Revenue
Walsall Council,http://opendatacommunities.org/id/metropolitan-district-council/walsall,WC101-470,28/02/2019,Adult Social Care,ASH GRANGE CARE HOME,01/02/2019,"1,688.84",73500-RESIDENTIAL,SUPPORT WITH MEMORY & COGNITION,Third Party Payments,Revenue
Walsall Council,http://opendatacommunities.org/id/metropolitan-district-council/walsall,WC101-471,28/02/2019,Adult Social Care,ASH GRANGE CARE HOME,01/02/2019,"1,688.84",73500-RESIDENTIAL,MENTAL HEALTH SUPPORT,Third Party Payments,Revenue
Walsall Council,http://opendatacommunities.org/id/metropolitan-district-council/walsall,WC101-472,28/02/2019,Adult Social Care,ASH GRANGE CARE HOME,13/02/2019,"1,748.29",73025-PROFESSIONAL SERVICES-PRIV CONTRACTOR & OTHER AGENCIES,TRANSITIONAL CARE SUPPORT TEAM,Third Party Payments,Revenue
Walsall Council,http://opendatacommunities.org/id/metropolitan-district-council/walsall,WC101-473,28/02/2019,Adult Social Care,ASH GRANGE CARE HOME,01/02/2019,"1,748.30",73502-NURSING,SOCIAL SUPPORT,Third Party Payments,Revenue
Walsall Council,http://opendatacommunities.org/id/metropolitan-district-council/walsall,WC101-474,28/02/2019,Adult Social Care,ASH GRANGE CARE HOME,01/02/2019,"2,039.68",73502-NURSING,PHYSICAL SUPPORT,Third Party Payments,Revenue
Walsall Council,http://opendatacommunities.org/id/metropolitan-district-council/walsall,WC101-475,28/02/2019,Adult Social Care,ASH GRANGE CARE HOME,01/02/2019,"2,039.68",73502-NURSING,PHYSICAL SUPPORT,Third Party Payments,Revenue
Walsall Council,http://opendatacommunities.org/id/metropolitan-district-council/walsall,WC101-476,28/02/2019,Adult Social Care,ASH GRANGE CARE HOME,01/02/2019,"2,039.68",73502-NURSING,SUPPORT WITH MEMORY & COGNITION,Third Party Payments,Revenue
Walsall Council,http://opendatacommunities.org/id/metropolitan-district-council/walsall,WC101-477,28/02/2019,Adult Social Care,ASH GRANGE CARE HOME,01/02/2019,"2,039.68",73502-NURSING,PHYSICAL SUPPORT,Third Party Payments,Revenue
Walsall Council,http://opendatacommunities.org/id/metropolitan-district-council/walsall,WC101-478,28/02/2019,Adult Social Care,ASH GRANGE CARE HOME,01/02/2019,"2,039.68",73502-NURSING,PHYSICAL SUPPORT,Third Party Payments,Revenue
Walsall Council,http://opendatacommunities.org/id/metropolitan-district-council/walsall,WC101-479,28/02/2019,Adult Social Care,ASH GRANGE CARE HOME,01/02/2019,"2,039.68",73502-NURSING,PHYSICAL SUPPORT,Third Party Payments,Revenue
Walsall Council,http://opendatacommunities.org/id/metropolitan-district-council/walsall,WC101-480,28/02/2019,Adult Social Care,ASH GRANGE CARE HOME,01/02/2019,"2,039.68",73502-NURSING,PHYSICAL SUPPORT,Third Party Payments,Revenue
Walsall Council,http://opendatacommunities.org/id/metropolitan-district-council/walsall,WC101-481,28/02/2019,Adult Social Care,ASH GRANGE CARE HOME,01/02/2019,"2,039.68",73502-NURSING,PHYSICAL SUPPORT,Third Party Payments,Revenue
Walsall Council,http://opendatacommunities.org/id/metropolitan-district-council/walsall,WC101-482,28/02/2019,Adult Social Care,ASH GRANGE CARE HOME,01/02/2019,"2,039.68",73502-NURSING,PHYSICAL SUPPORT,Third Party Payments,Revenue
Walsall Council,http://opendatacommunities.org/id/metropolitan-district-council/walsall,WC101-483,28/02/2019,Adult Social Care,ASH GRANGE CARE HOME,01/02/2019,"2,039.68",73502-NURSING,MENTAL HEALTH SUPPORT,Third Party Payments,Revenue
Walsall Council,http://opendatacommunities.org/id/metropolitan-district-council/walsall,WC101-484,28/02/2019,Adult Social Care,ASH GRANGE CARE HOME,01/02/2019,"2,039.68",73502-NURSING,PHYSICAL SUPPORT,Third Party Payments,Revenue
Walsall Council,http://opendatacommunities.org/id/metropolitan-district-council/walsall,WC101-485,28/02/2019,Adult Social Care,ASH GRANGE CARE HOME,01/02/2019,"2,039.68",73502-NURSING,PHYSICAL SUPPORT,Third Party Payments,Revenue
Walsall Council,http://opendatacommunities.org/id/metropolitan-district-council/walsall,WC101-486,28/02/2019,Adult Social Care,ASH GRANGE CARE HOME,01/02/2019,"2,039.68",73502-NURSING,PHYSICAL SUPPORT,Third Party Payments,Revenue
Walsall Council,http://opendatacommunities.org/id/metropolitan-district-council/walsall,WC101-487,28/02/2019,Adult Social Care,ASH GRANGE CARE HOME,01/02/2019,"2,039.68",73502-NURSING,PHYSICAL SUPPORT,Third Party Payments,Revenue
Walsall Council,http://opendatacommunities.org/id/metropolitan-district-council/walsall,WC101-488,28/02/2019,Adult Social Care,ASH GRANGE CARE HOME,01/02/2019,"2,039.68",73502-NURSING,MENTAL HEALTH SUPPORT,Third Party Payments,Revenue
Walsall Council,http://opendatacommunities.org/id/metropolitan-district-council/walsall,WC101-489,28/02/2019,Adult Social Care,ASH GRANGE CARE HOME,01/02/2019,"2,243.64",73503-NURSING EMI,PHYSICAL SUPPORT,Third Party Payments,Revenue
Walsall Council,http://opendatacommunities.org/id/metropolitan-district-council/walsall,WC101-490,28/02/2019,Adult Social Care,ASH GRANGE CARE HOME,01/02/2019,"2,243.64",73503-NURSING EMI,PHYSICAL SUPPORT,Third Party Payments,Revenue
Walsall Council,http://opendatacommunities.org/id/metropolitan-district-council/walsall,WC101-491,28/02/2019,Adult Social Care,ASH GRANGE CARE HOME,01/02/2019,"2,319.68",73502-NURSING,PHYSICAL SUPPORT,Third Party Payments,Revenue
Walsall Council,http://opendatacommunities.org/id/metropolitan-district-council/walsall,WC101-492,28/02/2019,Adult Social Care,ASH GRANGE CARE HOME,01/02/2019,"2,480.00",73503-NURSING EMI,PHYSICAL SUPPORT,Third Party Payments,Revenue
Walsall Council,http://opendatacommunities.org/id/metropolitan-district-council/walsall,WC101-493,28/02/2019,Adult Social Care,ASH GRANGE CARE HOME,01/02/2019,"2,495.72",73502-NURSING,LEARNING DISABILITY SUPPORT,Third Party Payments,Revenue
Walsall Council,http://opendatacommunities.org/id/metropolitan-district-council/walsall,WC101-494,28/02/2019,Adult Social Care,ASH GRANGE CARE HOME,01/02/2019,"3,709.77",73504-SHORT STAY RESIDENTIAL,PHYSICAL SUPPORT,Third Party Payments,Revenue
Walsall Council,http://opendatacommunities.org/id/metropolitan-district-council/walsall,WC101-495,28/02/2019,Adult Social Care,ASHBOURNE LODGE,01/02/2019,981.80,73500-RESIDENTIAL,PHYSICAL SUPPORT,Third Party Payments,Revenue
Walsall Council,http://opendatacommunities.org/id/metropolitan-district-council/walsall,WC101-496,28/02/2019,Adult Social Care,REDACTED,04/02/2019,"1,217.12",73506-DIRECT PAYMENT,LEARNING DISABILITY SUPPORT,Third Party Payments,Revenue
Walsall Council,http://opendatacommunities.org/id/metropolitan-district-council/walsall,WC101-497,28/02/2019,Adult Social Care,REDACTED,04/02/2019,"1,092.00",73506-DIRECT PAYMENT,LEARNING DISABILITY SUPPORT,Third Party Payments,Revenue
Walsall Council,http://opendatacommunities.org/id/metropolitan-district-council/walsall,WC101-498,28/02/2019,Economy & Environment,ASKEWS AND HOLTS LIBRARY SERVICES LTD,05/02/2019,"1,237.50",60501-LIBRARY BOOKS,LIBRARY MANAGEMENT,Supplies & Services,Revenue
Walsall Council,http://opendatacommunities.org/id/metropolitan-district-council/walsall,WC101-499,28/02/2019,Economy & Environment,ASKEWS AND HOLTS LIBRARY SERVICES LTD,20/02/2019,"1,391.55",60501-LIBRARY BOOKS,LIBRARY MANAGEMENT,Supplies & Services,Revenue
Walsall Council,http://opendatacommunities.org/id/metropolitan-district-council/walsall,WC101-500,28/02/2019,Economy & Environment,ASKEWS AND HOLTS LIBRARY SERVICES LTD,05/02/2019,"1,709.27",60501-LIBRARY BOOKS,LIBRARY MANAGEMENT,Supplies & Services,Revenue
Walsall Council,http://opendatacommunities.org/id/metropolitan-district-council/walsall,WC101-501,28/02/2019,Economy & Environment,ASKEWS AND HOLTS LIBRARY SERVICES LTD,07/02/2019,"1,774.28",60501-LIBRARY BOOKS,LIBRARY MANAGEMENT,Supplies & Services,Revenue
Walsall Council,http://opendatacommunities.org/id/metropolitan-district-council/walsall,WC101-502,28/02/2019,Economy & Environment,ASKEWS AND HOLTS LIBRARY SERVICES LTD,26/02/2019,"2,585.03",60501-LIBRARY BOOKS,LIBRARY MANAGEMENT,Supplies & Services,Revenue
Walsall Council,http://opendatacommunities.org/id/metropolitan-district-council/walsall,WC101-503,28/02/2019,Adult Social Care,REDACTED,04/02/2019,775.20,73506-DIRECT PAYMENT,PHYSICAL SUPPORT,Third Party Payments,Revenue
Walsall Council,http://opendatacommunities.org/id/metropolitan-district-council/walsall,WC101-504,28/02/2019,Adult Social Care,ASSURED HEALTHCARE SOLUTIONS (PARK FARM LODGE),01/02/2019,"1,948.32",73500-RESIDENTIAL,PHYSICAL SUPPORT,Third Party Payments,Revenue
Walsall Council,http://opendatacommunities.org/id/metropolitan-district-council/walsall,WC101-505,28/02/2019,Childrens,ATTACHMENT WORKS LTD,26/02/2019,"5,000.00",63000-PROFESSIONAL FEES AND SERVICES,ADOPTION TEAM,Supplies & Services,Revenue
Walsall Council,http://opendatacommunities.org/id/metropolitan-district-council/walsall,WC101-506,28/02/2019,Economy & Environment,AUDIENCE SYSTEMS LTD,07/02/2019,"1,088.80",63000-PROFESSIONAL FEES AND SERVICES,FOREST ARTS CENTRE,Supplies & Services,Revenue
Walsall Council,http://opendatacommunities.org/id/metropolitan-district-council/walsall,WC101-507,28/02/2019,Resources and Transformation,AURORA GRAPHICS & DISPLAYS LTD,21/02/2019,435.00,62008-OUTWORK-PRINT ROOM,PRINTING SERVICES,Supplies & Services,Revenue
Walsall Council,http://opendatacommunities.org/id/metropolitan-district-council/walsall,WC101-508,28/02/2019,Adult Social Care,AUTISM WEST MIDLANDS,01/02/2019,"7,101.48",73500-RESIDENTIAL,LEARNING DISABILITY SUPPORT,Third Party Payments,Revenue
Walsall Council,http://opendatacommunities.org/id/metropolitan-district-council/walsall,WC101-509,28/02/2019,Adult Social Care,AUTISM WEST MIDLANDS 001,01/02/2019,"4,746.96",73500-RESIDENTIAL,LEARNING DISABILITY SUPPORT,Third Party Payments,Revenue
Walsall Council,http://opendatacommunities.org/id/metropolitan-district-council/walsall,WC101-510,28/02/2019,Economy & Environment,AVALON PROMOTIONS LTD,14/02/2019,"3,594.10",63000-PROFESSIONAL FEES AND SERVICES,FOREST ARTS CENTRE,Supplies & Services,Revenue
Walsall Council,http://opendatacommunities.org/id/metropolitan-district-council/walsall,WC101-511,28/02/2019,Adult Social Care,REDACTED,04/02/2019,989.04,73506-DIRECT PAYMENT,SUPPORT WITH MEMORY & COGNITION,Third Party Payments,Revenue
Walsall Council,http://opendatacommunities.org/id/metropolitan-district-council/walsall,WC101-512,28/02/2019,Economy & Environment,AXIELL LIMITED,06/02/2019,237.14,63800-COMPUTER EQUIPMENT AND SUPPLIES,BLOXWICH LIBRARY,Supplies & Services,Revenue
Walsall Council,http://opendatacommunities.org/id/metropolitan-district-council/walsall,WC101-513,28/02/2019,Adult Social Care,REDACTED,04/02/2019,"3,182.40",73506-DIRECT PAYMENT,LEARNING DISABILITY SUPPORT,Third Party Payments,Revenue
Walsall Council,http://opendatacommunities.org/id/metropolitan-district-council/walsall,WC101-514,28/02/2019,Childrens,REDACTED,07/02/2019,464.00,76000-TRANSFER PAYMENTS - SOCIAL SERVICES CLIENTS,TRANSITION AND LEAVING CARE PLACEMENTS,Transfer Payments,Revenue
Walsall Council,http://opendatacommunities.org/id/metropolitan-district-council/walsall,WC101-515,28/02/2019,Childrens,REDACTED,27/02/2019,464.00,76000-TRANSFER PAYMENTS - SOCIAL SERVICES CLIENTS,TRANSITION AND LEAVING CARE PLACEMENTS,Transfer Payments,Revenue
Walsall Council,http://opendatacommunities.org/id/metropolitan-district-council/walsall,WC101-516,28/02/2019,Childrens,BAILY GARNER LLP,15/02/2019,328.86,01001-OTHER CONSULTANTS FEES,CFR 783 BASIC NEED,Capital,Capital
Walsall Council,http://opendatacommunities.org/id/metropolitan-district-council/walsall,WC101-517,28/02/2019,Adult Social Care,REDACTED,04/02/2019,"3,328.80",73506-DIRECT PAYMENT,LEARNING DISABILITY SUPPORT,Third Party Payments,Revenue
Walsall Council,http://opendatacommunities.org/id/metropolitan-district-council/walsall,WC101-518,28/02/2019,Adult Social Care,REDACTED,04/02/2019,"1,582.88",73506-DIRECT PAYMENT,PHYSICAL SUPPORT,Third Party Payments,Revenue
Walsall Council,http://opendatacommunities.org/id/metropolitan-district-council/walsall,WC101-519,28/02/2019,Childrens,REDACTED,12/02/2019,480.00,74508-INTERNAL FOSTER CARERS-CARER FEES,FAMILY & FRIENDS FOSTER CARE PROVISION,Transfer Payments,Revenue
Walsall Council,http://opendatacommunities.org/id/metropolitan-district-council/walsall,WC101-520,28/02/2019,Childrens,REDACTED,12/02/2019,540.00,74501-MAINTENANCE ALLOWANCE-FOSTER CARERS,FAMILY & FRIENDS FOSTER CARE PROVISION,Transfer Payments,Revenue
Walsall Council,http://opendatacommunities.org/id/metropolitan-district-council/walsall,WC101-521,28/02/2019,Economy & Environment,BARHALE PLC,11/02/2019,225.00,30030-EXTERNAL TRAINING,ENGINEERING MANAGEMENT,Employees,Revenue
Walsall Council,http://opendatacommunities.org/id/metropolitan-district-council/walsall,WC101-522,28/02/2019,Childrens,BARNARDOS SERVICES LTD,21/02/2019,"3,116.40",74037-INDEPENDENT FOSTER CARE-OTH AGENCY PROVISION,EXTERNAL FOSTER CARE PROVISION,Third Party Payments,Revenue
Walsall Council,http://opendatacommunities.org/id/metropolitan-district-council/walsall,WC101-523,28/02/2019,Adult Social Care,BARTHOLAMEW LODGE CARE HOME,01/02/2019,"2,823.44",73503-NURSING EMI,PHYSICAL SUPPORT,Third Party Payments,Revenue
Walsall Council,http://opendatacommunities.org/id/metropolitan-district-council/walsall,WC101-524,28/02/2019,Economy & Environment,BAT FABRICATIONS LTD,14/02/2019,"7,610.00","40000-REPAIRS,ALTERATIONS & MAINTENANCE-PREM",GREEN SPACE MANAGEMENT,Premises,Revenue
Walsall Council,http://opendatacommunities.org/id/metropolitan-district-council/walsall,WC101-525,28/02/2019,Childrens,BAT FABRICATIONS LTD,22/02/2019,"19,250.00",01006-SITE WORKS MAIN CONTRACTORS,CFR 1299 LINDENS PRIMARY SECURITY FENCING,Capital,Capital
Walsall Council,http://opendatacommunities.org/id/metropolitan-district-council/walsall,WC101-526,28/02/2019,Economy & Environment,BATLEYS,08/02/2019,352.47,61009-BEVERAGES-PROVISIONS,FOREST ARTS CENTRE,Supplies & Services,Revenue
Walsall Council,http://opendatacommunities.org/id/metropolitan-district-council/walsall,WC101-527,28/02/2019,Resources and Transformation,BATLEYS,06/02/2019,665.29,61016-FOOD AND BEVERAGES-PROVISIONS,WALSALL TOWN HALL,Supplies & Services,Revenue
Walsall Council,http://opendatacommunities.org/id/metropolitan-district-council/walsall,WC101-528,28/02/2019,Resources and Transformation,BCB PROMOTIONS,25/02/2019,200.00,62515-MISCELLANEOUS SUPPLIES,WALSALL TOWN HALL,Supplies & Services,Revenue
Walsall Council,http://opendatacommunities.org/id/metropolitan-district-council/walsall,WC101-529,28/02/2019,Resources and Transformation,BCB PROMOTIONS,25/02/2019,420.00,62515-MISCELLANEOUS SUPPLIES,LEISURE INTERNET BOOKINGS - HOLDING AC,Supplies & Services,Revenue
Walsall Council,http://opendatacommunities.org/id/metropolitan-district-council/walsall,WC101-530,28/02/2019,Economy & Environment,BEADEN POWERLEC LIMITED,13/02/2019,"1,160.00","40000-REPAIRS,ALTERATIONS & MAINTENANCE-PREM",ARBORETUM HLF,Premises,Revenue
Walsall Council,http://opendatacommunities.org/id/metropolitan-district-council/walsall,WC101-531,28/02/2019,Adult Social Care,REDACTED,04/02/2019,787.36,73506-DIRECT PAYMENT,PHYSICAL SUPPORT,Third Party Payments,Revenue
Walsall Council,http://opendatacommunities.org/id/metropolitan-district-council/walsall,WC101-532,28/02/2019,Childrens,BECKYS CHILDMINDING SERVICE,07/02/2019,287.10,66505-OTHER-GRANTS TO OTHER ORGS,EARLY YEARS - 3 YR OLDS,Third Party Payments,Revenue
Walsall Council,http://opendatacommunities.org/id/metropolitan-district-council/walsall,WC101-533,28/02/2019,Childrens,BECKYS CHILDMINDING SERVICE,07/02/2019,691.68,66505-OTHER-GRANTS TO OTHER ORGS,EARLY YEARS - 2 YR OLDS,Third Party Payments,Revenue
Walsall Council,http://opendatacommunities.org/id/metropolitan-district-council/walsall,WC101-534,28/02/2019,Resources and Transformation,BEECH TREE MANAGEMENT,13/02/2019,800.00,63000-PROFESSIONAL FEES AND SERVICES,COMMUNICATIONS,Supplies & Services,Revenue
Walsall Council,http://opendatacommunities.org/id/metropolitan-district-council/walsall,WC101-535,28/02/2019,Adult Social Care,BELVIDERE COURT,01/02/2019,"2,000.00",73502-NURSING,MENTAL HEALTH SUPPORT,Third Party Payments,Revenue
Walsall Council,http://opendatacommunities.org/id/metropolitan-district-council/walsall,WC101-536,28/02/2019,Adult Social Care,BELVIDERE COURT,01/02/2019,"2,017.76",73502-NURSING,MENTAL HEALTH SUPPORT,Third Party Payments,Revenue
Walsall Council,http://opendatacommunities.org/id/metropolitan-district-council/walsall,WC101-537,28/02/2019,Adult Social Care,BELVIDERE COURT,01/02/2019,"2,200.00",73503-NURSING EMI,PHYSICAL SUPPORT,Third Party Payments,Revenue
Walsall Council,http://opendatacommunities.org/id/metropolitan-district-council/walsall,WC101-538,28/02/2019,Adult Social Care,BELVIDERE COURT,01/02/2019,"2,200.00",73503-NURSING EMI,PHYSICAL SUPPORT,Third Party Payments,Revenue
Walsall Council,http://opendatacommunities.org/id/metropolitan-district-council/walsall,WC101-539,28/02/2019,Adult Social Care,REDACTED,04/02/2019,"2,569.64",73506-DIRECT PAYMENT,LEARNING DISABILITY SUPPORT,Third Party Payments,Revenue
Walsall Council,http://opendatacommunities.org/id/metropolitan-district-council/walsall,WC101-540,28/02/2019,Adult Social Care,BENTLEY COURT PRIORY,01/02/2019,"1,688.84",73500-RESIDENTIAL,MENTAL HEALTH SUPPORT,Third Party Payments,Revenue
Walsall Council,http://opendatacommunities.org/id/metropolitan-district-council/walsall,WC101-541,28/02/2019,Adult Social Care,BENTLEY COURT PRIORY,13/02/2019,"1,849.04",73025-PROFESSIONAL SERVICES-PRIV CONTRACTOR & OTHER AGENCIES,TRANSITIONAL CARE SUPPORT TEAM,Third Party Payments,Revenue
Walsall Council,http://opendatacommunities.org/id/metropolitan-district-council/walsall,WC101-542,28/02/2019,Adult Social Care,BENTLEY COURT PRIORY,01/02/2019,"2,039.68",73502-NURSING,PHYSICAL SUPPORT,Third Party Payments,Revenue
Walsall Council,http://opendatacommunities.org/id/metropolitan-district-council/walsall,WC101-543,28/02/2019,Adult Social Care,BENTLEY COURT PRIORY,01/02/2019,"2,243.64",73503-NURSING EMI,PHYSICAL SUPPORT,Third Party Payments,Revenue
Walsall Council,http://opendatacommunities.org/id/metropolitan-district-council/walsall,WC101-544,28/02/2019,Adult Social Care,BENTLEY COURT PRIORY,01/02/2019,"2,243.64",73503-NURSING EMI,SUPPORT WITH MEMORY & COGNITION,Third Party Payments,Revenue
Walsall Council,http://opendatacommunities.org/id/metropolitan-district-council/walsall,WC101-545,28/02/2019,Adult Social Care,BENTLEY COURT PRIORY,01/02/2019,"2,243.64",73503-NURSING EMI,PHYSICAL SUPPORT,Third Party Payments,Revenue
Walsall Council,http://opendatacommunities.org/id/metropolitan-district-council/walsall,WC101-546,28/02/2019,Adult Social Care,BENTLEY COURT PRIORY,01/02/2019,"2,243.64",73503-NURSING EMI,PHYSICAL SUPPORT,Third Party Payments,Revenue
Walsall Council,http://opendatacommunities.org/id/metropolitan-district-council/walsall,WC101-547,28/02/2019,Adult Social Care,BENTLEY COURT PRIORY,01/02/2019,"2,243.64",73503-NURSING EMI,PHYSICAL SUPPORT,Third Party Payments,Revenue
Walsall Council,http://opendatacommunities.org/id/metropolitan-district-council/walsall,WC101-548,28/02/2019,Adult Social Care,BENTLEY COURT PRIORY,01/02/2019,"2,243.64",73503-NURSING EMI,SOCIAL SUPPORT,Third Party Payments,Revenue
Walsall Council,http://opendatacommunities.org/id/metropolitan-district-council/walsall,WC101-549,28/02/2019,Adult Social Care,BENTLEY COURT PRIORY,01/02/2019,"2,243.64",73503-NURSING EMI,SUPPORT WITH MEMORY & COGNITION,Third Party Payments,Revenue
Walsall Council,http://opendatacommunities.org/id/metropolitan-district-council/walsall,WC101-550,28/02/2019,Adult Social Care,BENTLEY COURT PRIORY,01/02/2019,"2,804.55",73503-NURSING EMI,PHYSICAL SUPPORT,Third Party Payments,Revenue
Walsall Council,http://opendatacommunities.org/id/metropolitan-district-council/walsall,WC101-551,28/02/2019,Adult Social Care,BENTLEY COURT PRIORY,13/02/2019,"3,184.45",73025-PROFESSIONAL SERVICES-PRIV CONTRACTOR & OTHER AGENCIES,TRANSITIONAL CARE SUPPORT TEAM,Third Party Payments,Revenue
Walsall Council,http://opendatacommunities.org/id/metropolitan-district-council/walsall,WC101-552,28/02/2019,Holding Accounts,BERRYMANS LACE MAWER LLP,06/02/2019,402.50,67001-MISC INSURANCES - PAYMENT OF CLAIMS,PUBLIC LIABILITY,Supplies & Services,Revenue
Walsall Council,http://opendatacommunities.org/id/metropolitan-district-council/walsall,WC101-553,28/02/2019,Holding Accounts,BERRYMANS LACE MAWER LLP,08/02/2019,"6,049.00",67001-MISC INSURANCES - PAYMENT OF CLAIMS,PUBLIC LIABILITY,Supplies & Services,Revenue
Walsall Council,http://opendatacommunities.org/id/metropolitan-district-council/walsall,WC101-554,28/02/2019,Adult Social Care,REDACTED,04/02/2019,"1,082.48",73506-DIRECT PAYMENT,PHYSICAL SUPPORT,Third Party Payments,Revenue
Walsall Council,http://opendatacommunities.org/id/metropolitan-district-council/walsall,WC101-555,28/02/2019,Adult Social Care,REDACTED,04/02/2019,"1,743.20",73506-DIRECT PAYMENT,PHYSICAL SUPPORT,Third Party Payments,Revenue
Walsall Council,http://opendatacommunities.org/id/metropolitan-district-council/walsall,WC101-556,28/02/2019,Childrens,REDACTED,21/02/2019,357.14,74508-INTERNAL FOSTER CARERS-CARER FEES,INTERNAL FOSTER CARE PROVISION,Transfer Payments,Revenue
Walsall Council,http://opendatacommunities.org/id/metropolitan-district-council/walsall,WC101-557,28/02/2019,Adult Social Care,REDACTED,04/02/2019,"1,935.08",73506-DIRECT PAYMENT,PHYSICAL SUPPORT,Third Party Payments,Revenue
Walsall Council,http://opendatacommunities.org/id/metropolitan-district-council/walsall,WC101-558,28/02/2019,Economy & Environment,BESCOT STADIUM SUNDAY MARKET LTD,26/02/2019,"2,600.00",73025-PROFESSIONAL SERVICES-PRIV CONTRACTOR & OTHER AGENCIES,WILLENHALL MARKET,Third Party Payments,Revenue
Walsall Council,http://opendatacommunities.org/id/metropolitan-district-council/walsall,WC101-559,28/02/2019,Economy & Environment,BETHEL UNITED CHURCH,21/02/2019,"1,670.00",63253-PAYMENT TO CONTRACTOR,MENTAL HEALTH,Third Party Payments,Revenue
Walsall Council,http://opendatacommunities.org/id/metropolitan-district-council/walsall,WC101-560,28/02/2019,Adult Social Care,BETHPHAGE.,13/02/2019,"1,311.00",73508-COMMUNITY SUPPORTED LIVING/SUPPORTED ACCOMMODATION,LEARNING DISABILITY SUPPORT,Third Party Payments,Revenue
Walsall Council,http://opendatacommunities.org/id/metropolitan-district-council/walsall,WC101-561,28/02/2019,Adult Social Care,BETHPHAGE.,13/02/2019,"1,638.75",73508-COMMUNITY SUPPORTED LIVING/SUPPORTED ACCOMMODATION,LEARNING DISABILITY SUPPORT,Third Party Payments,Revenue
Walsall Council,http://opendatacommunities.org/id/metropolitan-district-council/walsall,WC101-562,28/02/2019,Adult Social Care,BETHPHAGE.,13/02/2019,"3,366.55",73508-COMMUNITY SUPPORTED LIVING/SUPPORTED ACCOMMODATION,LEARNING DISABILITY SUPPORT,Third Party Payments,Revenue
Walsall Council,http://opendatacommunities.org/id/metropolitan-district-council/walsall,WC101-563,28/02/2019,Adult Social Care,REDACTED,04/02/2019,949.52,73506-DIRECT PAYMENT,PHYSICAL SUPPORT,Third Party Payments,Revenue
Walsall Council,http://opendatacommunities.org/id/metropolitan-district-council/walsall,WC101-564,28/02/2019,Resources and Transformation,BFA SAFETY TRAINING,20/02/2019,525.00,30030-EXTERNAL TRAINING,HEALTH & SAFETY,Employees,Revenue
Walsall Council,http://opendatacommunities.org/id/metropolitan-district-council/walsall,WC101-565,28/02/2019,Childrens,BIG YELLOW SELF STORAGE COMPANY LTD,22/02/2019,230.00,63000-PROFESSIONAL FEES AND SERVICES,SAFEGUARDING & FAMILY SUPPORT,Supplies & Services,Revenue
Walsall Council,http://opendatacommunities.org/id/metropolitan-district-council/walsall,WC101-566,28/02/2019,Childrens,REDACTED,04/02/2019,517.92,73506-DIRECT PAYMENT,FAMILY SUPPORT - DIRECT PAYMENTS,Third Party Payments,Revenue
Walsall Council,http://opendatacommunities.org/id/metropolitan-district-council/walsall,WC101-567,28/02/2019,Economy & Environment,BILLY ROSS WHOLESALE,08/02/2019,288.72,60500-GENERAL MATERIALS,LEATHER MUSEUM SHOP STOCK,Supplies & Services,Revenue
Walsall Council,http://opendatacommunities.org/id/metropolitan-district-council/walsall,WC101-568,28/02/2019,Childrens,BIRCHILLS C OF E COMMUNITY ACADEMY,19/02/2019,913.50,66505-OTHER-GRANTS TO OTHER ORGS,EARLY YEARS - 3 YR OLDS,Third Party Payments,Revenue
Walsall Council,http://opendatacommunities.org/id/metropolitan-district-council/walsall,WC101-569,28/02/2019,Childrens,BIRMINGHAM CITY COUNCIL,21/02/2019,"1,956.16",74037-INDEPENDENT FOSTER CARE-OTH AGENCY PROVISION,EXTERNAL FOSTER CARE PROVISION,Third Party Payments,Revenue
Walsall Council,http://opendatacommunities.org/id/metropolitan-district-council/walsall,WC101-570,28/02/2019,Childrens,BIRMINGHAM CITY COUNCIL,08/02/2019,"3,833.66",66502-TOP UP FUNDING -GRANTS TO SCHOOLS,ACADEMIES,Third Party Payments,Revenue
Walsall Council,http://opendatacommunities.org/id/metropolitan-district-council/walsall,WC101-571,28/02/2019,Economy & Environment,BIRMINGHAM WOMENS AND CHILDRENS NHS FOUNDATION TRUST,11/02/2019,"1,112.12",74000-OTHER AGENCY FEES,CORONERS SERVICE,Third Party Payments,Revenue
Walsall Council,http://opendatacommunities.org/id/metropolitan-district-council/walsall,WC101-572,28/02/2019,Economy & Environment,BLACK COUNTRY CONSORTIUM LIMITED,21/02/2019,"12,038.92",65500-GRANTS TO ASSOCIATIONS,LEP- HESELTINE FUNDING,Third Party Payments,Revenue
Walsall Council,http://opendatacommunities.org/id/metropolitan-district-council/walsall,WC101-573,28/02/2019,Economy & Environment,BLACK COUNTRY CONSORTIUM LIMITED,27/02/2019,"42,389.31",01045-PRIVATE GRANTS,CFR 1072 CAPITALISATION OF PROJECT OFFICER COSTS,Capital,Capital
Walsall Council,http://opendatacommunities.org/id/metropolitan-district-council/walsall,WC101-574,28/02/2019,Economy & Environment,BLACK COUNTRY CONSORTIUM LIMITED,27/02/2019,"70,453.01",65500-GRANTS TO ASSOCIATIONS,GROWTH HUB,Third Party Payments,Revenue
Walsall Council,http://opendatacommunities.org/id/metropolitan-district-council/walsall,WC101-575,28/02/2019,Resources and Transformation,BLACK COUNTRY INNOVATE CIC,22/02/2019,818.00,66500-GRANTS TO OTHER ORGS,COHESION,Third Party Payments,Revenue
Walsall Council,http://opendatacommunities.org/id/metropolitan-district-council/walsall,WC101-576,28/02/2019,Resources and Transformation,BLACK COUNTRY INNOVATE CIC,20/02/2019,"5,000.00",66500-GRANTS TO OTHER ORGS,LET'S TALK ABOUT IT PROJECT,Third Party Payments,Revenue
Walsall Council,http://opendatacommunities.org/id/metropolitan-district-council/walsall,WC101-577,28/02/2019,Childrens,BLAENAU GWENT COUNTY BOROUGH COUNCIL,21/02/2019,"9,000.00",63000-PROFESSIONAL FEES AND SERVICES,ADOPTION TEAM,Supplies & Services,Revenue
Walsall Council,http://opendatacommunities.org/id/metropolitan-district-council/walsall,WC101-578,28/02/2019,Childrens,BLAKENALL HEATH JMI SCHOOL,19/02/2019,323.00,77200-TRANSFER PAYMENTS-OTHER SCHOOLCHILDREN/STUDENT RELATED ITEMS,BLAKENALL HEATH JUNIOR SCHOOL,Transfer Payments,Revenue
Walsall Council,http://opendatacommunities.org/id/metropolitan-district-council/walsall,WC101-579,28/02/2019,Childrens,BLOSSOMS ON THE COMMON DAY NURSERY LTD,05/02/2019,"6,052.20",66505-OTHER-GRANTS TO OTHER ORGS,EARLY YEARS - 2 YR OLDS,Third Party Payments,Revenue
Walsall Council,http://opendatacommunities.org/id/metropolitan-district-council/walsall,WC101-580,28/02/2019,Childrens,BLOSSOMS ON THE COMMON DAY NURSERY LTD,07/02/2019,"11,962.50",66505-OTHER-GRANTS TO OTHER ORGS,EARLY YEARS - 3 YR OLDS,Third Party Payments,Revenue
Walsall Council,http://opendatacommunities.org/id/metropolitan-district-council/walsall,WC101-581,28/02/2019,Childrens,BLUE GIRAFFE CHILDCARE,07/02/2019,"7,177.50",66505-OTHER-GRANTS TO OTHER ORGS,EARLY YEARS - 3 YR OLDS,Third Party Payments,Revenue
Walsall Council,http://opendatacommunities.org/id/metropolitan-district-council/walsall,WC101-582,28/02/2019,Resources and Transformation,BLUETOWNONLINE LTD,21/02/2019,"2,990.00",34000-RECRUITMENT EXPENSES (ALL TYPES INCL RELOCATION),SCHOOLS HR TRANSACTIONAL TEAM,Employees,Revenue
Walsall Council,http://opendatacommunities.org/id/metropolitan-district-council/walsall,WC101-583,28/02/2019,Economy & Environment,BME UNITED LTD,07/02/2019,"6,404.60",66500-GRANTS TO OTHER ORGS,ESF COMMUNITY GRANTS,Third Party Payments,Revenue
Walsall Council,http://opendatacommunities.org/id/metropolitan-district-council/walsall,WC101-584,28/02/2019,Economy & Environment,BME UNITED LTD,18/02/2019,"11,025.00",63253-PAYMENT TO CONTRACTOR,SMOKING CESSATION,Third Party Payments,Revenue
Walsall Council,http://opendatacommunities.org/id/metropolitan-district-council/walsall,WC101-585,28/02/2019,Childrens,REDACTED,04/02/2019,"1,440.00",73506-DIRECT PAYMENT,FAMILY SUPPORT - DIRECT PAYMENTS,Third Party Payments,Revenue
Walsall Council,http://opendatacommunities.org/id/metropolitan-district-council/walsall,WC101-586,28/02/2019,Resources and Transformation,BORSHCH LTD,06/02/2019,237.49,60000-FURNITURE & EQUIPMENT,WALSALL CRISIS SUPPORT SCHEME,Supplies & Services,Revenue
Walsall Council,http://opendatacommunities.org/id/metropolitan-district-council/walsall,WC101-587,28/02/2019,Resources and Transformation,BORSHCH LTD,08/02/2019,237.49,60000-FURNITURE & EQUIPMENT,WALSALL CRISIS SUPPORT SCHEME,Supplies & Services,Revenue
Walsall Council,http://opendatacommunities.org/id/metropolitan-district-council/walsall,WC101-588,28/02/2019,Resources and Transformation,BORSHCH LTD,05/02/2019,266.66,60000-FURNITURE & EQUIPMENT,WALSALL CRISIS SUPPORT SCHEME,Supplies & Services,Revenue
Walsall Council,http://opendatacommunities.org/id/metropolitan-district-council/walsall,WC101-589,28/02/2019,Resources and Transformation,BORSHCH LTD,06/02/2019,287.50,60000-FURNITURE & EQUIPMENT,WALSALL CRISIS SUPPORT SCHEME,Supplies & Services,Revenue
Walsall Council,http://opendatacommunities.org/id/metropolitan-district-council/walsall,WC101-590,28/02/2019,Resources and Transformation,BORSHCH LTD,26/02/2019,287.50,60000-FURNITURE & EQUIPMENT,WALSALL CRISIS SUPPORT SCHEME,Supplies & Services,Revenue
Walsall Council,http://opendatacommunities.org/id/metropolitan-district-council/walsall,WC101-591,28/02/2019,Resources and Transformation,BORSHCH LTD,01/02/2019,291.66,60000-FURNITURE & EQUIPMENT,WALSALL CRISIS SUPPORT SCHEME,Supplies & Services,Revenue
Walsall Council,http://opendatacommunities.org/id/metropolitan-district-council/walsall,WC101-592,28/02/2019,Resources and Transformation,BORSHCH LTD,06/02/2019,291.66,60000-FURNITURE & EQUIPMENT,WALSALL CRISIS SUPPORT SCHEME,Supplies & Services,Revenue
Walsall Council,http://opendatacommunities.org/id/metropolitan-district-council/walsall,WC101-593,28/02/2019,Resources and Transformation,BORSHCH LTD,06/02/2019,291.66,60000-FURNITURE & EQUIPMENT,WALSALL CRISIS SUPPORT SCHEME,Supplies & Services,Revenue
Walsall Council,http://opendatacommunities.org/id/metropolitan-district-council/walsall,WC101-594,28/02/2019,Resources and Transformation,BORSHCH LTD,11/02/2019,291.66,60000-FURNITURE & EQUIPMENT,WALSALL CRISIS SUPPORT SCHEME,Supplies & Services,Revenue
Walsall Council,http://opendatacommunities.org/id/metropolitan-district-council/walsall,WC101-595,28/02/2019,Resources and Transformation,BORSHCH LTD,13/02/2019,291.66,60000-FURNITURE & EQUIPMENT,WALSALL CRISIS SUPPORT SCHEME,Supplies & Services,Revenue
Walsall Council,http://opendatacommunities.org/id/metropolitan-district-council/walsall,WC101-596,28/02/2019,Resources and Transformation,BORSHCH LTD,13/02/2019,291.66,60000-FURNITURE & EQUIPMENT,WALSALL CRISIS SUPPORT SCHEME,Supplies & Services,Revenue
Walsall Council,http://opendatacommunities.org/id/metropolitan-district-council/walsall,WC101-597,28/02/2019,Resources and Transformation,BORSHCH LTD,15/02/2019,291.66,60000-FURNITURE & EQUIPMENT,WALSALL CRISIS SUPPORT SCHEME,Supplies & Services,Revenue
Walsall Council,http://opendatacommunities.org/id/metropolitan-district-council/walsall,WC101-598,28/02/2019,Resources and Transformation,BORSHCH LTD,18/02/2019,291.66,60000-FURNITURE & EQUIPMENT,WALSALL CRISIS SUPPORT SCHEME,Supplies & Services,Revenue
Walsall Council,http://opendatacommunities.org/id/metropolitan-district-council/walsall,WC101-599,28/02/2019,Resources and Transformation,BORSHCH LTD,26/02/2019,291.66,60000-FURNITURE & EQUIPMENT,WALSALL CRISIS SUPPORT SCHEME,Supplies & Services,Revenue
Walsall Council,http://opendatacommunities.org/id/metropolitan-district-council/walsall,WC101-600,28/02/2019,Resources and Transformation,BORSHCH LTD,18/02/2019,308.33,60000-FURNITURE & EQUIPMENT,WALSALL CRISIS SUPPORT SCHEME,Supplies & Services,Revenue
Walsall Council,http://opendatacommunities.org/id/metropolitan-district-council/walsall,WC101-601,28/02/2019,Resources and Transformation,BORSHCH LTD,06/02/2019,320.83,60000-FURNITURE & EQUIPMENT,WALSALL CRISIS SUPPORT SCHEME,Supplies & Services,Revenue
Walsall Council,http://opendatacommunities.org/id/metropolitan-district-council/walsall,WC101-602,28/02/2019,Resources and Transformation,BORSHCH LTD,06/02/2019,379.16,60000-FURNITURE & EQUIPMENT,WALSALL CRISIS SUPPORT SCHEME,Supplies & Services,Revenue
Walsall Council,http://opendatacommunities.org/id/metropolitan-district-council/walsall,WC101-603,28/02/2019,Resources and Transformation,BORSHCH LTD,13/02/2019,379.16,60000-FURNITURE & EQUIPMENT,WALSALL CRISIS SUPPORT SCHEME,Supplies & Services,Revenue
Walsall Council,http://opendatacommunities.org/id/metropolitan-district-council/walsall,WC101-604,28/02/2019,Resources and Transformation,BORSHCH LTD,06/02/2019,425.00,60000-FURNITURE & EQUIPMENT,WALSALL CRISIS SUPPORT SCHEME,Supplies & Services,Revenue
Walsall Council,http://opendatacommunities.org/id/metropolitan-district-council/walsall,WC101-605,28/02/2019,Resources and Transformation,BORSHCH LTD,06/02/2019,425.00,60000-FURNITURE & EQUIPMENT,WALSALL CRISIS SUPPORT SCHEME,Supplies & Services,Revenue
Walsall Council,http://opendatacommunities.org/id/metropolitan-district-council/walsall,WC101-606,28/02/2019,Resources and Transformation,BORSHCH LTD,06/02/2019,425.00,60000-FURNITURE & EQUIPMENT,WALSALL CRISIS SUPPORT SCHEME,Supplies & Services,Revenue
Walsall Council,http://opendatacommunities.org/id/metropolitan-district-council/walsall,WC101-607,28/02/2019,Resources and Transformation,BORSHCH LTD,13/02/2019,425.00,60000-FURNITURE & EQUIPMENT,WALSALL CRISIS SUPPORT SCHEME,Supplies & Services,Revenue
Walsall Council,http://opendatacommunities.org/id/metropolitan-district-council/walsall,WC101-608,28/02/2019,Resources and Transformation,BORSHCH LTD,18/02/2019,425.00,60000-FURNITURE & EQUIPMENT,WALSALL CRISIS SUPPORT SCHEME,Supplies & Services,Revenue
Walsall Council,http://opendatacommunities.org/id/metropolitan-district-council/walsall,WC101-609,28/02/2019,Resources and Transformation,BORSHCH LTD,26/02/2019,425.00,60000-FURNITURE & EQUIPMENT,WALSALL CRISIS SUPPORT SCHEME,Supplies & Services,Revenue
Walsall Council,http://opendatacommunities.org/id/metropolitan-district-council/walsall,WC101-610,28/02/2019,Resources and Transformation,BORSHCH LTD,05/02/2019,433.33,60000-FURNITURE & EQUIPMENT,WALSALL CRISIS SUPPORT SCHEME,Supplies & Services,Revenue
Walsall Council,http://opendatacommunities.org/id/metropolitan-district-council/walsall,WC101-611,28/02/2019,Resources and Transformation,BORSHCH LTD,06/02/2019,433.33,60000-FURNITURE & EQUIPMENT,WALSALL CRISIS SUPPORT SCHEME,Supplies & Services,Revenue
Walsall Council,http://opendatacommunities.org/id/metropolitan-district-council/walsall,WC101-612,28/02/2019,Resources and Transformation,BORSHCH LTD,13/02/2019,433.33,60000-FURNITURE & EQUIPMENT,WALSALL CRISIS SUPPORT SCHEME,Supplies & Services,Revenue
Walsall Council,http://opendatacommunities.org/id/metropolitan-district-council/walsall,WC101-613,28/02/2019,Resources and Transformation,BORSHCH LTD,13/02/2019,433.33,60000-FURNITURE & EQUIPMENT,WALSALL CRISIS SUPPORT SCHEME,Supplies & Services,Revenue
Walsall Council,http://opendatacommunities.org/id/metropolitan-district-council/walsall,WC101-614,28/02/2019,Resources and Transformation,BORSHCH LTD,21/02/2019,433.33,60000-FURNITURE & EQUIPMENT,WALSALL CRISIS SUPPORT SCHEME,Supplies & Services,Revenue
Walsall Council,http://opendatacommunities.org/id/metropolitan-district-council/walsall,WC101-615,28/02/2019,Resources and Transformation,BORSHCH LTD,21/02/2019,433.33,60000-FURNITURE & EQUIPMENT,WALSALL CRISIS SUPPORT SCHEME,Supplies & Services,Revenue
Walsall Council,http://opendatacommunities.org/id/metropolitan-district-council/walsall,WC101-616,28/02/2019,Resources and Transformation,BORSHCH LTD,22/02/2019,433.33,60000-FURNITURE & EQUIPMENT,WALSALL CRISIS SUPPORT SCHEME,Supplies & Services,Revenue
Walsall Council,http://opendatacommunities.org/id/metropolitan-district-council/walsall,WC101-617,28/02/2019,Resources and Transformation,BORSHCH LTD,22/02/2019,433.33,60000-FURNITURE & EQUIPMENT,WALSALL CRISIS SUPPORT SCHEME,Supplies & Services,Revenue
Walsall Council,http://opendatacommunities.org/id/metropolitan-district-council/walsall,WC101-618,28/02/2019,Resources and Transformation,BORSHCH LTD,26/02/2019,433.33,60000-FURNITURE & EQUIPMENT,WALSALL CRISIS SUPPORT SCHEME,Supplies & Services,Revenue
Walsall Council,http://opendatacommunities.org/id/metropolitan-district-council/walsall,WC101-619,28/02/2019,Resources and Transformation,BORSHCH LTD,27/02/2019,433.33,60000-FURNITURE & EQUIPMENT,WALSALL CRISIS SUPPORT SCHEME,Supplies & Services,Revenue
Walsall Council,http://opendatacommunities.org/id/metropolitan-district-council/walsall,WC101-620,28/02/2019,Resources and Transformation,BORSHCH LTD,26/02/2019,466.66,60000-FURNITURE & EQUIPMENT,WALSALL CRISIS SUPPORT SCHEME,Supplies & Services,Revenue
Walsall Council,http://opendatacommunities.org/id/metropolitan-district-council/walsall,WC101-621,28/02/2019,Economy & Environment,BOS BUSINESS OFFICE SOLUTIONS CIC,13/02/2019,"7,500.00",66500-GRANTS TO OTHER ORGS,ESF COMMUNITY GRANTS,Third Party Payments,Revenue
Walsall Council,http://opendatacommunities.org/id/metropolitan-district-council/walsall,WC101-622,28/02/2019,Resources and Transformation,BOTTOMLINE TECHNOLOGIES BACWAY SERVICES LIMITED,07/02/2019,"2,345.72",63820-RECHARGE FOR MAINTENANCE/APPLICATION COSTS-COMPUTER,APPLICATIONS,Supplies & Services,Revenue
Walsall Council,http://opendatacommunities.org/id/metropolitan-district-council/walsall,WC101-623,28/02/2019,Adult Social Care,BOWDEN DERRA PARK,01/02/2019,"11,041.12",73500-RESIDENTIAL,LEARNING DISABILITY SUPPORT,Third Party Payments,Revenue
Walsall Council,http://opendatacommunities.org/id/metropolitan-district-council/walsall,WC101-624,28/02/2019,Economy & Environment,BRADVALE LTD T/A INSPIRE HEALTHCARE SERVICES,07/02/2019,612.25,60500-GENERAL MATERIALS,ARBORETUM VISITOR CENTRE,Supplies & Services,Revenue
Walsall Council,http://opendatacommunities.org/id/metropolitan-district-council/walsall,WC101-625,28/02/2019,Economy & Environment,BRADVALE LTD T/A INSPIRE HEALTHCARE SERVICES,01/02/2019,622.31,73025-PROFESSIONAL SERVICES-PRIV CONTRACTOR & OTHER AGENCIES,DEPOT,Third Party Payments,Revenue
Walsall Council,http://opendatacommunities.org/id/metropolitan-district-council/walsall,WC101-626,28/02/2019,Economy & Environment,BRADVALE LTD T/A INSPIRE HEALTHCARE SERVICES,26/02/2019,622.31,73025-PROFESSIONAL SERVICES-PRIV CONTRACTOR & OTHER AGENCIES,DEPOT,Third Party Payments,Revenue
Walsall Council,http://opendatacommunities.org/id/metropolitan-district-council/walsall,WC101-627,28/02/2019,Economy & Environment,BREAKTHRU CIC,07/02/2019,"5,607.93",66500-GRANTS TO OTHER ORGS,ESF COMMUNITY GRANTS,Third Party Payments,Revenue
Walsall Council,http://opendatacommunities.org/id/metropolitan-district-council/walsall,WC101-628,28/02/2019,Resources and Transformation,BRELMAYNE LTD,26/02/2019,210.00,60007-REPAIR OF EQUIPMENT-EQUIPMENT,CA COOPER JORDAN CE PRIMARY SCHOOL,Supplies & Services,Revenue
Walsall Council,http://opendatacommunities.org/id/metropolitan-district-council/walsall,WC101-629,28/02/2019,Resources and Transformation,BRELMAYNE LTD,25/02/2019,248.00,01044-PURCHASE OF FURNITURE & EQUIPMENT,CFR 1190 SCHOOLS PROJECT,Capital,Capital
Walsall Council,http://opendatacommunities.org/id/metropolitan-district-council/walsall,WC101-630,28/02/2019,Resources and Transformation,BRELMAYNE LTD,13/02/2019,257.64,60007-REPAIR OF EQUIPMENT-EQUIPMENT,CA LINDENS PRIMARY SCHOOL,Supplies & Services,Revenue
Walsall Council,http://opendatacommunities.org/id/metropolitan-district-council/walsall,WC101-631,28/02/2019,Resources and Transformation,BRELMAYNE LTD,18/02/2019,272.85,60007-REPAIR OF EQUIPMENT-EQUIPMENT,CA BROWNHILLS WEST PRIMARY SCHOOL,Supplies & Services,Revenue
Walsall Council,http://opendatacommunities.org/id/metropolitan-district-council/walsall,WC101-632,28/02/2019,Resources and Transformation,BRELMAYNE LTD,26/02/2019,305.00,60008-MAINTENANCE-FURNITURE & EQUIPMENT,CA MOORCROFT WOOD,Supplies & Services,Revenue
Walsall Council,http://opendatacommunities.org/id/metropolitan-district-council/walsall,WC101-633,28/02/2019,Resources and Transformation,BRELMAYNE LTD,26/02/2019,450.00,60008-MAINTENANCE-FURNITURE & EQUIPMENT,CA LINDENS PRIMARY SCHOOL,Supplies & Services,Revenue
Walsall Council,http://opendatacommunities.org/id/metropolitan-district-council/walsall,WC101-634,28/02/2019,Resources and Transformation,BRELMAYNE LTD,26/02/2019,476.78,60007-REPAIR OF EQUIPMENT-EQUIPMENT,CA ELMWOOD SPECIAL SCHOOL,Supplies & Services,Revenue
Walsall Council,http://opendatacommunities.org/id/metropolitan-district-council/walsall,WC101-635,28/02/2019,Resources and Transformation,BRELMAYNE LTD,26/02/2019,591.00,"40000-REPAIRS,ALTERATIONS & MAINTENANCE-PREM",RECHARGEABLE - NON SCHOOLS MAINTENANCE,Premises,Revenue
Walsall Council,http://opendatacommunities.org/id/metropolitan-district-council/walsall,WC101-636,28/02/2019,Resources and Transformation,BRELMAYNE LTD,25/02/2019,648.00,01044-PURCHASE OF FURNITURE & EQUIPMENT,CFR 1190 SCHOOLS PROJECT,Capital,Capital
Walsall Council,http://opendatacommunities.org/id/metropolitan-district-council/walsall,WC101-637,28/02/2019,Resources and Transformation,BRELMAYNE LTD,25/02/2019,650.00,01044-PURCHASE OF FURNITURE & EQUIPMENT,CFR 1190 SCHOOLS PROJECT,Capital,Capital
Walsall Council,http://opendatacommunities.org/id/metropolitan-district-council/walsall,WC101-638,28/02/2019,Resources and Transformation,BRELMAYNE LTD,15/02/2019,700.00,01044-PURCHASE OF FURNITURE & EQUIPMENT,CFR 1190 SCHOOLS PROJECT,Capital,Capital
Walsall Council,http://opendatacommunities.org/id/metropolitan-district-council/walsall,WC101-639,28/02/2019,Resources and Transformation,BRELMAYNE LTD,15/02/2019,700.00,01044-PURCHASE OF FURNITURE & EQUIPMENT,CFR 1190 SCHOOLS PROJECT,Capital,Capital
Walsall Council,http://opendatacommunities.org/id/metropolitan-district-council/walsall,WC101-640,28/02/2019,Resources and Transformation,BRELMAYNE LTD,15/02/2019,700.00,01044-PURCHASE OF FURNITURE & EQUIPMENT,CFR 1190 SCHOOLS PROJECT,Capital,Capital
Walsall Council,http://opendatacommunities.org/id/metropolitan-district-council/walsall,WC101-641,28/02/2019,Resources and Transformation,BRELMAYNE LTD,13/02/2019,855.69,60007-REPAIR OF EQUIPMENT-EQUIPMENT,CA WATLING STREET PRIMARY SCHOOL,Supplies & Services,Revenue
Walsall Council,http://opendatacommunities.org/id/metropolitan-district-council/walsall,WC101-642,28/02/2019,Resources and Transformation,BRELMAYNE LTD,15/02/2019,"1,188.00",01044-PURCHASE OF FURNITURE & EQUIPMENT,CFR 1190 SCHOOLS PROJECT,Capital,Capital
Walsall Council,http://opendatacommunities.org/id/metropolitan-district-council/walsall,WC101-643,28/02/2019,Resources and Transformation,BRELMAYNE LTD,25/02/2019,"1,188.00",01044-PURCHASE OF FURNITURE & EQUIPMENT,CFR 1190 SCHOOLS PROJECT,Capital,Capital
Walsall Council,http://opendatacommunities.org/id/metropolitan-district-council/walsall,WC101-644,28/02/2019,Resources and Transformation,BRELMAYNE LTD,25/02/2019,"1,188.00",61305-CATERING,INTEGRATED FACILITIES MANAGEMENT,Supplies & Services,Revenue
Walsall Council,http://opendatacommunities.org/id/metropolitan-district-council/walsall,WC101-645,28/02/2019,Childrens,BRELMAYNE LTD,06/02/2019,"1,728.00",01006-SITE WORKS MAIN CONTRACTORS,CFR 1299 BROWNHILLS WEST PRIMARY SCHOOL - REPLACE BOILERS/ASBESTOS REMOVAL,Capital,Capital
Walsall Council,http://opendatacommunities.org/id/metropolitan-district-council/walsall,WC101-646,28/02/2019,Resources and Transformation,BRELMAYNE LTD,04/02/2019,"3,719.04",01044-PURCHASE OF FURNITURE & EQUIPMENT,CFR 1190 SCHOOLS PROJECT,Capital,Capital
Walsall Council,http://opendatacommunities.org/id/metropolitan-district-council/walsall,WC101-647,28/02/2019,Resources and Transformation,BRELMAYNE LTD,04/02/2019,"3,719.04",01044-PURCHASE OF FURNITURE & EQUIPMENT,CFR 1190 SCHOOLS PROJECT,Capital,Capital
Walsall Council,http://opendatacommunities.org/id/metropolitan-district-council/walsall,WC101-648,28/02/2019,Resources and Transformation,BRELMAYNE LTD,04/02/2019,"3,719.04",01044-PURCHASE OF FURNITURE & EQUIPMENT,CFR 1190 SCHOOLS PROJECT,Capital,Capital
Walsall Council,http://opendatacommunities.org/id/metropolitan-district-council/walsall,WC101-649,28/02/2019,Resources and Transformation,BRELMAYNE LTD,04/02/2019,"7,694.81",01044-PURCHASE OF FURNITURE & EQUIPMENT,CFR 1190 SCHOOLS PROJECT,Capital,Capital
Walsall Council,http://opendatacommunities.org/id/metropolitan-district-council/walsall,WC101-650,28/02/2019,Adult Social Care,REDACTED,04/02/2019,440.00,73506-DIRECT PAYMENT,LEARNING DISABILITY SUPPORT,Third Party Payments,Revenue
Walsall Council,http://opendatacommunities.org/id/metropolitan-district-council/walsall,WC101-651,28/02/2019,Childrens,REDACTED,21/02/2019,720.00,74501-MAINTENANCE ALLOWANCE-FOSTER CARERS,INTERNAL FOSTER CARE PROVISION,Transfer Payments,Revenue
Walsall Council,http://opendatacommunities.org/id/metropolitan-district-council/walsall,WC101-652,28/02/2019,Childrens,REDACTED,21/02/2019,720.00,74501-MAINTENANCE ALLOWANCE-FOSTER CARERS,INTERNAL FOSTER CARE PROVISION,Transfer Payments,Revenue
Walsall Council,http://opendatacommunities.org/id/metropolitan-district-council/walsall,WC101-653,28/02/2019,Childrens,REDACTED,21/02/2019,"1,600.00",74508-INTERNAL FOSTER CARERS-CARER FEES,INTERNAL FOSTER CARE PROVISION,Transfer Payments,Revenue
Walsall Council,http://opendatacommunities.org/id/metropolitan-district-council/walsall,WC101-654,28/02/2019,Economy & Environment,BRENNTAG UK LIMITED,01/02/2019,346.61,60503-CHEMICALS & SCIENTIFIC MATS-MATERIALS,BLOXWICH LEISURE CENTRE,Supplies & Services,Revenue
Walsall Council,http://opendatacommunities.org/id/metropolitan-district-council/walsall,WC101-655,28/02/2019,Economy & Environment,BRENNTAG UK LIMITED,04/02/2019,401.96,60503-CHEMICALS & SCIENTIFIC MATS-MATERIALS,BLOXWICH LEISURE CENTRE,Supplies & Services,Revenue
Walsall Council,http://opendatacommunities.org/id/metropolitan-district-council/walsall,WC101-656,28/02/2019,Economy & Environment,BRENNTAG UK LIMITED,01/02/2019,406.39,60503-CHEMICALS & SCIENTIFIC MATS-MATERIALS,OAK PARK,Supplies & Services,Revenue
Walsall Council,http://opendatacommunities.org/id/metropolitan-district-council/walsall,WC101-657,28/02/2019,Economy & Environment,BRENNTAG UK LIMITED,22/02/2019,406.39,60503-CHEMICALS & SCIENTIFIC MATS-MATERIALS,OAK PARK,Supplies & Services,Revenue
Walsall Council,http://opendatacommunities.org/id/metropolitan-district-council/walsall,WC101-658,28/02/2019,Economy & Environment,BRENNTAG UK LIMITED,04/02/2019,771.48,60503-CHEMICALS & SCIENTIFIC MATS-MATERIALS,BLOXWICH LEISURE CENTRE,Supplies & Services,Revenue
Walsall Council,http://opendatacommunities.org/id/metropolitan-district-council/walsall,WC101-659,28/02/2019,Adult Social Care,REDACTED,06/02/2019,"1,337.64",73510-SHARED LIVES,LEARNING DISABILITY SUPPORT,Third Party Payments,Revenue
Walsall Council,http://opendatacommunities.org/id/metropolitan-district-council/walsall,WC101-660,28/02/2019,Adult Social Care,REDACTED,06/02/2019,"1,597.60",73510-SHARED LIVES,LEARNING DISABILITY SUPPORT,Third Party Payments,Revenue
Walsall Council,http://opendatacommunities.org/id/metropolitan-district-council/walsall,WC101-661,28/02/2019,Adult Social Care,REDACTED,04/02/2019,"1,771.28",73506-DIRECT PAYMENT,PHYSICAL SUPPORT,Third Party Payments,Revenue
Walsall Council,http://opendatacommunities.org/id/metropolitan-district-council/walsall,WC101-662,28/02/2019,Adult Social Care,REDACTED,04/02/2019,836.40,73506-DIRECT PAYMENT,PHYSICAL SUPPORT,Third Party Payments,Revenue
Walsall Council,http://opendatacommunities.org/id/metropolitan-district-council/walsall,WC101-663,28/02/2019,Adult Social Care,BRIDGEWOOD HEALTH CARE LTD,01/02/2019,"5,796.32",73502-NURSING,SENSORY SUPPORT,Third Party Payments,Revenue
Walsall Council,http://opendatacommunities.org/id/metropolitan-district-council/walsall,WC101-664,28/02/2019,Economy & Environment,BRIGGS EQUIPMENT UK LTD,01/02/2019,647.55,73025-PROFESSIONAL SERVICES-PRIV CONTRACTOR & OTHER AGENCIES,FLEET,Third Party Payments,Revenue
Walsall Council,http://opendatacommunities.org/id/metropolitan-district-council/walsall,WC101-665,28/02/2019,Childrens,BRISTOL CATHEDRAL CHOIR SCHOOL,20/02/2019,"2,300.00",77300-ISB-FORMULA ALLOCATION,OUT OF BOROUGH SCHOOLS,Transfer Payments,Revenue
Walsall Council,http://opendatacommunities.org/id/metropolitan-district-council/walsall,WC101-666,28/02/2019,Resources and Transformation,BRISTOW & SUTOR,01/02/2019,323.05,73014-LEGAL FEES-PRIV CONTRACTOR FEES,REVENUES,Third Party Payments,Revenue
Walsall Council,http://opendatacommunities.org/id/metropolitan-district-council/walsall,WC101-667,28/02/2019,Resources and Transformation,BRISTOW & SUTOR,11/02/2019,789.73,73014-LEGAL FEES-PRIV CONTRACTOR FEES,REVENUES,Third Party Payments,Revenue
Walsall Council,http://opendatacommunities.org/id/metropolitan-district-council/walsall,WC101-668,28/02/2019,Resources and Transformation,BRITANNIA HOTELS LTD T/A BRITANNIA HOTEL WOLVERHAMPTON,13/02/2019,220.84,75501-BED & BREAKFAST PAYMENTS,BED & BREAKFAST PAYMENTS,Third Party Payments,Revenue
Walsall Council,http://opendatacommunities.org/id/metropolitan-district-council/walsall,WC101-669,28/02/2019,Resources and Transformation,BRITANNIA HOTELS LTD T/A BRITANNIA HOTEL WOLVERHAMPTON,13/02/2019,241.25,75501-BED & BREAKFAST PAYMENTS,BED & BREAKFAST PAYMENTS,Third Party Payments,Revenue
Walsall Council,http://opendatacommunities.org/id/metropolitan-district-council/walsall,WC101-670,28/02/2019,Resources and Transformation,BRITANNIA HOTELS LTD T/A BRITANNIA HOTEL WOLVERHAMPTON,21/02/2019,285.82,75501-BED & BREAKFAST PAYMENTS,BED & BREAKFAST PAYMENTS,Third Party Payments,Revenue
Walsall Council,http://opendatacommunities.org/id/metropolitan-district-council/walsall,WC101-671,28/02/2019,Resources and Transformation,BRITANNIA HOTELS LTD T/A BRITANNIA HOTEL WOLVERHAMPTON,27/02/2019,416.67,75501-BED & BREAKFAST PAYMENTS,BED & BREAKFAST PAYMENTS,Third Party Payments,Revenue
Walsall Council,http://opendatacommunities.org/id/metropolitan-district-council/walsall,WC101-672,28/02/2019,Economy & Environment,BRITISH PARKING ASSOCIATON,07/02/2019,661.00,63000-PROFESSIONAL FEES AND SERVICES,PARKING SERVICES OFF-STREET,Supplies & Services,Revenue
Walsall Council,http://opendatacommunities.org/id/metropolitan-district-council/walsall,WC101-673,28/02/2019,Adult Social Care,BROADWAY HALLS CARE HOME,01/02/2019,"1,876.52",73501-RESIDENTIAL EMI,MENTAL HEALTH SUPPORT,Third Party Payments,Revenue
Walsall Council,http://opendatacommunities.org/id/metropolitan-district-council/walsall,WC101-674,28/02/2019,Holding Accounts,BROWNE JACOBSON SOLICITORS,13/02/2019,"1,028.00",67001-MISC INSURANCES - PAYMENT OF CLAIMS,PUBLIC LIABILITY,Supplies & Services,Revenue
Walsall Council,http://opendatacommunities.org/id/metropolitan-district-council/walsall,WC101-675,28/02/2019,Holding Accounts,BROWNE JACOBSON SOLICITORS,25/02/2019,"1,176.00",67001-MISC INSURANCES - PAYMENT OF CLAIMS,PUBLIC LIABILITY,Supplies & Services,Revenue
Walsall Council,http://opendatacommunities.org/id/metropolitan-district-council/walsall,WC101-676,28/02/2019,Holding Accounts,BROWNE JACOBSON SOLICITORS,25/02/2019,"1,890.00",67001-MISC INSURANCES - PAYMENT OF CLAIMS,PUBLIC LIABILITY,Supplies & Services,Revenue
Walsall Council,http://opendatacommunities.org/id/metropolitan-district-council/walsall,WC101-677,28/02/2019,Holding Accounts,BROWNE JACOBSON SOLICITORS,25/02/2019,"1,952.00",67001-MISC INSURANCES - PAYMENT OF CLAIMS,PUBLIC LIABILITY,Supplies & Services,Revenue
Walsall Council,http://opendatacommunities.org/id/metropolitan-district-council/walsall,WC101-678,28/02/2019,Holding Accounts,BROWNE JACOBSON SOLICITORS,13/02/2019,"2,300.00",67001-MISC INSURANCES - PAYMENT OF CLAIMS,PUBLIC LIABILITY,Supplies & Services,Revenue
Walsall Council,http://opendatacommunities.org/id/metropolitan-district-council/walsall,WC101-679,28/02/2019,Holding Accounts,BROWNE JACOBSON SOLICITORS,08/02/2019,"2,313.00",67001-MISC INSURANCES - PAYMENT OF CLAIMS,PUBLIC LIABILITY,Supplies & Services,Revenue
Walsall Council,http://opendatacommunities.org/id/metropolitan-district-council/walsall,WC101-680,28/02/2019,Centrally Held,BROWNE JACOBSON SOLICITORS,26/02/2019,"2,333.00",73014-LEGAL FEES-PRIV CONTRACTOR FEES,CORPORATE EXPENSES,Third Party Payments,Revenue
Walsall Council,http://opendatacommunities.org/id/metropolitan-district-council/walsall,WC101-681,28/02/2019,Economy & Environment,BROWNHILLS ASPHALT & TARMAC LIMITED,14/02/2019,350.00,60500-GENERAL MATERIALS,INFRASTRUCTURE MAINTENANCE,Supplies & Services,Revenue
Walsall Council,http://opendatacommunities.org/id/metropolitan-district-council/walsall,WC101-682,28/02/2019,Childrens,BROWNHILLS ASPHALT & TARMAC LIMITED,11/02/2019,"1,350.00",01006-SITE WORKS MAIN CONTRACTORS,CFR 1297 SHORT HEATH/ROSEDALE/LANE HEAD FED PRIMARY SCHOOL EXPANSION,Capital,Capital
Walsall Council,http://opendatacommunities.org/id/metropolitan-district-council/walsall,WC101-683,28/02/2019,Childrens,BROWNHILLS ASPHALT & TARMAC LIMITED,05/02/2019,"2,490.00",01006-SITE WORKS MAIN CONTRACTORS,CFR 1297 OLD HALL SPECIAL SCHOOL EXPANSION,Capital,Capital
Walsall Council,http://opendatacommunities.org/id/metropolitan-district-council/walsall,WC101-684,28/02/2019,Economy & Environment,BROWNHILLS ASPHALT & TARMAC LIMITED,14/02/2019,"2,946.00",63239-EXTERNAL WORKS-PAYMENT TO CONTRACTOR,COMMUNITY LIAISON,Third Party Payments,Revenue
Walsall Council,http://opendatacommunities.org/id/metropolitan-district-council/walsall,WC101-685,28/02/2019,Economy & Environment,BROWNHILLS ASPHALT & TARMAC LIMITED,14/02/2019,"5,620.00","40000-REPAIRS,ALTERATIONS & MAINTENANCE-PREM",RETAINED HOUSING-HIGHWAYS,Premises,Revenue
Walsall Council,http://opendatacommunities.org/id/metropolitan-district-council/walsall,WC101-686,28/02/2019,Economy & Environment,BROWNHILLS ASPHALT & TARMAC LIMITED,14/02/2019,"8,050.00","40000-REPAIRS,ALTERATIONS & MAINTENANCE-PREM",RETAINED HOUSING-HIGHWAYS,Premises,Revenue
Walsall Council,http://opendatacommunities.org/id/metropolitan-district-council/walsall,WC101-687,28/02/2019,Childrens,BROWNHILLS COMMUNITY ASSOCIATION,05/02/2019,"2,075.04",66505-OTHER-GRANTS TO OTHER ORGS,EARLY YEARS - 2 YR OLDS,Third Party Payments,Revenue
Walsall Council,http://opendatacommunities.org/id/metropolitan-district-council/walsall,WC101-688,28/02/2019,Childrens,BROWNHILLS COMMUNITY ASSOCIATION,13/02/2019,"2,280.00",63120-CRECHE FACILITIES-SERVICES-FEES,SAFEGUARDING & FAMILY SUPPORT,Supplies & Services,Revenue
Walsall Council,http://opendatacommunities.org/id/metropolitan-district-council/walsall,WC101-689,28/02/2019,Childrens,BROWNHILLS COMMUNITY ASSOCIATION,20/02/2019,"2,454.00",63120-CRECHE FACILITIES-SERVICES-FEES,FAMILY PLACEMENTS,Supplies & Services,Revenue
Walsall Council,http://opendatacommunities.org/id/metropolitan-district-council/walsall,WC101-690,28/02/2019,Resources and Transformation,BROWNHILLS COMMUNITY ASSOCIATION,06/02/2019,"3,700.31",66500-GRANTS TO OTHER ORGS,LET'S TALK ABOUT IT PROJECT,Third Party Payments,Revenue
Walsall Council,http://opendatacommunities.org/id/metropolitan-district-council/walsall,WC101-691,28/02/2019,Resources and Transformation,BROWNHILLS COMMUNITY ASSOCIATION,01/02/2019,"7,000.00",66500-GRANTS TO OTHER ORGS,BROWNHILLS COMMUNITY ASSOCIATION,Third Party Payments,Revenue
Walsall Council,http://opendatacommunities.org/id/metropolitan-district-council/walsall,WC101-692,28/02/2019,Resources and Transformation,BROWNHILLS COMMUNITY ASSOCIATION,01/02/2019,"10,000.00",63000-PROFESSIONAL FEES AND SERVICES,AREA PARTNERSHIPS,Supplies & Services,Revenue
Walsall Council,http://opendatacommunities.org/id/metropolitan-district-council/walsall,WC101-693,28/02/2019,Adult Social Care,REDACTED,04/02/2019,"1,387.20",73506-DIRECT PAYMENT,LEARNING DISABILITY SUPPORT,Third Party Payments,Revenue
Walsall Council,http://opendatacommunities.org/id/metropolitan-district-council/walsall,WC101-694,28/02/2019,Economy & Environment,REDACTED,06/02/2019,430.00,63116-EXTERNAL BARRISTERS-SERVICES-FEES,POLLUTION DIVISION,Supplies & Services,Revenue
Walsall Council,http://opendatacommunities.org/id/metropolitan-district-council/walsall,WC101-695,28/02/2019,Economy & Environment,BT,15/02/2019,309.52,63602-COST OF RENTAL-TELEPHONES,FOREST ARTS CENTRE,Supplies & Services,Revenue
Walsall Council,http://opendatacommunities.org/id/metropolitan-district-council/walsall,WC101-696,28/02/2019,Resources and Transformation,BT,06/02/2019,622.00,63603-COST OF CALLS-TELEPHONES,PROCESSING,Supplies & Services,Revenue
Walsall Council,http://opendatacommunities.org/id/metropolitan-district-council/walsall,WC101-697,28/02/2019,Resources and Transformation,BT PLC,01/02/2019,"1,268.35",63807-COMMS LINKS-COMPUTER,NETWORKS,Supplies & Services,Revenue
Walsall Council,http://opendatacommunities.org/id/metropolitan-district-council/walsall,WC101-698,28/02/2019,Resources and Transformation,BT PLC,22/02/2019,"1,268.35",63807-COMMS LINKS-COMPUTER,NETWORKS,Supplies & Services,Revenue
Walsall Council,http://opendatacommunities.org/id/metropolitan-district-council/walsall,WC101-699,28/02/2019,Resources and Transformation,BT PLC,07/02/2019,"1,425.46",63800-COMPUTER EQUIPMENT AND SUPPLIES,RECHARGEABLE EQUIPMENT,Supplies & Services,Revenue
Walsall Council,http://opendatacommunities.org/id/metropolitan-district-council/walsall,WC101-700,28/02/2019,Resources and Transformation,BT PLC,07/02/2019,"1,924.68",63601-COSTS (NOT INTERNAL RECHARGES)-TELEPHONES,CENTRAL COMMUNICATIONS RECHARGES,Supplies & Services,Revenue
Walsall Council,http://opendatacommunities.org/id/metropolitan-district-council/walsall,WC101-701,28/02/2019,Resources and Transformation,BT PLC,07/02/2019,"2,200.62",63807-COMMS LINKS-COMPUTER,SIT-INFRASTRUCTURE,Supplies & Services,Revenue
Walsall Council,http://opendatacommunities.org/id/metropolitan-district-council/walsall,WC101-702,28/02/2019,Economy & Environment,BT PLC,08/02/2019,"7,869.00",63601-COSTS (NOT INTERNAL RECHARGES)-TELEPHONES,TRAFFIC CONTROL,Supplies & Services,Revenue
Walsall Council,http://opendatacommunities.org/id/metropolitan-district-council/walsall,WC101-703,28/02/2019,Resources and Transformation,BT PLC,07/02/2019,"13,923.17",63601-COSTS (NOT INTERNAL RECHARGES)-TELEPHONES,CENTRAL COMMUNICATIONS RECHARGES,Supplies & Services,Revenue
Walsall Council,http://opendatacommunities.org/id/metropolitan-district-council/walsall,WC101-704,28/02/2019,Resources and Transformation,BT PLC,01/02/2019,"99,390.29",63800-COMPUTER EQUIPMENT AND SUPPLIES,RECHARGEABLE EQUIPMENT,Supplies & Services,Revenue
Walsall Council,http://opendatacommunities.org/id/metropolitan-district-council/walsall,WC101-705,28/02/2019,Economy & Environment,BUFFET EXPRESS LTD,22/02/2019,315.45,61009-BEVERAGES-PROVISIONS,FOREST ARTS CENTRE,Supplies & Services,Revenue
Walsall Council,http://opendatacommunities.org/id/metropolitan-district-council/walsall,WC101-706,28/02/2019,Economy & Environment,BUFFET EXPRESS LTD,26/02/2019,"1,430.10",61009-BEVERAGES-PROVISIONS,FOREST ARTS CENTRE,Supplies & Services,Revenue
Walsall Council,http://opendatacommunities.org/id/metropolitan-district-council/walsall,WC101-707,28/02/2019,Adult Social Care,BUPA NURSING HOMES ASTON COURT,01/02/2019,"1,688.84",73500-RESIDENTIAL,PHYSICAL SUPPORT,Third Party Payments,Revenue
Walsall Council,http://opendatacommunities.org/id/metropolitan-district-council/walsall,WC101-708,28/02/2019,Childrens,BURNTWOOD ROAD SWEEPERS LTD,19/02/2019,700.00,73019-PSE'S-PRIV CONTRACTOR FEES,PELSALL EDC,Third Party Payments,Revenue
Walsall Council,http://opendatacommunities.org/id/metropolitan-district-council/walsall,WC101-709,28/02/2019,Childrens,BURNTWOOD ROAD SWEEPERS LTD,19/02/2019,875.00,73019-PSE'S-PRIV CONTRACTOR FEES,PELSALL EDC,Third Party Payments,Revenue
Walsall Council,http://opendatacommunities.org/id/metropolitan-district-council/walsall,WC101-710,28/02/2019,Adult Social Care,BUSH HOME LTD,01/02/2019,"1,688.84",73500-RESIDENTIAL,MENTAL HEALTH SUPPORT,Third Party Payments,Revenue
Walsall Council,http://opendatacommunities.org/id/metropolitan-district-council/walsall,WC101-711,28/02/2019,Adult Social Care,BUSH HOME LTD,01/02/2019,"1,688.84",73500-RESIDENTIAL,PHYSICAL SUPPORT,Third Party Payments,Revenue
Walsall Council,http://opendatacommunities.org/id/metropolitan-district-council/walsall,WC101-712,28/02/2019,Adult Social Care,BUSH HOME LTD,01/02/2019,"1,688.84",73500-RESIDENTIAL,MENTAL HEALTH SUPPORT,Third Party Payments,Revenue
Walsall Council,http://opendatacommunities.org/id/metropolitan-district-council/walsall,WC101-713,28/02/2019,Adult Social Care,BUSH HOME LTD,01/02/2019,"1,688.84",73500-RESIDENTIAL,MENTAL HEALTH SUPPORT,Third Party Payments,Revenue
Walsall Council,http://opendatacommunities.org/id/metropolitan-district-council/walsall,WC101-714,28/02/2019,Adult Social Care,BUSH HOME LTD,01/02/2019,"1,688.84",73500-RESIDENTIAL,PHYSICAL SUPPORT,Third Party Payments,Revenue
Walsall Council,http://opendatacommunities.org/id/metropolitan-district-council/walsall,WC101-715,28/02/2019,Adult Social Care,BUSH HOME LTD,01/02/2019,"1,688.84",73500-RESIDENTIAL,PHYSICAL SUPPORT,Third Party Payments,Revenue
Walsall Council,http://opendatacommunities.org/id/metropolitan-district-council/walsall,WC101-716,28/02/2019,Adult Social Care,BUSH HOME LTD,01/02/2019,"1,688.84",73500-RESIDENTIAL,SOCIAL SUPPORT,Third Party Payments,Revenue
Walsall Council,http://opendatacommunities.org/id/metropolitan-district-council/walsall,WC101-717,28/02/2019,Adult Social Care,BUSH HOME LTD,01/02/2019,"1,876.52",73501-RESIDENTIAL EMI,PHYSICAL SUPPORT,Third Party Payments,Revenue
Walsall Council,http://opendatacommunities.org/id/metropolitan-district-council/walsall,WC101-718,28/02/2019,Adult Social Care,BUSH HOME LTD,01/02/2019,"1,876.52",73501-RESIDENTIAL EMI,PHYSICAL SUPPORT,Third Party Payments,Revenue
Walsall Council,http://opendatacommunities.org/id/metropolitan-district-council/walsall,WC101-719,28/02/2019,Adult Social Care,BUSH HOME LTD,01/02/2019,"1,876.52",73501-RESIDENTIAL EMI,PHYSICAL SUPPORT,Third Party Payments,Revenue
Walsall Council,http://opendatacommunities.org/id/metropolitan-district-council/walsall,WC101-720,28/02/2019,Adult Social Care,BUSH HOME LTD,01/02/2019,"1,876.52",73501-RESIDENTIAL EMI,MENTAL HEALTH SUPPORT,Third Party Payments,Revenue
Walsall Council,http://opendatacommunities.org/id/metropolitan-district-council/walsall,WC101-721,28/02/2019,Adult Social Care,BUSH HOME LTD,01/02/2019,"1,876.52",73501-RESIDENTIAL EMI,PHYSICAL SUPPORT,Third Party Payments,Revenue
Walsall Council,http://opendatacommunities.org/id/metropolitan-district-council/walsall,WC101-722,28/02/2019,Adult Social Care,BUSH HOME LTD,01/02/2019,"1,876.52",73501-RESIDENTIAL EMI,PHYSICAL SUPPORT,Third Party Payments,Revenue
Walsall Council,http://opendatacommunities.org/id/metropolitan-district-council/walsall,WC101-723,28/02/2019,Childrens,BUSY BEES CHILDCARE LTD,05/02/2019,"1,729.20",66505-OTHER-GRANTS TO OTHER ORGS,EARLY YEARS - 2 YR OLDS,Third Party Payments,Revenue
Walsall Council,http://opendatacommunities.org/id/metropolitan-district-council/walsall,WC101-724,28/02/2019,Childrens,BY THE BRIDGE,21/02/2019,-713.57,74037-INDEPENDENT FOSTER CARE-OTH AGENCY PROVISION,EXTERNAL FOSTER CARE PROVISION,Third Party Payments,Revenue
Walsall Council,http://opendatacommunities.org/id/metropolitan-district-council/walsall,WC101-725,28/02/2019,Childrens,BY THE BRIDGE,21/02/2019,"3,996.00",74037-INDEPENDENT FOSTER CARE-OTH AGENCY PROVISION,EXTERNAL FOSTER CARE PROVISION,Third Party Payments,Revenue
Walsall Council,http://opendatacommunities.org/id/metropolitan-district-council/walsall,WC101-726,28/02/2019,Economy & Environment,C & W UK LLP,01/02/2019,"5,000.00",63000-PROFESSIONAL FEES AND SERVICES,UNCAPITALISED SPEND,Supplies & Services,Revenue
Walsall Council,http://opendatacommunities.org/id/metropolitan-district-council/walsall,WC101-727,28/02/2019,Economy & Environment,C & W UK LLP,21/02/2019,"9,585.00",63000-PROFESSIONAL FEES AND SERVICES,ENTERPRISE ZONE,Supplies & Services,Revenue
Walsall Council,http://opendatacommunities.org/id/metropolitan-district-council/walsall,WC101-728,28/02/2019,Economy & Environment,C ART ART TRANSPORT LTD,13/02/2019,"3,423.00",73032-TRANSPORTATION-PRIV CONTRACTOR FEES,NAG - TEMPORARY EXHIBITIONS,Third Party Payments,Revenue
Walsall Council,http://opendatacommunities.org/id/metropolitan-district-council/walsall,WC101-729,28/02/2019,Childrens,REDACTED,21/02/2019,720.00,74501-MAINTENANCE ALLOWANCE-FOSTER CARERS,INTERNAL FOSTER CARE PROVISION,Transfer Payments,Revenue
Walsall Council,http://opendatacommunities.org/id/metropolitan-district-council/walsall,WC101-730,28/02/2019,Childrens,REDACTED,21/02/2019,720.00,74501-MAINTENANCE ALLOWANCE-FOSTER CARERS,INTERNAL FOSTER CARE PROVISION,Transfer Payments,Revenue
Walsall Council,http://opendatacommunities.org/id/metropolitan-district-council/walsall,WC101-731,28/02/2019,Childrens,REDACTED,21/02/2019,860.00,74501-MAINTENANCE ALLOWANCE-FOSTER CARERS,INTERNAL FOSTER CARE PROVISION,Transfer Payments,Revenue
Walsall Council,http://opendatacommunities.org/id/metropolitan-district-council/walsall,WC101-732,28/02/2019,Childrens,REDACTED,21/02/2019,"2,400.00",74508-INTERNAL FOSTER CARERS-CARER FEES,INTERNAL FOSTER CARE PROVISION,Transfer Payments,Revenue
Walsall Council,http://opendatacommunities.org/id/metropolitan-district-council/walsall,WC101-733,28/02/2019,Childrens,REDACTED,21/02/2019,720.00,74501-MAINTENANCE ALLOWANCE-FOSTER CARERS,INTERNAL FOSTER CARE PROVISION,Transfer Payments,Revenue
Walsall Council,http://opendatacommunities.org/id/metropolitan-district-council/walsall,WC101-734,28/02/2019,Childrens,REDACTED,21/02/2019,860.00,74501-MAINTENANCE ALLOWANCE-FOSTER CARERS,INTERNAL FOSTER CARE PROVISION,Transfer Payments,Revenue
Walsall Council,http://opendatacommunities.org/id/metropolitan-district-council/walsall,WC101-735,28/02/2019,Childrens,REDACTED,21/02/2019,"1,600.00",74508-INTERNAL FOSTER CARERS-CARER FEES,INTERNAL FOSTER CARE PROVISION,Transfer Payments,Revenue
Walsall Council,http://opendatacommunities.org/id/metropolitan-district-council/walsall,WC101-736,28/02/2019,Childrens,C M H T SOLICITORS LLP,13/02/2019,320.49,73014-LEGAL FEES-PRIV CONTRACTOR FEES,GENERAL MANAGEMENT SUPPORT (INC LEGAL),Third Party Payments,Revenue
Walsall Council,http://opendatacommunities.org/id/metropolitan-district-council/walsall,WC101-737,28/02/2019,Childrens,C M H T SOLICITORS LLP,22/02/2019,"1,978.33",73014-LEGAL FEES-PRIV CONTRACTOR FEES,GENERAL MANAGEMENT SUPPORT (INC LEGAL),Third Party Payments,Revenue
Walsall Council,http://opendatacommunities.org/id/metropolitan-district-council/walsall,WC101-738,28/02/2019,Economy & Environment,C P DAVIDSON & SONS LTD,14/02/2019,250.00,60500-GENERAL MATERIALS,FLEET,Supplies & Services,Revenue
Walsall Council,http://opendatacommunities.org/id/metropolitan-district-council/walsall,WC101-739,28/02/2019,Economy & Environment,C P DAVIDSON & SONS LTD,26/02/2019,259.80,60500-GENERAL MATERIALS,FLEET,Supplies & Services,Revenue
Walsall Council,http://opendatacommunities.org/id/metropolitan-district-council/walsall,WC101-740,28/02/2019,Economy & Environment,C P DAVIDSON & SONS LTD,26/02/2019,266.84,60500-GENERAL MATERIALS,FLEET,Supplies & Services,Revenue
Walsall Council,http://opendatacommunities.org/id/metropolitan-district-council/walsall,WC101-741,28/02/2019,Economy & Environment,C P DAVIDSON & SONS LTD,12/02/2019,"2,250.00",52001-HIRE OF VEHICLES,TARMAC,Transport,Revenue
Walsall Council,http://opendatacommunities.org/id/metropolitan-district-council/walsall,WC101-742,28/02/2019,Economy & Environment,C P DAVIDSON & SONS LTD,06/02/2019,"3,450.00",52001-HIRE OF VEHICLES,TARMAC,Transport,Revenue
Walsall Council,http://opendatacommunities.org/id/metropolitan-district-council/walsall,WC101-743,28/02/2019,Economy & Environment,C P DAVIDSON & SONS LTD,26/02/2019,"5,632.49",60500-GENERAL MATERIALS,FLEET,Supplies & Services,Revenue
Walsall Council,http://opendatacommunities.org/id/metropolitan-district-council/walsall,WC101-744,28/02/2019,Childrens,REDACTED,12/02/2019,408.00,74508-INTERNAL FOSTER CARERS-CARER FEES,FAMILY & FRIENDS FOSTER CARE PROVISION,Transfer Payments,Revenue
Walsall Council,http://opendatacommunities.org/id/metropolitan-district-council/walsall,WC101-745,28/02/2019,Adult Social Care,CALDMORE AREA HOUSING ASS LTD,01/02/2019,"2,533.04",73500-RESIDENTIAL,MENTAL HEALTH SUPPORT,Third Party Payments,Revenue
Walsall Council,http://opendatacommunities.org/id/metropolitan-district-council/walsall,WC101-746,28/02/2019,Adult Social Care,CALDMORE AREA HOUSING ASS LTD,01/02/2019,"2,662.88",73500-RESIDENTIAL,MENTAL HEALTH SUPPORT,Third Party Payments,Revenue
Walsall Council,http://opendatacommunities.org/id/metropolitan-district-council/walsall,WC101-747,28/02/2019,Adult Social Care,CALDMORE AREA HOUSING ASS LTD,01/02/2019,"2,662.88",73500-RESIDENTIAL,MENTAL HEALTH SUPPORT,Third Party Payments,Revenue
Walsall Council,http://opendatacommunities.org/id/metropolitan-district-council/walsall,WC101-748,28/02/2019,Adult Social Care,CALDMORE AREA HOUSING ASS LTD,01/02/2019,"2,662.88",73500-RESIDENTIAL,MENTAL HEALTH SUPPORT,Third Party Payments,Revenue
Walsall Council,http://opendatacommunities.org/id/metropolitan-district-council/walsall,WC101-749,28/02/2019,Adult Social Care,CALDMORE AREA HOUSING ASS LTD,01/02/2019,"2,662.88",73500-RESIDENTIAL,MENTAL HEALTH SUPPORT,Third Party Payments,Revenue
Walsall Council,http://opendatacommunities.org/id/metropolitan-district-council/walsall,WC101-750,28/02/2019,Adult Social Care,CALDMORE AREA HOUSING ASS LTD,01/02/2019,"2,662.88",73500-RESIDENTIAL,MENTAL HEALTH SUPPORT,Third Party Payments,Revenue
Walsall Council,http://opendatacommunities.org/id/metropolitan-district-council/walsall,WC101-751,28/02/2019,Adult Social Care,CALDMORE AREA HOUSING ASS LTD,01/02/2019,"2,662.88",73500-RESIDENTIAL,MENTAL HEALTH SUPPORT,Third Party Payments,Revenue
Walsall Council,http://opendatacommunities.org/id/metropolitan-district-council/walsall,WC101-752,28/02/2019,Adult Social Care,CALDMORE AREA HOUSING ASS LTD,05/02/2019,"3,065.52",73373-RESIDENTIAL & NURSING CARE PLACEMENTS,MENTAL HEALTH PACKAGE/PLACEMENT COSTS,Third Party Payments,Revenue
Walsall Council,http://opendatacommunities.org/id/metropolitan-district-council/walsall,WC101-753,28/02/2019,Adult Social Care,CALDMORE AREA HOUSING ASS LTD,01/02/2019,"18,259.75",73504-SHORT STAY RESIDENTIAL,MENTAL HEALTH SUPPORT,Third Party Payments,Revenue
Walsall Council,http://opendatacommunities.org/id/metropolitan-district-council/walsall,WC101-754,28/02/2019,Childrens,CALDMORE PRIMARY ACADEMY,01/02/2019,"1,537.11",66502-TOP UP FUNDING -GRANTS TO SCHOOLS,CALDMORE PRIMARY ACADEMY,Third Party Payments,Revenue
Walsall Council,http://opendatacommunities.org/id/metropolitan-district-council/walsall,WC101-755,28/02/2019,Childrens,REDACTED,12/02/2019,375.88,74510-RESIDENTS ORDERS,ADOPTION ALLOWANCES,Third Party Payments,Revenue
Walsall Council,http://opendatacommunities.org/id/metropolitan-district-council/walsall,WC101-756,28/02/2019,Adult Social Care,REDACTED,04/02/2019,"1,334.08",73506-DIRECT PAYMENT,LEARNING DISABILITY SUPPORT,Third Party Payments,Revenue
Walsall Council,http://opendatacommunities.org/id/metropolitan-district-council/walsall,WC101-757,28/02/2019,Economy & Environment,CAMPBELL ASSOCIATES,01/02/2019,766.00,60008-MAINTENANCE-FURNITURE & EQUIPMENT,POLLUTION DIVISION,Supplies & Services,Revenue
Walsall Council,http://opendatacommunities.org/id/metropolitan-district-council/walsall,WC101-758,28/02/2019,Childrens,CAMPION SCHOOL,19/02/2019,834.00,66502-TOP UP FUNDING -GRANTS TO SCHOOLS,MAINTAINED PROVIDERS,Third Party Payments,Revenue
Walsall Council,http://opendatacommunities.org/id/metropolitan-district-council/walsall,WC101-759,28/02/2019,Economy & Environment,CANAL & RIVER TRUST,07/02/2019,"314,545.09",01002-PROJECT FEES,CFR 1280 JUNCTION AND CYCLING IMPROVEMENTS - CYCLING IMPROVEMENTS,Capital,Capital
Walsall Council,http://opendatacommunities.org/id/metropolitan-district-council/walsall,WC101-760,28/02/2019,Economy & Environment,CAPITA BUSINESS SERVICES LTD 001,13/02/2019,"3,362.50",73025-PROFESSIONAL SERVICES-PRIV CONTRACTOR & OTHER AGENCIES,PARKING SERVICES OFF-STREET,Third Party Payments,Revenue
Walsall Council,http://opendatacommunities.org/id/metropolitan-district-council/walsall,WC101-761,28/02/2019,Adult Social Care,CARE 2 U LIMITED,04/02/2019,449.78,73507-DOMICILIARY CARE,PHYSICAL SUPPORT,Third Party Payments,Revenue
Walsall Council,http://opendatacommunities.org/id/metropolitan-district-council/walsall,WC101-762,28/02/2019,Adult Social Care,CARE 2 U LIMITED,04/02/2019,491.96,73507-DOMICILIARY CARE,PHYSICAL SUPPORT,Third Party Payments,Revenue
Walsall Council,http://opendatacommunities.org/id/metropolitan-district-council/walsall,WC101-763,28/02/2019,Adult Social Care,CARE 2 U LIMITED,04/02/2019,667.54,73507-DOMICILIARY CARE,LEARNING DISABILITY SUPPORT,Third Party Payments,Revenue
Walsall Council,http://opendatacommunities.org/id/metropolitan-district-council/walsall,WC101-764,28/02/2019,Adult Social Care,CARE 2 U LIMITED,04/02/2019,737.62,73507-DOMICILIARY CARE,LEARNING DISABILITY SUPPORT,Third Party Payments,Revenue
Walsall Council,http://opendatacommunities.org/id/metropolitan-district-council/walsall,WC101-765,28/02/2019,Adult Social Care,CARE 2 U LIMITED,04/02/2019,783.33,73507-DOMICILIARY CARE,LEARNING DISABILITY SUPPORT,Third Party Payments,Revenue
Walsall Council,http://opendatacommunities.org/id/metropolitan-district-council/walsall,WC101-766,28/02/2019,Adult Social Care,CARE 2 U LIMITED,04/02/2019,843.35,73507-DOMICILIARY CARE,PHYSICAL SUPPORT,Third Party Payments,Revenue
Walsall Council,http://opendatacommunities.org/id/metropolitan-district-council/walsall,WC101-767,28/02/2019,Adult Social Care,CARE 2 U LIMITED,04/02/2019,882.14,73507-DOMICILIARY CARE,PHYSICAL SUPPORT,Third Party Payments,Revenue
Walsall Council,http://opendatacommunities.org/id/metropolitan-district-council/walsall,WC101-768,28/02/2019,Adult Social Care,CARE 2 U LIMITED,04/02/2019,896.31,73507-DOMICILIARY CARE,MENTAL HEALTH SUPPORT,Third Party Payments,Revenue
Walsall Council,http://opendatacommunities.org/id/metropolitan-district-council/walsall,WC101-769,28/02/2019,Adult Social Care,CARE 2 U LIMITED,04/02/2019,954.40,73507-DOMICILIARY CARE,PHYSICAL SUPPORT,Third Party Payments,Revenue
Walsall Council,http://opendatacommunities.org/id/metropolitan-district-council/walsall,WC101-770,28/02/2019,Adult Social Care,CARE 2 U LIMITED,04/02/2019,955.46,73507-DOMICILIARY CARE,PHYSICAL SUPPORT,Third Party Payments,Revenue
Walsall Council,http://opendatacommunities.org/id/metropolitan-district-council/walsall,WC101-771,28/02/2019,Adult Social Care,CARE 2 U LIMITED,04/02/2019,976.48,73507-DOMICILIARY CARE,PHYSICAL SUPPORT,Third Party Payments,Revenue
Walsall Council,http://opendatacommunities.org/id/metropolitan-district-council/walsall,WC101-772,28/02/2019,Adult Social Care,CARE 2 U LIMITED,04/02/2019,991.16,73507-DOMICILIARY CARE,MENTAL HEALTH SUPPORT,Third Party Payments,Revenue
Walsall Council,http://opendatacommunities.org/id/metropolitan-district-council/walsall,WC101-773,28/02/2019,Adult Social Care,CARE 2 U LIMITED,04/02/2019,"1,074.97",73507-DOMICILIARY CARE,PHYSICAL SUPPORT,Third Party Payments,Revenue
Walsall Council,http://opendatacommunities.org/id/metropolitan-district-council/walsall,WC101-774,28/02/2019,Adult Social Care,CARE 2 U LIMITED,04/02/2019,"1,629.97",73507-DOMICILIARY CARE,LEARNING DISABILITY SUPPORT,Third Party Payments,Revenue
Walsall Council,http://opendatacommunities.org/id/metropolitan-district-council/walsall,WC101-775,28/02/2019,Adult Social Care,CARE 2 U LIMITED,04/02/2019,"1,672.32",73507-DOMICILIARY CARE,PHYSICAL SUPPORT,Third Party Payments,Revenue
Walsall Council,http://opendatacommunities.org/id/metropolitan-district-council/walsall,WC101-776,28/02/2019,Adult Social Care,CARE 2 U LIMITED,04/02/2019,"1,806.37",73507-DOMICILIARY CARE,PHYSICAL SUPPORT,Third Party Payments,Revenue
Walsall Council,http://opendatacommunities.org/id/metropolitan-district-council/walsall,WC101-777,28/02/2019,Adult Social Care,CARE 2 U LIMITED,04/02/2019,"1,960.81",73507-DOMICILIARY CARE,PHYSICAL SUPPORT,Third Party Payments,Revenue
Walsall Council,http://opendatacommunities.org/id/metropolitan-district-council/walsall,WC101-778,28/02/2019,Adult Social Care,CARE 2 U LIMITED,04/02/2019,"2,013.57",73507-DOMICILIARY CARE,MENTAL HEALTH SUPPORT,Third Party Payments,Revenue
Walsall Council,http://opendatacommunities.org/id/metropolitan-district-council/walsall,WC101-779,28/02/2019,Adult Social Care,CARE 2 U LIMITED,04/02/2019,"2,192.14",73507-DOMICILIARY CARE,PHYSICAL SUPPORT,Third Party Payments,Revenue
Walsall Council,http://opendatacommunities.org/id/metropolitan-district-council/walsall,WC101-780,28/02/2019,Adult Social Care,CARE 2 U LIMITED,04/02/2019,"2,365.06",73507-DOMICILIARY CARE,CARERS,Third Party Payments,Revenue
Walsall Council,http://opendatacommunities.org/id/metropolitan-district-council/walsall,WC101-781,28/02/2019,Adult Social Care,CARE 2 U LIMITED,04/02/2019,"4,706.75",73507-DOMICILIARY CARE,PHYSICAL SUPPORT,Third Party Payments,Revenue
Walsall Council,http://opendatacommunities.org/id/metropolitan-district-council/walsall,WC101-782,28/02/2019,Adult Social Care,CARE AVENUES LTD,04/02/2019,253.04,73507-DOMICILIARY CARE,PHYSICAL SUPPORT,Third Party Payments,Revenue
Walsall Council,http://opendatacommunities.org/id/metropolitan-district-council/walsall,WC101-783,28/02/2019,Adult Social Care,CARE AVENUES LTD,04/02/2019,330.44,73507-DOMICILIARY CARE,PHYSICAL SUPPORT,Third Party Payments,Revenue
Walsall Council,http://opendatacommunities.org/id/metropolitan-district-council/walsall,WC101-784,28/02/2019,Adult Social Care,CARE AVENUES LTD,04/02/2019,365.56,73507-DOMICILIARY CARE,PHYSICAL SUPPORT,Third Party Payments,Revenue
Walsall Council,http://opendatacommunities.org/id/metropolitan-district-council/walsall,WC101-785,28/02/2019,Adult Social Care,CARE AVENUES LTD,04/02/2019,635.65,73507-DOMICILIARY CARE,PHYSICAL SUPPORT,Third Party Payments,Revenue
Walsall Council,http://opendatacommunities.org/id/metropolitan-district-council/walsall,WC101-786,28/02/2019,Adult Social Care,CARE AVENUES LTD,04/02/2019,662.60,73507-DOMICILIARY CARE,PHYSICAL SUPPORT,Third Party Payments,Revenue
Walsall Council,http://opendatacommunities.org/id/metropolitan-district-council/walsall,WC101-787,28/02/2019,Adult Social Care,CARE AVENUES LTD,04/02/2019,787.08,73507-DOMICILIARY CARE,PHYSICAL SUPPORT,Third Party Payments,Revenue
Walsall Council,http://opendatacommunities.org/id/metropolitan-district-council/walsall,WC101-788,28/02/2019,Adult Social Care,CARE AVENUES LTD,04/02/2019,815.37,73507-DOMICILIARY CARE,PHYSICAL SUPPORT,Third Party Payments,Revenue
Walsall Council,http://opendatacommunities.org/id/metropolitan-district-council/walsall,WC101-789,28/02/2019,Adult Social Care,CARE AVENUES LTD,04/02/2019,836.68,73507-DOMICILIARY CARE,PHYSICAL SUPPORT,Third Party Payments,Revenue
Walsall Council,http://opendatacommunities.org/id/metropolitan-district-council/walsall,WC101-790,28/02/2019,Adult Social Care,CARE AVENUES LTD,04/02/2019,840.02,73507-DOMICILIARY CARE,PHYSICAL SUPPORT,Third Party Payments,Revenue
Walsall Council,http://opendatacommunities.org/id/metropolitan-district-council/walsall,WC101-791,28/02/2019,Adult Social Care,CARE AVENUES LTD,04/02/2019,843.43,73507-DOMICILIARY CARE,PHYSICAL SUPPORT,Third Party Payments,Revenue
Walsall Council,http://opendatacommunities.org/id/metropolitan-district-council/walsall,WC101-792,28/02/2019,Adult Social Care,CARE AVENUES LTD,04/02/2019,994.31,73507-DOMICILIARY CARE,PHYSICAL SUPPORT,Third Party Payments,Revenue
Walsall Council,http://opendatacommunities.org/id/metropolitan-district-council/walsall,WC101-793,28/02/2019,Adult Social Care,CARE AVENUES LTD,04/02/2019,"1,173.76",73507-DOMICILIARY CARE,PHYSICAL SUPPORT,Third Party Payments,Revenue
Walsall Council,http://opendatacommunities.org/id/metropolitan-district-council/walsall,WC101-794,28/02/2019,Adult Social Care,CARE AVENUES LTD,04/02/2019,"1,827.23",73507-DOMICILIARY CARE,PHYSICAL SUPPORT,Third Party Payments,Revenue
Walsall Council,http://opendatacommunities.org/id/metropolitan-district-council/walsall,WC101-795,28/02/2019,Adult Social Care,CARE AVENUES LTD,04/02/2019,"1,872.52",73507-DOMICILIARY CARE,PHYSICAL SUPPORT,Third Party Payments,Revenue
